{"text_format":"3","workbook":"xlsx","n_sheets":4,"sheets":["2025 LL-CALCULATOR - UNITS","SUMMARY - UNITS (2025)","REBATE MATRIX (NOW)","2025 SLP_LL_NOW"],"not_rendered":{"images":2,"macros":1,"defined_names":19,"comments":3},"read":"whole","date_system":"1900"}

{"sheet":"2025 LL-CALCULATOR - UNITS","index":0,"n_rows":46,"n_cols":26,"rows_kept":46,"merged":[[0,5,0,13],[3,4,3,5],[6,19,7,19],[6,20,7,21],[8,20,8,21],[11,0,13,0],[11,1,13,1],[11,4,13,4],[11,5,13,5],[11,6,13,6],[11,7,13,7],[11,8,13,8],[11,9,13,9],[11,10,13,10],[11,11,13,11],[11,12,13,12],[11,13,13,13],[11,14,13,14],[11,15,13,15],[11,16,13,16],[11,17,13,17],[11,18,13,18],[11,19,13,19],[11,20,13,20],[11,21,13,21],[11,22,13,22],[11,23,13,23],[11,24,13,24],[11,25,13,25],[32,4,32,9],[32,12,36,24],[34,4,34,6],[34,7,34,9],[35,4,35,6],[35,7,35,9],[36,4,36,6],[36,8,36,9],[37,4,37,6],[37,12,41,24],[38,4,38,6],[38,8,38,9],[39,4,39,6],[39,8,39,9],[40,4,40,6],[40,8,40,9],[41,4,41,6],[41,8,41,9],[42,8,42,9],[43,4,43,6],[43,7,43,9],[45,4,45,9]]}
[{"$nulls":5},"         LARGE LAWN 2025 NOW SOLUTIONS CALCULATOR                  "]
[]
[{"$nulls":20},"Additional Rebates & Bonus Unlocks:"]
[{"$nulls":4},"NAME YOUR DRAFT ORDER HERE:",{"$nulls":14},"Spend Requirement:","$5k+","$10k+","$20k+","$50k+","$100k+","$150k+"]
[{"$nulls":4},"Description: ",{"$nulls":14},"Tier Rebate:",{"v":0.02,"d":"2.0%"},{"v":0.02,"d":"2.0%"},{"v":0.03,"d":"3.0%"},{"v":0.04,"d":"4.0%"},{"v":0.05,"d":"5.0%"},{"v":0.06,"d":"6.0%"}]
[{"$nulls":4},"Dist/DSR: ",{"$nulls":15},{"$f":"AND($N$30>=5000,$N$30<10000)","v":false},{"$f":"AND($N$30>=10000,$N$30<20000)","v":false},{"$f":"AND($N$30>=20000,$N$30<50000)","v":false},{"$f":"AND($N$30>=50000,$N$30<100000)","v":false},{"$f":"AND($N$30>=100000,$N$30<150000)","v":false},{"$f":"$N$30>=150000","v":false}]
[{"$nulls":4},"MER#: ",{"$nulls":14},"Product:","Volume Buy\n(5 or more products)"]
[{"$nulls":4},"Last Updated: "]
[{"$nulls":4},"Created For: ",{"$nulls":15},{"$f":"IF(U11=0,\"n/a\",U11)","v":"n/a"}]
[{"$nulls":20},"Spend < $50k = 1.0%;   Spend > $50k =  2.0%"]
["ZM ADD",{"$nulls":10},"HIDE",null,{"$f":"N30-SUM($N$21:$N$26,N29)","v":{"v":0,"d":"$ 0.00"}},"HIDE","HIDE","HIDE",{"$nulls":3},{"$f":"IF(AND('REBATE MATRIX (NOW)'!$P$1>=5,N30>=10000,N30<50000),0.01,\nIF(AND('REBATE MATRIX (NOW)'!$P$1>=5,N30>=50000),0.02,0))","v":0}]
["SKU Code","AGENCY/TT",null,null,"REBATE FINDER. (Minimum Program Purchase to receive rebates is $5,000)","PRODUCT NAME","UNIT SIZE","CATEGORY","TIER BONUS ELIGILE","# UNITS","ORIGINAL PRICE","INSEASON SUBTOTAL","NOW PRICE/\nUNIT*","INVOICE SUBTOTAL must be a minimum of $5,000 across NOW/FALL program  to receive  rebates","REBATE TIERS AVAILABLE","REBATE TIERS QUALIFIED","QUALIFIED REBATE PER UNIT","VOL BUY \nREBATES**†","ENVU EXTRAS + TIER REBATES","NET PRICE/UNIT \n(all NOW rebates)","TOTAL AFTER REBATES + EXTRAS","USE RATE / 1,000 FT2","USE RATE / ACRE","TOTAL ACRES TREATED","COST/ ACRE","COST/ 1,000 FT2"]
[]
[]
[11008557,{"$f":"INDEX(PRICING[Agency/TT],MATCH(A15,PRICING[SKU],0))","v":"A"},null,null,"$410 off 4+","Fame® SC Fungicide","64 oz","Fungicide",{"$f":"IF(B15=\"a\",\"✔\",\"\")","v":"✔"},null,{"$f":"INDEX(PRICING[2025 In-Season Price],MATCH(A15,PRICING[SKU],0))","v":{"v":1549.45,"d":"$ 1,549.45"}},{"$f":"IF(J15*K15= 0,\"\",J15*K15)","v":""},{"$f":"INDEX(PRICING[NOW Price],MATCH(A15,PRICING[SKU],0))","v":{"v":1471.98,"d":"$ 1,471.98"}},{"$f":"IF(J15*M15= 0,\"\",J15*M15)","v":""},{"$f":"INDEX(Rebate_Lookup[Instances],MATCH(A15,Rebate_Lookup[SKU CODE],0))","v":2},{"$f":"IF(J15=\"\",\"\",INDEX(Rebate_Lookup[Qualified Rebate Tier],MATCH(A15,Rebate_Lookup[SKU CODE],0)))","v":""},{"$f":"IF(J15=\"\",\"\",IF(P15=1,INDEX(Rebate_Lookup[REB_MOQ_1],MATCH(A15,Rebate_Lookup[SKU CODE],0)),IF(P15=2,INDEX(Rebate_Lookup[REB_MOQ_2],MATCH(A15,Rebate_Lookup[SKU CODE],0)),IF(P15=3,INDEX(Rebate_Lookup[REB_MOQ_3],MATCH(A15,Rebate_Lookup[SKU CODE],0)),\"#err\"))))","v":""},{"$f":"IF(OR(Q15=0,Q15=\"\"),\"\",J15*Q15)","v":""},{"$f":"IFERROR(SUM($H$40:$H$41)*N15,\"\")","v":""},{"$f":"IFERROR((N15-SUM(R15:S15))/J15,\"\")","v":""},{"$f":"IF(AND(J15<>\"\",J15>0), J15*T15,\"\")","v":""},{"$f":"W15/43.56","v":{"v":0.3673094582185491,"d":"0.367"}},{"v":16,"d":"16.00"},{"$f":"IF(AND(TRIM(W15)<>\"\",TRIM(J15)<>\"\"),(J15*64)/W15,\"\")","v":""},{"$f":"IF(J15<>0,U15/X15,0)","v":{"v":0,"d":"0.00"}},{"$f":"Y15/43.56","v":{"v":0,"d":"0.00"}}]
[11009500,{"$f":"INDEX(PRICING[Agency/TT],MATCH(A16,PRICING[SKU],0))","v":"A"},null,null,"$1450 off 2+;  $1600 off 4+","Fame® SC Fungicide","2.5 gal","Fungicide","✔",null,{"$f":"INDEX(PRICING[2025 In-Season Price],MATCH(A16,PRICING[SKU],0))","v":{"v":6863.6,"d":"$ 6,863.60"}},"",{"$f":"INDEX(PRICING[NOW Price],MATCH(A16,PRICING[SKU],0))","v":{"v":6520.42,"d":"$ 6,520.42"}},"",{"$f":"INDEX(Rebate_Lookup[Instances],MATCH(A16,Rebate_Lookup[SKU CODE],0))","v":3},{"$f":"IF(J16=\"\",\"\",INDEX(Rebate_Lookup[Qualified Rebate Tier],MATCH(A16,Rebate_Lookup[SKU CODE],0)))","v":""},{"$f":"IF(J16=\"\",\"\",IF(P16=1,INDEX(Rebate_Lookup[REB_MOQ_1],MATCH(A16,Rebate_Lookup[SKU CODE],0)),IF(P16=2,INDEX(Rebate_Lookup[REB_MOQ_2],MATCH(A16,Rebate_Lookup[SKU CODE],0)),IF(P16=3,INDEX(Rebate_Lookup[REB_MOQ_3],MATCH(A16,Rebate_Lookup[SKU CODE],0)),\"#err\"))))","v":""},"",{"$f":"IFERROR(SUM($H$40:$H$41)*N16,\"\")","v":""},{"$f":"IFERROR((N16-SUM(R16:S16))/J16,\"\")","v":""},{"$f":"IF(AND(J16<>\"\",J16>0), J16*T16,\"\")","v":""},{"v":0.3673094582185491,"d":"0.367"},{"v":16,"d":"16.00"},{"$f":"IF(AND(TRIM(W16)<>\"\",TRIM(J16)<>\"\"),(J16*320)/W16,\"\")","v":""},{"v":0,"d":"0.00"},{"v":0,"d":"0.00"}]
[79714858,{"$f":"INDEX(PRICING[Agency/TT],MATCH(A17,PRICING[SKU],0))","v":"A"},null,null,"$12 off 48+;  $24 off 96+","Celsius® WG","10 oz","Herbicide","✔",null,{"$f":"INDEX(PRICING[2025 In-Season Price],MATCH(A17,PRICING[SKU],0))","v":{"v":131.2,"d":"$ 131.20"}},"",{"$f":"INDEX(PRICING[NOW Price],MATCH(A17,PRICING[SKU],0))","v":{"v":124.64,"d":"$ 124.64"}},"",{"$f":"INDEX(Rebate_Lookup[Instances],MATCH(A17,Rebate_Lookup[SKU CODE],0))","v":3},{"$f":"IF(J17=\"\",\"\",INDEX(Rebate_Lookup[Qualified Rebate Tier],MATCH(A17,Rebate_Lookup[SKU CODE],0)))","v":""},{"$f":"IF(J17=\"\",\"\",IF(P17=1,INDEX(Rebate_Lookup[REB_MOQ_1],MATCH(A17,Rebate_Lookup[SKU CODE],0)),IF(P17=2,INDEX(Rebate_Lookup[REB_MOQ_2],MATCH(A17,Rebate_Lookup[SKU CODE],0)),IF(P17=3,INDEX(Rebate_Lookup[REB_MOQ_3],MATCH(A17,Rebate_Lookup[SKU CODE],0)),\"#err\"))))","v":""},"","","","",{"v":0.0849403122130395,"d":"0.085"},{"$f":"V17*43.56","v":{"v":3.700000000000001,"d":"3.70"}},{"$f":"IF(AND(TRIM(W17)<>\"\",TRIM(J17)<>\"\"),(J17*10)/W17,\"\")","v":""},{"v":0,"d":"0.00"},{"v":0,"d":"0.00"}]
["D00000911",{"$f":"INDEX(PRICING[Agency/TT],MATCH(A18,PRICING[SKU],0))","v":"A"},null,null,"$12 off 16+;  $24 off 32+","Celsius® XTRA","10 oz","Herbicide","✔",null,{"$f":"INDEX(PRICING[2025 In-Season Price],MATCH(A18,PRICING[SKU],0))","v":{"v":166.4,"d":"$ 166.40"}},"",{"$f":"INDEX(PRICING[NOW Price],MATCH(A18,PRICING[SKU],0))","v":{"v":158.08,"d":"$ 158.08"}},"",{"$f":"INDEX(Rebate_Lookup[Instances],MATCH(A18,Rebate_Lookup[SKU CODE],0))","v":3},{"$f":"IF(J18=\"\",\"\",INDEX(Rebate_Lookup[Qualified Rebate Tier],MATCH(A18,Rebate_Lookup[SKU CODE],0)))","v":""},{"$f":"IF(J18=\"\",\"\",IF(P18=1,INDEX(Rebate_Lookup[REB_MOQ_1],MATCH(A18,Rebate_Lookup[SKU CODE],0)),IF(P18=2,INDEX(Rebate_Lookup[REB_MOQ_2],MATCH(A18,Rebate_Lookup[SKU CODE],0)),IF(P18=3,INDEX(Rebate_Lookup[REB_MOQ_3],MATCH(A18,Rebate_Lookup[SKU CODE],0)),\"#err\"))))","v":""},"","","","",{"$f":"W18/43.56","v":{"v":0.1721763085399449,"d":"0.172"}},{"v":7.5,"d":"7.50"},{"$f":"IF(AND(TRIM(W18)<>\"\",TRIM(J18)<>\"\"),(J18*10)/W18,\"\")","v":""},{"$f":"IF(J18<>0,U18/X18,0)","v":{"v":0,"d":"0.00"}},{"$f":"Y18/43.56","v":{"v":0,"d":"0.00"}}]
[79545312,{"$f":"INDEX(PRICING[Agency/TT],MATCH(A19,PRICING[SKU],0))","v":"A"},null,null,"$50 off 16+;  $100 off 32+","Revolver®","87 fl oz","Herbicide","✔",null,{"$f":"INDEX(PRICING[2025 In-Season Price],MATCH(A19,PRICING[SKU],0))","v":{"v":765.6,"d":"$ 765.60"}},"",{"$f":"INDEX(PRICING[NOW Price],MATCH(A19,PRICING[SKU],0))","v":{"v":727.32,"d":"$ 727.32"}},"",{"$f":"INDEX(Rebate_Lookup[Instances],MATCH(A19,Rebate_Lookup[SKU CODE],0))","v":3},{"$f":"IF(J19=\"\",\"\",INDEX(Rebate_Lookup[Qualified Rebate Tier],MATCH(A19,Rebate_Lookup[SKU CODE],0)))","v":""},{"$f":"IF(J19=\"\",\"\",IF(P19=1,INDEX(Rebate_Lookup[REB_MOQ_1],MATCH(A19,Rebate_Lookup[SKU CODE],0)),IF(P19=2,INDEX(Rebate_Lookup[REB_MOQ_2],MATCH(A19,Rebate_Lookup[SKU CODE],0)),IF(P19=3,INDEX(Rebate_Lookup[REB_MOQ_3],MATCH(A19,Rebate_Lookup[SKU CODE],0)),\"#err\"))))","v":""},"","","","",{"$f":"W19/43.56","v":{"v":0.39990817263544537,"d":"0.400"}},17.42,{"$f":"IF(AND(TRIM(W19)<>\"\",TRIM(J19)<>\"\"),(J19*87)/W19,\"\")","v":""},{"v":0,"d":"0.00"},{"v":0,"d":"0.00"}]
[11013862,{"$f":"INDEX(PRICING[Agency/TT],MATCH(A20,PRICING[SKU],0))","v":"A"},null,null,"$40 off 24+;  $85 off 48+","Solitare® WSL Herbicide","2.5 gal","Herbicide","✔",null,{"$f":"INDEX(PRICING[2025 In-Season Price],MATCH(A20,PRICING[SKU],0))","v":{"v":262.4,"d":"$ 262.40"}},"",{"$f":"INDEX(PRICING[NOW Price],MATCH(A20,PRICING[SKU],0))","v":{"v":249.28,"d":"$ 249.28"}},"",{"$f":"INDEX(Rebate_Lookup[Instances],MATCH(A20,Rebate_Lookup[SKU CODE],0))","v":3},{"$f":"IF(J20=\"\",\"\",INDEX(Rebate_Lookup[Qualified Rebate Tier],MATCH(A20,Rebate_Lookup[SKU CODE],0)))","v":""},{"$f":"IF(J20=\"\",\"\",IF(P20=1,INDEX(Rebate_Lookup[REB_MOQ_1],MATCH(A20,Rebate_Lookup[SKU CODE],0)),IF(P20=2,INDEX(Rebate_Lookup[REB_MOQ_2],MATCH(A20,Rebate_Lookup[SKU CODE],0)),IF(P20=3,INDEX(Rebate_Lookup[REB_MOQ_3],MATCH(A20,Rebate_Lookup[SKU CODE],0)),\"#err\"))))","v":""},"","","","",{"v":3.9,"d":"3.900"},{"$f":"V20*43.56","v":{"v":169.88400000000001,"d":"169.88"}},{"$f":"IF(AND(TRIM(W20)<>\"\",TRIM(J20)<>\"\"),(J20*320)/W20,\"\")","v":""},{"v":0,"d":"0.00"},{"v":0,"d":"0.00"}]
["D00000990",{"$f":"INDEX(PRICING[Agency/TT],MATCH(A21,PRICING[SKU],0))","v":"A"},null,null,"n/a","Specticle® FLO (1-6 units)","1 gal","Herbicide","✔",null,{"v":2092.8,"d":"$ 2,092.80"},"",{"v":1946.3,"d":"$ 1,946.30"},"",{"$f":"INDEX(Rebate_Lookup[Instances],MATCH(A21,Rebate_Lookup[SKU CODE],0))","v":6},{"$f":"IF(J21=\"\",\"\",INDEX(Rebate_Lookup[Qualified Rebate Tier],MATCH(A21,Rebate_Lookup[SKU CODE],0)))","v":""},null,"",null,"","",{"$f":"W21/43.56","v":{"v":0.13774104683195593,"d":"0.138"}},{"v":6,"d":"6.00"},{"$f":"IF(AND(TRIM(W21)<>\"\",TRIM(J21)<>\"\"),(J21*127.999939675621)/W21,\"\")","v":""},{"v":0,"d":"0.00"},{"v":0,"d":"0.00"}]
["D00000990",{"$f":"INDEX(PRICING[Agency/TT],MATCH(A22,PRICING[SKU],0))","v":"A"},null,null,"$38 off 7-13 units","Specticle® FLO (7-13 units)","1 gal","Herbicide","✔",null,{"v":2092.8,"d":"$ 2,092.80"},"",{"v":1862.59,"d":"$ 1,862.59"},"",{"$f":"INDEX(Rebate_Lookup[Instances],MATCH(A22,Rebate_Lookup[SKU CODE],0))","v":6},{"$f":"IF(J22=\"\",\"\",INDEX(Rebate_Lookup[Qualified Rebate Tier],MATCH(A22,Rebate_Lookup[SKU CODE],0)))","v":""},{"v":38,"d":"$ 38.00"},{"$f":"IF(OR(Q22=0,Q22=\"\"),\"\",J22*Q22)","v":{"v":0,"d":"$0.00"}},null,"",{"$f":"IF(AND(J22<>\"\",J22>0), J22*T22,\"\")","v":""},{"v":0.13774104683195593,"d":"0.138"},{"v":6,"d":"6.00"},{"$f":"IF(AND(TRIM(W22)<>\"\",TRIM(J22)<>\"\"),(J22*127.999939675621)/W22,\"\")","v":""},{"v":0,"d":"0.00"},{"v":0,"d":"0.00"}]
["D00000990",{"$f":"INDEX(PRICING[Agency/TT],MATCH(A23,PRICING[SKU],0))","v":"A"},null,null,"$32 off 7-13 units","Specticle® FLO (14-25 units)","1 gal","Herbicide","✔",null,{"v":1796.4,"d":"$ 1,796.40"},"",{"v":1625.74,"d":"$ 1,625.74"},"",{"$f":"INDEX(Rebate_Lookup[Instances],MATCH(A23,Rebate_Lookup[SKU CODE],0))","v":6},{"$f":"IF(J23=\"\",\"\",INDEX(Rebate_Lookup[Qualified Rebate Tier],MATCH(A23,Rebate_Lookup[SKU CODE],0)))","v":""},{"v":32,"d":"$ 32.00"},{"v":0,"d":"$0.00"},null,"","",{"v":0.13774104683195593,"d":"0.138"},{"v":6,"d":"6.00"},{"$f":"IF(AND(TRIM(W23)<>\"\",TRIM(J23)<>\"\"),(J23*127.999939675621)/W23,\"\")","v":""},{"v":0,"d":"0.00"},{"v":0,"d":"0.00"}]
["D00000990",{"$f":"INDEX(PRICING[Agency/TT],MATCH(A24,PRICING[SKU],0))","v":"A"},null,null,"$131 off 26-51 units","Specticle® FLO (26-51 units)","1 gal","Herbicide","✔",null,{"v":1796.4,"d":"$ 1,796.40"},"",{"v":1455.08,"d":"$ 1,455.08"},"",{"$f":"INDEX(Rebate_Lookup[Instances],MATCH(A24,Rebate_Lookup[SKU CODE],0))","v":6},{"$f":"IF(J24=\"\",\"\",INDEX(Rebate_Lookup[Qualified Rebate Tier],MATCH(A24,Rebate_Lookup[SKU CODE],0)))","v":""},{"v":131,"d":"$ 131.00"},{"v":0,"d":"$0.00"},null,"","",{"v":0.13774104683195593,"d":"0.138"},{"v":6,"d":"6.00"},{"$f":"IF(AND(TRIM(W24)<>\"\",TRIM(J24)<>\"\"),(J24*127.999939675621)/W24,\"\")","v":""},{"v":0,"d":"0.00"},{"v":0,"d":"0.00"}]
["D00000990",{"$f":"INDEX(PRICING[Agency/TT],MATCH(A25,PRICING[SKU],0))","v":"A"},null,null,"$218 off 52-99 units","Specticle® FLO (52-99 units)","1 gal","Herbicide","✔",null,{"v":1796.4,"d":"$ 1,796.40"},"",{"v":1455.08,"d":"$ 1,455.08"},"",{"$f":"INDEX(Rebate_Lookup[Instances],MATCH(A25,Rebate_Lookup[SKU CODE],0))","v":6},{"$f":"IF(J25=\"\",\"\",INDEX(Rebate_Lookup[Qualified Rebate Tier],MATCH(A25,Rebate_Lookup[SKU CODE],0)))","v":""},{"v":218,"d":"$ 218.00"},{"v":0,"d":"$0.00"},null,"","",{"$f":"W25/43.56","v":{"v":0.13774104683195593,"d":"0.138"}},{"v":6,"d":"6.00"},{"$f":"IF(AND(TRIM(W25)<>\"\",TRIM(J25)<>\"\"),(J25*127.999939675621)/W25,\"\")","v":""},{"$f":"IF(J25<>0,U25/X25,0)","v":{"v":0,"d":"0.00"}},{"$f":"Y25/43.56","v":{"v":0,"d":"0.00"}}]
["D00000990",{"$f":"INDEX(PRICING[Agency/TT],MATCH(A26,PRICING[SKU],0))","v":"A"},null,null,"$320 off 100+ units","Specticle® FLO (100+ units)","1 gal","Herbicide","✔",null,{"v":1796.4,"d":"$ 1,796.40"},"",{"v":1455.08,"d":"$ 1,455.08"},"",{"$f":"INDEX(Rebate_Lookup[Instances],MATCH(A26,Rebate_Lookup[SKU CODE],0))","v":6},{"$f":"IF(J26=\"\",\"\",INDEX(Rebate_Lookup[Qualified Rebate Tier],MATCH(A26,Rebate_Lookup[SKU CODE],0)))","v":""},{"v":320,"d":"$ 320.00"},{"v":0,"d":"$0.00"},null,"","",{"v":0.13774104683195593,"d":"0.138"},{"v":6,"d":"6.00"},"",{"v":0,"d":"0.00"},{"v":0,"d":"0.00"}]
["D00000992",{"$f":"INDEX(PRICING[Agency/TT],MATCH(A27,PRICING[SKU],0))","v":"A"},null,null,"$8 off 20+;  $18 off 200+","Specticle® G","50 lb","Herbicide","✔",null,{"$f":"INDEX(PRICING[2025 In-Season Price],MATCH(A27,PRICING[SKU],0))","v":{"v":130.5,"d":"$ 130.50"}},"",{"$f":"INDEX(PRICING[NOW Price],MATCH(A27,PRICING[SKU],0))","v":{"v":123.98,"d":"$ 123.98"}},"",{"$f":"INDEX(Rebate_Lookup[Instances],MATCH(A27,Rebate_Lookup[SKU CODE],0))","v":3},{"$f":"IF(J27=\"\",\"\",INDEX(Rebate_Lookup[Qualified Rebate Tier],MATCH(A27,Rebate_Lookup[SKU CODE],0)))","v":""},{"$f":"IF(J27=\"\",\"\",IF(P27=1,INDEX(Rebate_Lookup[REB_MOQ_1],MATCH(A27,Rebate_Lookup[SKU CODE],0)),IF(P27=2,INDEX(Rebate_Lookup[REB_MOQ_2],MATCH(A27,Rebate_Lookup[SKU CODE],0)),IF(P27=3,INDEX(Rebate_Lookup[REB_MOQ_3],MATCH(A27,Rebate_Lookup[SKU CODE],0)),\"#err\"))))","v":""},"",{"$f":"IFERROR(SUM($H$40:$H$41)*N27,\"\")","v":""},"",{"$f":"IF(AND(J27<>\"\",J27>0), J27*T27,\"\")","v":""},{"$f":"W27/43.56","v":{"v":3.443526170798898,"d":"3.444"}},{"v":150,"d":"150.00"},{"$f":"IF(AND(TRIM(W27)<>\"\",TRIM(J27)<>\"\"),(J27*50)/W27,\"\")","v":""},{"$f":"IF(J27<>0,U27/X27,0)","v":{"v":0,"d":"0.00"}},{"$f":"Y27/43.56","v":{"v":0,"d":"0.00"}}]
[81746257,{"$f":"INDEX(PRICING[Agency/TT],MATCH(A28,PRICING[SKU],0))","v":"A"},null,null,"$30 off 24+;  $50 off 48+","Tribute® Total","6 oz","Herbicide","✔",null,{"$f":"INDEX(PRICING[2025 In-Season Price],MATCH(A28,PRICING[SKU],0))","v":{"v":426.4,"d":"$ 426.40"}},{"$f":"IF(J28*K28= 0,\"\",J28*K28)","v":""},{"$f":"INDEX(PRICING[NOW Price],MATCH(A28,PRICING[SKU],0))","v":{"v":405.08,"d":"$ 405.08"}},"",{"$f":"INDEX(Rebate_Lookup[Instances],MATCH(A28,Rebate_Lookup[SKU CODE],0))","v":3},{"$f":"IF(J28=\"\",\"\",INDEX(Rebate_Lookup[Qualified Rebate Tier],MATCH(A28,Rebate_Lookup[SKU CODE],0)))","v":""},{"$f":"IF(J28=\"\",\"\",IF(P28=1,INDEX(Rebate_Lookup[REB_MOQ_1],MATCH(A28,Rebate_Lookup[SKU CODE],0)),IF(P28=2,INDEX(Rebate_Lookup[REB_MOQ_2],MATCH(A28,Rebate_Lookup[SKU CODE],0)),IF(P28=3,INDEX(Rebate_Lookup[REB_MOQ_3],MATCH(A28,Rebate_Lookup[SKU CODE],0)),\"#err\"))))","v":""},"","","",{"$f":"IF(AND(J28<>\"\",J28>0), J28*T28,\"\")","v":""},{"v":0.02295684113865932,"d":"0.023"},{"v":1,"d":"1.00"},{"$f":"IF(AND(TRIM(W28)<>\"\",TRIM(J28)<>\"\"),(J28*6)/W28,\"\")","v":""},{"v":0,"d":"0.00"},{"v":0,"d":"0.00"}]
[{"$nulls":4},"n/a","Durentis FAW Program:",{"$nulls":13},"",{"$f":"N29","v":{"v":0,"d":"$ 0.00"}}]
[{"$nulls":11},{"$f":"SUM(L15:L28)","v":{"v":0,"d":"$ 0.00"}},null,{"$f":"SUM(N15:N29)","v":{"v":0,"d":"$ 0.00"}},{"$nulls":3},{"$f":"SUM(R15:R28)","v":{"v":0,"d":"$ 0.00"}},{"$f":"SUM(S15:S29)","v":{"v":0,"d":"$ 0.00"}},null,{"$f":"SUM(U15:U29)","v":{"v":0,"d":"$ 0.00"}}]
[]
[{"$nulls":4},"Summary"]
[{"$nulls":4},"Summary is provided as an estimate only. See program rules and conditions.",{"$nulls":7},"TOPCHOICE AND TRIPLE CROWN GOLF ARE RESTRICTED USE PESTICIDES. *Pricing for all states except CA or WA. Must be purchased on a single invoice to receive volume discount price. Purchase tier amount credited for non-agency products is predetermined by Envu. **Must be registered in My Envu Rewards and accept the current Terms and Conditions to participate. ***Customer Fall Solutions and NOW Solutions promotional cumulative purchases (Aug. 1 - Dec. 5, 2025) must be $5,000 or more to qualify for program rebates. Specticle FLO and Ronstar FLO herbicides are not eligible for Envu Extras and tier rebates. New members signed up before Dec. 31, 2025, will receive 2025 NOW/Fall Solutions rebates. All rebates for 2025 NOW/Fall Solutions will be paid in points, which can be redeemed for thousands of catalog items, distributor credits and/or company checks (no checks can be issued to a third party). All products must be invoiced between Aug. 1 and Sept. 30, 2025, to qualify for NOW Solutions. Rebate calculations will be based on the date of actual product invoice and calculator tools are provided for estimation purposes only. Rebates will only be paid or delivered to the company or name listed on the invoice. Please allow for rebates to be fulfilled by July 31, 2026. End users are only eligible for one Envu incentive program on these invoiced products. Must be an end user with MER membership and accept current Terms and Conditions. Resale of product(s) purchased within this program will not qualify for rebates. If questions arise, please contact MER at 1-888-456-6464 or email  info@myenvurewards.com. Envu reserves the right to modify any portion thereof, or discontinue this program without prior notice."]
[]
[{"$nulls":4},"Estimated Total Before Off Invoice Discounts:",null,null,{"$f":"L30+N30","v":{"v":0,"d":"$ 0.00"}}]
[{"$nulls":4},"Estimated Invoice Total:",null,null,{"$f":"N30","v":{"v":0,"d":"$ 0.00"}}]
[{"$nulls":4},"Estimated Off-Invoice Discount:",null,null,{"$f":"I37/H36","v":{"$error":"#DIV/0!"}},{"$f":"H35-H36","v":{"v":0,"d":"$ 0.00"}}]
[{"$nulls":4},"Volume Buy Rebate, Envu Extras & Tier Rebates:",{"$nulls":7},"Title Transfer value shown is Redemption Value for the Programs\n \n†ALWAYS READ AND FOLLOW LABEL INSTRUCTIONS. Environmental Science U.S. LLC, 5000 CentreGreen Way, Suite 400, Cary, NC 27513. For additional product information, call toll-free 1-800-331-2867. www.envu.com. Please verify state registration of these products in your state before selling, using or distributing. Not all products are registered in all states. Envu, the Envu logo and product logos are trademarks owned by Environmental Science U.S. LLC or one of its affiliates. Other trademarks are the property of their respective owners. ©2025 Environmental Science U.S. LLC."]
[{"$nulls":4},"Estimated Total Volume Buy Rebate:",null,null,{"$f":"I39/$H$36","v":{"$error":"#DIV/0!"}},{"$f":"R30","v":{"v":0,"d":"$ 0.00"}}]
[{"$nulls":4},"Estimated Tier Rebate Amount:",null,null,{"$f":"IF(U6=TRUE,U5,IF(V6=TRUE,V5,IF(W6=TRUE,W5,IF(X6=TRUE,X5,IF(Y6=TRUE,Y5,IF(Z6=TRUE,Z5,\"n/a\"))))))","v":"n/a"},{"$f":"IFERROR(($N$30-SUM($N$21:$N$26,$N$29))*H40,\"n/a\")","v":"n/a"}]
[{"$nulls":4},"Estimated Volume Buy Rebate (5 or more products):",null,null,{"$f":"U9","v":"n/a"},{"$f":"IFERROR(($N$30-SUM($N$21:$N$26,$N$29))*H41,\"n/a\")","v":"n/a"}]
[{"$nulls":4},"Estimated Total Rebate:",null,null,{"$f":"SUM(H39:H41)","v":{"$error":"#DIV/0!"}},{"$f":"SUM(I39:J41)","v":{"v":0,"d":"$ 0.00"}}]
[{"$nulls":4},"Estimated Total Savings (Rebates + Off Invoice Discounts):  ",null,null,{"$f":"I43/H36","v":{"$error":"#DIV/0!"}},{"$f":"I42+I37","v":{"v":0,"d":"$ 0.00"}}]
[{"$nulls":4},"Estimated Net Total after Rebates & Discounts:",null,null,{"$f":"H36-I42","v":{"v":0,"d":"$ 0.00"}}]
[{"$nulls":15},{"$f":"SUM(N15:N21,N27:N28)*0.08","v":0}]
[{"$nulls":4},{"$f":"CONCATENATE(\"Estimated MER points to be earned: \",TEXT(IF(AND(I42 <>\"\", I42 > 0),I42*100, 0),\"#,##0\"))","v":"Estimated MER points to be earned: 0"}]

{"sheet":"SUMMARY - UNITS (2025)","index":1,"n_rows":53,"n_cols":9,"rows_kept":53,"merged":[[1,2,1,6],[2,3,2,6],[3,3,3,6],[4,3,4,6],[5,3,5,6],[6,3,6,6],[8,2,10,2],[8,3,10,3],[8,4,10,4],[8,5,10,5],[8,6,10,6],[8,7,10,7],[8,8,10,8],[28,2,29,8],[30,2,30,5],[30,6,30,7],[31,2,31,5],[31,6,31,7],[32,2,32,5],[33,2,33,4],[34,2,34,5],[35,2,35,5],[36,2,36,5],[37,2,37,5],[38,2,38,5],[39,2,39,5],[39,6,39,7],[41,2,41,7],[43,2,51,8],[52,2,56,8]]}
[]
[null,null,{"$f":"'2025 LL-CALCULATOR - UNITS'!E4","v":"NAME YOUR DRAFT ORDER HERE:"}]
[null,null,"Description: ",{"$f":"IF('2025 LL-CALCULATOR - UNITS'!F5=\"\",\"\",'2025 LL-CALCULATOR - UNITS'!F5)","v":""}]
[null,null,"Distributor/DSR: ",{"$f":"IF('2025 LL-CALCULATOR - UNITS'!F6=\"\",\"\",'2025 LL-CALCULATOR - UNITS'!F6)","v":""}]
[null,null,"MER#: ",{"$f":"IF('2025 LL-CALCULATOR - UNITS'!F7=\"\",\"\",'2025 LL-CALCULATOR - UNITS'!F7)","v":""}]
[null,null,"Last Updated: ",{"$f":"IF('2025 LL-CALCULATOR - UNITS'!F8=\"\",\"\",'2025 LL-CALCULATOR - UNITS'!F8)","v":""}]
[null,null,"Created For: ",{"$f":"IF('2025 LL-CALCULATOR - UNITS'!F9=\"\",\"\",'2025 LL-CALCULATOR - UNITS'!F9)","v":""}]
[null,null,"Page 1 of 1"]
[null,null,"PRODUCT NAME","UNIT SIZE","# UNITS","ORIGINAL PRICE/UNIT","NOW \nPRICE/UNIT","SUBTOTAL","NET PRICE/UNIT\n(after rebate)"]
[]
[]
["D00000125",null,{"$f":"'2025 LL-CALCULATOR - UNITS'!F15","v":"Fame® SC Fungicide"},{"$f":"'2025 LL-CALCULATOR - UNITS'!G15","v":"64 oz"},{"$f":"'2025 LL-CALCULATOR - UNITS'!J15","v":0},{"$f":"'2025 LL-CALCULATOR - UNITS'!J15","v":{"v":0,"d":"$ 0.00"}},{"$f":"'2025 LL-CALCULATOR - UNITS'!M15","v":{"v":1471.98,"d":"$ 1,471.98"}},{"$f":"'2025 LL-CALCULATOR - UNITS'!N15","v":""},{"$f":"'2025 LL-CALCULATOR - UNITS'!T15","v":""}]
[11014245,null,{"$f":"'2025 LL-CALCULATOR - UNITS'!F16","v":"Fame® SC Fungicide"},{"$f":"'2025 LL-CALCULATOR - UNITS'!G16","v":"2.5 gal"},{"$f":"'2025 LL-CALCULATOR - UNITS'!J16","v":0},{"$f":"'2025 LL-CALCULATOR - UNITS'!J16","v":{"v":0,"d":"$ 0.00"}},{"$f":"'2025 LL-CALCULATOR - UNITS'!M16","v":{"v":6520.42,"d":"$ 6,520.42"}},{"$f":"'2025 LL-CALCULATOR - UNITS'!N16","v":""},{"$f":"'2025 LL-CALCULATOR - UNITS'!T16","v":""}]
[null,null,{"$f":"'2025 LL-CALCULATOR - UNITS'!F17","v":"Celsius® WG"},{"$f":"'2025 LL-CALCULATOR - UNITS'!G17","v":"10 oz"},{"$f":"'2025 LL-CALCULATOR - UNITS'!J17","v":0},{"$f":"'2025 LL-CALCULATOR - UNITS'!J17","v":{"v":0,"d":"$ 0.00"}},{"$f":"'2025 LL-CALCULATOR - UNITS'!M17","v":{"v":124.64,"d":"$ 124.64"}},{"$f":"'2025 LL-CALCULATOR - UNITS'!N17","v":""},{"$f":"'2025 LL-CALCULATOR - UNITS'!T17","v":""}]
[null,null,{"$f":"'2025 LL-CALCULATOR - UNITS'!F18","v":"Celsius® XTRA"},{"$f":"'2025 LL-CALCULATOR - UNITS'!G18","v":"10 oz"},{"$f":"'2025 LL-CALCULATOR - UNITS'!J18","v":0},{"$f":"'2025 LL-CALCULATOR - UNITS'!J18","v":{"v":0,"d":"$ 0.00"}},{"$f":"'2025 LL-CALCULATOR - UNITS'!M18","v":{"v":158.08,"d":"$ 158.08"}},{"$f":"'2025 LL-CALCULATOR - UNITS'!N18","v":""},{"$f":"'2025 LL-CALCULATOR - UNITS'!T18","v":""}]
[null,null,{"$f":"'2025 LL-CALCULATOR - UNITS'!F19","v":"Revolver®"},{"$f":"'2025 LL-CALCULATOR - UNITS'!G19","v":"87 fl oz"},{"$f":"'2025 LL-CALCULATOR - UNITS'!J19","v":0},{"$f":"'2025 LL-CALCULATOR - UNITS'!J19","v":{"v":0,"d":"$ 0.00"}},{"$f":"'2025 LL-CALCULATOR - UNITS'!M19","v":{"v":727.32,"d":"$ 727.32"}},{"$f":"'2025 LL-CALCULATOR - UNITS'!N19","v":""},{"$f":"'2025 LL-CALCULATOR - UNITS'!T19","v":""}]
[null,null,{"$f":"'2025 LL-CALCULATOR - UNITS'!F20","v":"Solitare® WSL Herbicide"},{"$f":"'2025 LL-CALCULATOR - UNITS'!G20","v":"2.5 gal"},{"$f":"'2025 LL-CALCULATOR - UNITS'!J20","v":0},{"$f":"'2025 LL-CALCULATOR - UNITS'!J20","v":{"v":0,"d":"$ 0.00"}},{"$f":"'2025 LL-CALCULATOR - UNITS'!M20","v":{"v":249.28,"d":"$ 249.28"}},{"$f":"'2025 LL-CALCULATOR - UNITS'!N20","v":""},{"$f":"'2025 LL-CALCULATOR - UNITS'!T20","v":""}]
[null,null,{"$f":"'2025 LL-CALCULATOR - UNITS'!F21","v":"Specticle® FLO (1-6 units)"},{"$f":"'2025 LL-CALCULATOR - UNITS'!G21","v":"1 gal"},{"$f":"'2025 LL-CALCULATOR - UNITS'!J21","v":0},{"$f":"'2025 LL-CALCULATOR - UNITS'!J21","v":{"v":0,"d":"$ 0.00"}},{"$f":"'2025 LL-CALCULATOR - UNITS'!M21","v":{"v":1946.3,"d":"$ 1,946.30"}},{"$f":"'2025 LL-CALCULATOR - UNITS'!N21","v":""},{"$f":"'2025 LL-CALCULATOR - UNITS'!T21","v":""}]
[null,null,{"$f":"'2025 LL-CALCULATOR - UNITS'!F22","v":"Specticle® FLO (7-13 units)"},{"$f":"'2025 LL-CALCULATOR - UNITS'!G22","v":"1 gal"},{"$f":"'2025 LL-CALCULATOR - UNITS'!J22","v":0},{"$f":"'2025 LL-CALCULATOR - UNITS'!J22","v":{"v":0,"d":"$ 0.00"}},{"$f":"'2025 LL-CALCULATOR - UNITS'!M22","v":{"v":1862.59,"d":"$ 1,862.59"}},{"$f":"'2025 LL-CALCULATOR - UNITS'!N22","v":""},{"$f":"'2025 LL-CALCULATOR - UNITS'!T22","v":""}]
[null,null,{"$f":"'2025 LL-CALCULATOR - UNITS'!F23","v":"Specticle® FLO (14-25 units)"},{"$f":"'2025 LL-CALCULATOR - UNITS'!G23","v":"1 gal"},{"$f":"'2025 LL-CALCULATOR - UNITS'!J23","v":0},{"$f":"'2025 LL-CALCULATOR - UNITS'!J23","v":{"v":0,"d":"$ 0.00"}},{"$f":"'2025 LL-CALCULATOR - UNITS'!M23","v":{"v":1625.74,"d":"$ 1,625.74"}},{"$f":"'2025 LL-CALCULATOR - UNITS'!N23","v":""},{"$f":"'2025 LL-CALCULATOR - UNITS'!T23","v":""}]
[null,null,{"$f":"'2025 LL-CALCULATOR - UNITS'!F24","v":"Specticle® FLO (26-51 units)"},{"$f":"'2025 LL-CALCULATOR - UNITS'!G24","v":"1 gal"},{"$f":"'2025 LL-CALCULATOR - UNITS'!J24","v":0},{"$f":"'2025 LL-CALCULATOR - UNITS'!J24","v":{"v":0,"d":"$ 0.00"}},{"$f":"'2025 LL-CALCULATOR - UNITS'!M24","v":{"v":1455.08,"d":"$ 1,455.08"}},{"$f":"'2025 LL-CALCULATOR - UNITS'!N24","v":""},{"$f":"'2025 LL-CALCULATOR - UNITS'!T24","v":""}]
[null,null,{"$f":"'2025 LL-CALCULATOR - UNITS'!F25","v":"Specticle® FLO (52-99 units)"},{"$f":"'2025 LL-CALCULATOR - UNITS'!G25","v":"1 gal"},{"$f":"'2025 LL-CALCULATOR - UNITS'!J25","v":0},{"$f":"'2025 LL-CALCULATOR - UNITS'!J25","v":{"v":0,"d":"$ 0.00"}},{"$f":"'2025 LL-CALCULATOR - UNITS'!M25","v":{"v":1455.08,"d":"$ 1,455.08"}},{"$f":"'2025 LL-CALCULATOR - UNITS'!N25","v":""},{"$f":"'2025 LL-CALCULATOR - UNITS'!T25","v":""}]
[null,null,{"$f":"'2025 LL-CALCULATOR - UNITS'!F26","v":"Specticle® FLO (100+ units)"},{"$f":"'2025 LL-CALCULATOR - UNITS'!G26","v":"1 gal"},{"$f":"'2025 LL-CALCULATOR - UNITS'!J26","v":0},{"$f":"'2025 LL-CALCULATOR - UNITS'!J26","v":{"v":0,"d":"$ 0.00"}},{"$f":"'2025 LL-CALCULATOR - UNITS'!M26","v":{"v":1455.08,"d":"$ 1,455.08"}},{"$f":"'2025 LL-CALCULATOR - UNITS'!N26","v":""},{"$f":"'2025 LL-CALCULATOR - UNITS'!T26","v":""}]
[null,null,{"$f":"'2025 LL-CALCULATOR - UNITS'!F27","v":"Specticle® G"},{"$f":"'2025 LL-CALCULATOR - UNITS'!G27","v":"50 lb"},{"$f":"'2025 LL-CALCULATOR - UNITS'!J27","v":0},{"$f":"'2025 LL-CALCULATOR - UNITS'!J27","v":{"v":0,"d":"$ 0.00"}},{"$f":"'2025 LL-CALCULATOR - UNITS'!M27","v":{"v":123.98,"d":"$ 123.98"}},{"$f":"'2025 LL-CALCULATOR - UNITS'!N27","v":""},{"$f":"'2025 LL-CALCULATOR - UNITS'!T27","v":""}]
[null,null,{"$f":"'2025 LL-CALCULATOR - UNITS'!F28","v":"Tribute® Total"},{"$f":"'2025 LL-CALCULATOR - UNITS'!G28","v":"6 oz"},{"$f":"'2025 LL-CALCULATOR - UNITS'!J28","v":0},{"$f":"'2025 LL-CALCULATOR - UNITS'!J28","v":{"v":0,"d":"$ 0.00"}},{"$f":"'2025 LL-CALCULATOR - UNITS'!M28","v":{"v":405.08,"d":"$ 405.08"}},{"$f":"'2025 LL-CALCULATOR - UNITS'!N28","v":""},{"$f":"'2025 LL-CALCULATOR - UNITS'!T28","v":""}]
[null,null,{"$f":"'2025 LL-CALCULATOR - UNITS'!F29","v":"Durentis FAW Program:"},{"$nulls":4},{"$f":"'2025 LL-CALCULATOR - UNITS'!N29","v":{"v":0,"d":"$ 0.00"}}]
[{"$nulls":7},{"$f":"SUM(H12:H25)","v":{"v":0,"d":"$ 0.00"}}]
[null,null,"Summary"]
[null,null,"Summary is provided as an estimate only. See program rules and conditions."]
[]
[null,null,{"$f":"'2025 LL-CALCULATOR - UNITS'!E35","v":"Estimated Total Before Off Invoice Discounts:"},{"$nulls":3},{"$f":"'2025 LL-CALCULATOR - UNITS'!H35","v":{"v":0,"d":"$ 0.00"}}]
[null,null,{"$f":"'2025 LL-CALCULATOR - UNITS'!E36","v":"Estimated Invoice Total:"},{"$nulls":3},{"$f":"'2025 LL-CALCULATOR - UNITS'!H36","v":{"v":0,"d":"$ 0.00"}}]
[null,null,{"$f":"'2025 LL-CALCULATOR - UNITS'!E37","v":"Estimated Off-Invoice Discount:"},{"$nulls":3},{"$f":"'2025 LL-CALCULATOR - UNITS'!H37","v":{"$error":"#DIV/0!"}},{"$f":"'2025 LL-CALCULATOR - UNITS'!I37","v":{"v":0,"d":"$ 0.00"}}]
[null,null,{"$f":"'2025 LL-CALCULATOR - UNITS'!E38","v":"Volume Buy Rebate, Envu Extras & Tier Rebates:"}]
[null,null,{"$f":"'2025 LL-CALCULATOR - UNITS'!E39","v":"Estimated Total Volume Buy Rebate:"},{"$nulls":3},{"$f":"'2025 LL-CALCULATOR - UNITS'!H39","v":{"$error":"#DIV/0!"}},{"$f":"'2025 LL-CALCULATOR - UNITS'!I39","v":{"v":0,"d":"$ 0.00"}}]
[null,null,{"$f":"'2025 LL-CALCULATOR - UNITS'!E40","v":"Estimated Tier Rebate Amount:"},{"$nulls":3},{"$f":"'2025 LL-CALCULATOR - UNITS'!H40","v":"n/a"},{"$f":"'2025 LL-CALCULATOR - UNITS'!I40","v":"n/a"}]
[null,null,{"$f":"'2025 LL-CALCULATOR - UNITS'!E41","v":"Estimated Volume Buy Rebate (5 or more products):"},{"$nulls":3},{"$f":"'2025 LL-CALCULATOR - UNITS'!H41","v":"n/a"},{"$f":"'2025 LL-CALCULATOR - UNITS'!I41","v":"n/a"}]
[null,null,{"$f":"'2025 LL-CALCULATOR - UNITS'!E42","v":"Estimated Total Rebate:"},{"$nulls":3},{"$f":"'2025 LL-CALCULATOR - UNITS'!H42","v":{"$error":"#DIV/0!"}},{"$f":"'2025 LL-CALCULATOR - UNITS'!I42","v":{"v":0,"d":"$ 0.00"}}]
[null,null,{"$f":"'2025 LL-CALCULATOR - UNITS'!E43","v":"Estimated Total Savings (Rebates + Off Invoice Discounts):  "},{"$nulls":3},{"$f":"'2025 LL-CALCULATOR - UNITS'!H43","v":{"$error":"#DIV/0!"}},{"$f":"'2025 LL-CALCULATOR - UNITS'!I43","v":{"v":0,"d":"$ 0.00"}}]
[null,null,{"$f":"'2025 LL-CALCULATOR - UNITS'!E44","v":"Estimated Net Total after Rebates & Discounts:"},{"$nulls":3},{"$f":"'2025 LL-CALCULATOR - UNITS'!H44","v":{"v":0,"d":"$ 0.00"}}]
[]
[null,null,{"$f":"'2025 LL-CALCULATOR - UNITS'!E46","v":"Estimated MER points to be earned: 0"}]
[]
[null,null,"TOPCHOICE AND TRIPLE CROWN GOLF ARE RESTRICTED USE PESTICIDES. *Pricing for all states except CA or WA. Must be purchased on a single invoice to receive volume discount price. Purchase tier amount credited for non-agency products is predetermined by Envu. **Must be registered in My Envu Rewards and accept the current Terms and Conditions to participate. ***Customer Fall Solutions and NOW Solutions promotional cumulative purchases (Aug. 1 - Dec. 5, 2025) must be $5,000 or more to qualify for program rebates. Specticle FLO and Ronstar FLO herbicides are not eligible for Envu Extras and tier rebates. New members signed up before Dec. 31, 2025, will receive 2025 NOW/Fall Solutions rebates. All rebates for 2025 NOW/Fall Solutions will be paid in points, which can be redeemed for thousands of catalog items, distributor credits and/or company checks (no checks can be issued to a third party). All products must be invoiced between Aug. 1 and Sept. 30, 2025, to qualify for NOW Solutions. Rebate calculations will be based on the date of actual product invoice and calculator tools are provided for estimation purposes only. Rebates will only be paid or delivered to the company or name listed on the invoice. Please allow for rebates to be fulfilled by July 31, 2026. End users are only eligible for one Envu incentive program on these invoiced products. Must be an end user with MER membership and accept current Terms and Conditions. Resale of product(s) purchased within this program will not qualify for rebates. If questions arise, please contact MER at 1-888-456-6464 or email  info@myenvurewards.com. Envu reserves the right to modify any portion thereof, or discontinue this program without prior notice."]
{"$rows_empty":8}
[null,null,"Title Transfer value shown is Redemption Value for the Programs\n \n†ALWAYS READ AND FOLLOW LABEL INSTRUCTIONS. Environmental Science U.S. LLC, 5000 CentreGreen Way, Suite 400, Cary, NC 27513. For additional product information, call toll-free 1-800-331-2867. www.envu.com. Please verify state registration of these products in your state before selling, using or distributing. Not all products are registered in all states. Envu, the Envu logo and product logos are trademarks owned by Environmental Science U.S. LLC or one of its affiliates. Other trademarks are the property of their respective owners. ©2025 Environmental Science U.S. LLC."]

{"sheet":"REBATE MATRIX (NOW)","index":2,"n_rows":140,"n_cols":16,"rows_kept":140,"hidden":true}
[{"$nulls":15},{"$f":"COUNTIF(Rebate_Lookup[Volume Buy Counter],TRUE)","v":0}]
[null,"SKU CODE","Agency/TT","Description","Size","Instances","MOQ_1","MOQ_2","MOQ_3","REB_MOQ_1","REB_MOQ_2","REB_MOQ_3","Order Form Quantity","Qualified Rebate Tier","Column1","Volume Buy Counter"]
[null,4250930,{"$f":"INDEX(PRICING[Agency/TT],MATCH(Rebate_Lookup[[#This Row],[SKU CODE]],PRICING[SKU],0))","v":"TT"},{"$f":"INDEX(PRICING[Product],MATCH(B3,PRICING[SKU],0))","v":"26 GT"},{"$f":"INDEX(PRICING[Size],MATCH(Rebate_Lookup[[#This Row],[SKU CODE]],PRICING[SKU],0))","v":"2.5 gal"},{"$f":"COUNTIFS(PRICING[SKU],B3)","v":1},{"$nulls":3},{"$f":"SUMIFS(PRICING[Rebate $],PRICING[SKU],Rebate_Lookup[[#This Row],[SKU CODE]],PRICING[Set],1)","v":0},{"$f":"SUMIFS(PRICING[Rebate $],PRICING[SKU],Rebate_Lookup[[#This Row],[SKU CODE]],PRICING[Set],2)","v":0},{"$f":"SUMIFS(PRICING[Rebate $],PRICING[SKU],Rebate_Lookup[[#This Row],[SKU CODE]],PRICING[Set],3)","v":0},{"$f":"SUMIF('2025 LL-CALCULATOR - UNITS'!A:A,Rebate_Lookup[[#This Row],[SKU CODE]],'2025 LL-CALCULATOR - UNITS'!J:J)","v":0},{"$f":"IF(Rebate_Lookup[[#This Row],[Instances]]=1,1,\nIF(AND(Rebate_Lookup[[#This Row],[Instances]]=2,Rebate_Lookup[[#This Row],[Order Form Quantity]]<Rebate_Lookup[[#This Row],[MOQ_2]]),1,IF(AND(Rebate_Lookup[[#This Row],[Instances]]=2,Rebate_Lookup[[#This Row],[Order Form Quantity]]>=Rebate_Lookup[[#This Row],[MOQ_2]]),2,\nIF(AND(Rebate_Lookup[[#This Row],[Instances]]=3,Rebate_Lookup[[#This Row],[Order Form Quantity]]<Rebate_Lookup[[#This Row],[MOQ_2]]),1,IF(AND(Rebate_Lookup[[#This Row],[Instances]]=3,Rebate_Lookup[[#This Row],[MOQ_2]]<=Rebate_Lookup[[#This Row],[Order Form Quantity]],Rebate_Lookup[[#This Row],[Order Form Quantity]]<Rebate_Lookup[[#This Row],[MOQ_3]]),2,IF(AND(Rebate_Lookup[[#This Row],[Instances]]=3,Rebate_Lookup[[#This Row],[Order Form Quantity]]>=Rebate_Lookup[[#This Row],[MOQ_3]]),3))))))","v":1},{"$f":"COUNTIF('2025 LL-CALCULATOR - UNITS'!A:A,Rebate_Lookup[[#This Row],[SKU CODE]])","v":0},0]
[null,"D00000898",{"$f":"INDEX(PRICING[Agency/TT],MATCH(Rebate_Lookup[[#This Row],[SKU CODE]],PRICING[SKU],0))","v":"TT"},{"$f":"INDEX(PRICING[Product],MATCH(B4,PRICING[SKU],0))","v":"Armada 50 WDG"},{"$f":"INDEX(PRICING[Size],MATCH(Rebate_Lookup[[#This Row],[SKU CODE]],PRICING[SKU],0))","v":"2 lb"},{"$f":"COUNTIFS(PRICING[SKU],B4)","v":1},{"$nulls":3},{"$f":"SUMIFS(PRICING[Rebate $],PRICING[SKU],Rebate_Lookup[[#This Row],[SKU CODE]],PRICING[Set],1)","v":{"v":10,"d":"$10.00"}},{"$f":"SUMIFS(PRICING[Rebate $],PRICING[SKU],Rebate_Lookup[[#This Row],[SKU CODE]],PRICING[Set],2)","v":0},{"$f":"SUMIFS(PRICING[Rebate $],PRICING[SKU],Rebate_Lookup[[#This Row],[SKU CODE]],PRICING[Set],3)","v":0},{"$f":"SUMIF('2025 LL-CALCULATOR - UNITS'!A:A,Rebate_Lookup[[#This Row],[SKU CODE]],'2025 LL-CALCULATOR - UNITS'!J:J)","v":0},{"$f":"IF(Rebate_Lookup[[#This Row],[Instances]]=1,1,\nIF(AND(Rebate_Lookup[[#This Row],[Instances]]=2,Rebate_Lookup[[#This Row],[Order Form Quantity]]<Rebate_Lookup[[#This Row],[MOQ_2]]),1,IF(AND(Rebate_Lookup[[#This Row],[Instances]]=2,Rebate_Lookup[[#This Row],[Order Form Quantity]]>=Rebate_Lookup[[#This Row],[MOQ_2]]),2,\nIF(AND(Rebate_Lookup[[#This Row],[Instances]]=3,Rebate_Lookup[[#This Row],[Order Form Quantity]]<Rebate_Lookup[[#This Row],[MOQ_2]]),1,IF(AND(Rebate_Lookup[[#This Row],[Instances]]=3,Rebate_Lookup[[#This Row],[MOQ_2]]<=Rebate_Lookup[[#This Row],[Order Form Quantity]],Rebate_Lookup[[#This Row],[Order Form Quantity]]<Rebate_Lookup[[#This Row],[MOQ_3]]),2,IF(AND(Rebate_Lookup[[#This Row],[Instances]]=3,Rebate_Lookup[[#This Row],[Order Form Quantity]]>=Rebate_Lookup[[#This Row],[MOQ_3]]),3))))))","v":1},{"$f":"COUNTIF('2025 LL-CALCULATOR - UNITS'!A:A,Rebate_Lookup[[#This Row],[SKU CODE]])","v":0},0]
[null,"D00000907",{"$f":"INDEX(PRICING[Agency/TT],MATCH(Rebate_Lookup[[#This Row],[SKU CODE]],PRICING[SKU],0))","v":"A"},{"$f":"INDEX(PRICING[Product],MATCH(B5,PRICING[SKU],0))","v":"Banol®"},{"$f":"INDEX(PRICING[Size],MATCH(Rebate_Lookup[[#This Row],[SKU CODE]],PRICING[SKU],0))","v":"2.5 gal "},{"$f":"COUNTIFS(PRICING[SKU],B5)","v":2},1,2,null,{"$f":"SUMIFS(PRICING[Rebate $],PRICING[SKU],Rebate_Lookup[[#This Row],[SKU CODE]],PRICING[Set],1)","v":0},{"$f":"SUMIFS(PRICING[Rebate $],PRICING[SKU],Rebate_Lookup[[#This Row],[SKU CODE]],PRICING[Set],2)","v":{"v":90,"d":"$90.00"}},{"$f":"SUMIFS(PRICING[Rebate $],PRICING[SKU],Rebate_Lookup[[#This Row],[SKU CODE]],PRICING[Set],3)","v":0},{"$f":"SUMIF('2025 LL-CALCULATOR - UNITS'!A:A,Rebate_Lookup[[#This Row],[SKU CODE]],'2025 LL-CALCULATOR - UNITS'!J:J)","v":0},{"$f":"IF(Rebate_Lookup[[#This Row],[Instances]]=1,1,\nIF(AND(Rebate_Lookup[[#This Row],[Instances]]=2,Rebate_Lookup[[#This Row],[Order Form Quantity]]<Rebate_Lookup[[#This Row],[MOQ_2]]),1,IF(AND(Rebate_Lookup[[#This Row],[Instances]]=2,Rebate_Lookup[[#This Row],[Order Form Quantity]]>=Rebate_Lookup[[#This Row],[MOQ_2]]),2,\nIF(AND(Rebate_Lookup[[#This Row],[Instances]]=3,Rebate_Lookup[[#This Row],[Order Form Quantity]]<Rebate_Lookup[[#This Row],[MOQ_2]]),1,IF(AND(Rebate_Lookup[[#This Row],[Instances]]=3,Rebate_Lookup[[#This Row],[MOQ_2]]<=Rebate_Lookup[[#This Row],[Order Form Quantity]],Rebate_Lookup[[#This Row],[Order Form Quantity]]<Rebate_Lookup[[#This Row],[MOQ_3]]),2,IF(AND(Rebate_Lookup[[#This Row],[Instances]]=3,Rebate_Lookup[[#This Row],[Order Form Quantity]]>=Rebate_Lookup[[#This Row],[MOQ_3]]),3))))))","v":1},{"$f":"COUNTIF('2025 LL-CALCULATOR - UNITS'!A:A,Rebate_Lookup[[#This Row],[SKU CODE]])","v":0},{"$f":"Rebate_Lookup[[#This Row],[Order Form Quantity]]>=2","v":false}]
[null,"D00000908",{"$f":"INDEX(PRICING[Agency/TT],MATCH(Rebate_Lookup[[#This Row],[SKU CODE]],PRICING[SKU],0))","v":"A"},{"$f":"INDEX(PRICING[Product],MATCH(B6,PRICING[SKU],0))","v":"Broadform"},{"$f":"INDEX(PRICING[Size],MATCH(Rebate_Lookup[[#This Row],[SKU CODE]],PRICING[SKU],0))","v":"12 oz"},{"$f":"COUNTIFS(PRICING[SKU],B6)","v":3},1,16,32,{"$f":"SUMIFS(PRICING[Rebate $],PRICING[SKU],Rebate_Lookup[[#This Row],[SKU CODE]],PRICING[Set],1)","v":0},{"$f":"SUMIFS(PRICING[Rebate $],PRICING[SKU],Rebate_Lookup[[#This Row],[SKU CODE]],PRICING[Set],2)","v":0},{"$f":"SUMIFS(PRICING[Rebate $],PRICING[SKU],Rebate_Lookup[[#This Row],[SKU CODE]],PRICING[Set],3)","v":0},{"$f":"SUMIF('2025 LL-CALCULATOR - UNITS'!A:A,Rebate_Lookup[[#This Row],[SKU CODE]],'2025 LL-CALCULATOR - UNITS'!J:J)","v":0},{"$f":"IF(Rebate_Lookup[[#This Row],[Instances]]=1,1,\nIF(AND(Rebate_Lookup[[#This Row],[Instances]]=2,Rebate_Lookup[[#This Row],[Order Form Quantity]]<Rebate_Lookup[[#This Row],[MOQ_2]]),1,IF(AND(Rebate_Lookup[[#This Row],[Instances]]=2,Rebate_Lookup[[#This Row],[Order Form Quantity]]>=Rebate_Lookup[[#This Row],[MOQ_2]]),2,\nIF(AND(Rebate_Lookup[[#This Row],[Instances]]=3,Rebate_Lookup[[#This Row],[Order Form Quantity]]<Rebate_Lookup[[#This Row],[MOQ_2]]),1,IF(AND(Rebate_Lookup[[#This Row],[Instances]]=3,Rebate_Lookup[[#This Row],[MOQ_2]]<=Rebate_Lookup[[#This Row],[Order Form Quantity]],Rebate_Lookup[[#This Row],[Order Form Quantity]]<Rebate_Lookup[[#This Row],[MOQ_3]]),2,IF(AND(Rebate_Lookup[[#This Row],[Instances]]=3,Rebate_Lookup[[#This Row],[Order Form Quantity]]>=Rebate_Lookup[[#This Row],[MOQ_3]]),3))))))","v":1},{"$f":"COUNTIF('2025 LL-CALCULATOR - UNITS'!A:A,Rebate_Lookup[[#This Row],[SKU CODE]])","v":0},{"$f":"Rebate_Lookup[[#This Row],[Order Form Quantity]]>=16","v":false}]
[null,"D00000623",{"$f":"INDEX(PRICING[Agency/TT],MATCH(Rebate_Lookup[[#This Row],[SKU CODE]],PRICING[SKU],0))","v":"A"},{"$f":"INDEX(PRICING[Product],MATCH(B7,PRICING[SKU],0))","v":"Castlon™"},{"$f":"INDEX(PRICING[Size],MATCH(Rebate_Lookup[[#This Row],[SKU CODE]],PRICING[SKU],0))","v":"1 gal"},{"$f":"COUNTIFS(PRICING[SKU],B7)","v":3},1,5,10,{"$f":"SUMIFS(PRICING[Rebate $],PRICING[SKU],Rebate_Lookup[[#This Row],[SKU CODE]],PRICING[Set],1)","v":0},{"$f":"SUMIFS(PRICING[Rebate $],PRICING[SKU],Rebate_Lookup[[#This Row],[SKU CODE]],PRICING[Set],2)","v":{"v":525,"d":"$525.00"}},{"$f":"SUMIFS(PRICING[Rebate $],PRICING[SKU],Rebate_Lookup[[#This Row],[SKU CODE]],PRICING[Set],3)","v":{"v":585,"d":"$585.00"}},{"$f":"SUMIF('2025 LL-CALCULATOR - UNITS'!A:A,Rebate_Lookup[[#This Row],[SKU CODE]],'2025 LL-CALCULATOR - UNITS'!J:J)","v":0},{"$f":"IF(Rebate_Lookup[[#This Row],[Instances]]=1,1,\nIF(AND(Rebate_Lookup[[#This Row],[Instances]]=2,Rebate_Lookup[[#This Row],[Order Form Quantity]]<Rebate_Lookup[[#This Row],[MOQ_2]]),1,IF(AND(Rebate_Lookup[[#This Row],[Instances]]=2,Rebate_Lookup[[#This Row],[Order Form Quantity]]>=Rebate_Lookup[[#This Row],[MOQ_2]]),2,\nIF(AND(Rebate_Lookup[[#This Row],[Instances]]=3,Rebate_Lookup[[#This Row],[Order Form Quantity]]<Rebate_Lookup[[#This Row],[MOQ_2]]),1,IF(AND(Rebate_Lookup[[#This Row],[Instances]]=3,Rebate_Lookup[[#This Row],[MOQ_2]]<=Rebate_Lookup[[#This Row],[Order Form Quantity]],Rebate_Lookup[[#This Row],[Order Form Quantity]]<Rebate_Lookup[[#This Row],[MOQ_3]]),2,IF(AND(Rebate_Lookup[[#This Row],[Instances]]=3,Rebate_Lookup[[#This Row],[Order Form Quantity]]>=Rebate_Lookup[[#This Row],[MOQ_3]]),3))))))","v":1},{"$f":"COUNTIF('2025 LL-CALCULATOR - UNITS'!A:A,Rebate_Lookup[[#This Row],[SKU CODE]])","v":0},{"$f":"Rebate_Lookup[[#This Row],[Order Form Quantity]]>=5","v":false}]
[null,"D00000624",{"$f":"INDEX(PRICING[Agency/TT],MATCH(Rebate_Lookup[[#This Row],[SKU CODE]],PRICING[SKU],0))","v":"A"},{"$f":"INDEX(PRICING[Product],MATCH(B8,PRICING[SKU],0))","v":"Castlon™"},{"$f":"INDEX(PRICING[Size],MATCH(Rebate_Lookup[[#This Row],[SKU CODE]],PRICING[SKU],0))","v":"16 oz"},{"$f":"COUNTIFS(PRICING[SKU],B8)","v":3},1,4,null,{"$f":"SUMIFS(PRICING[Rebate $],PRICING[SKU],Rebate_Lookup[[#This Row],[SKU CODE]],PRICING[Set],1)","v":0},{"$f":"SUMIFS(PRICING[Rebate $],PRICING[SKU],Rebate_Lookup[[#This Row],[SKU CODE]],PRICING[Set],2)","v":{"v":50,"d":"$50.00"}},{"$f":"SUMIFS(PRICING[Rebate $],PRICING[SKU],Rebate_Lookup[[#This Row],[SKU CODE]],PRICING[Set],3)","v":{"v":105,"d":"$105.00"}},{"$f":"SUMIF('2025 LL-CALCULATOR - UNITS'!A:A,Rebate_Lookup[[#This Row],[SKU CODE]],'2025 LL-CALCULATOR - UNITS'!J:J)","v":0},{"$f":"IF(Rebate_Lookup[[#This Row],[Instances]]=1,1,\nIF(AND(Rebate_Lookup[[#This Row],[Instances]]=2,Rebate_Lookup[[#This Row],[Order Form Quantity]]<Rebate_Lookup[[#This Row],[MOQ_2]]),1,IF(AND(Rebate_Lookup[[#This Row],[Instances]]=2,Rebate_Lookup[[#This Row],[Order Form Quantity]]>=Rebate_Lookup[[#This Row],[MOQ_2]]),2,\nIF(AND(Rebate_Lookup[[#This Row],[Instances]]=3,Rebate_Lookup[[#This Row],[Order Form Quantity]]<Rebate_Lookup[[#This Row],[MOQ_2]]),1,IF(AND(Rebate_Lookup[[#This Row],[Instances]]=3,Rebate_Lookup[[#This Row],[MOQ_2]]<=Rebate_Lookup[[#This Row],[Order Form Quantity]],Rebate_Lookup[[#This Row],[Order Form Quantity]]<Rebate_Lookup[[#This Row],[MOQ_3]]),2,IF(AND(Rebate_Lookup[[#This Row],[Instances]]=3,Rebate_Lookup[[#This Row],[Order Form Quantity]]>=Rebate_Lookup[[#This Row],[MOQ_3]]),3))))))","v":1},{"$f":"COUNTIF('2025 LL-CALCULATOR - UNITS'!A:A,Rebate_Lookup[[#This Row],[SKU CODE]])","v":0},{"$f":"Rebate_Lookup[[#This Row],[Order Form Quantity]]>=4","v":false}]
[null,"D00000914",{"$f":"INDEX(PRICING[Agency/TT],MATCH(Rebate_Lookup[[#This Row],[SKU CODE]],PRICING[SKU],0))","v":"A"},{"$f":"INDEX(PRICING[Product],MATCH(B9,PRICING[SKU],0))","v":"Chipco® Signature™"},{"$f":"INDEX(PRICING[Size],MATCH(Rebate_Lookup[[#This Row],[SKU CODE]],PRICING[SKU],0))","v":"11 lb"},{"$f":"COUNTIFS(PRICING[SKU],B9)","v":2},1,9,null,{"$f":"SUMIFS(PRICING[Rebate $],PRICING[SKU],Rebate_Lookup[[#This Row],[SKU CODE]],PRICING[Set],1)","v":0},{"$f":"SUMIFS(PRICING[Rebate $],PRICING[SKU],Rebate_Lookup[[#This Row],[SKU CODE]],PRICING[Set],2)","v":{"v":5,"d":"$5.00"}},{"$f":"SUMIFS(PRICING[Rebate $],PRICING[SKU],Rebate_Lookup[[#This Row],[SKU CODE]],PRICING[Set],3)","v":0},{"$f":"SUMIF('2025 LL-CALCULATOR - UNITS'!A:A,Rebate_Lookup[[#This Row],[SKU CODE]],'2025 LL-CALCULATOR - UNITS'!J:J)","v":0},{"$f":"IF(Rebate_Lookup[[#This Row],[Instances]]=1,1,\nIF(AND(Rebate_Lookup[[#This Row],[Instances]]=2,Rebate_Lookup[[#This Row],[Order Form Quantity]]<Rebate_Lookup[[#This Row],[MOQ_2]]),1,IF(AND(Rebate_Lookup[[#This Row],[Instances]]=2,Rebate_Lookup[[#This Row],[Order Form Quantity]]>=Rebate_Lookup[[#This Row],[MOQ_2]]),2,\nIF(AND(Rebate_Lookup[[#This Row],[Instances]]=3,Rebate_Lookup[[#This Row],[Order Form Quantity]]<Rebate_Lookup[[#This Row],[MOQ_2]]),1,IF(AND(Rebate_Lookup[[#This Row],[Instances]]=3,Rebate_Lookup[[#This Row],[MOQ_2]]<=Rebate_Lookup[[#This Row],[Order Form Quantity]],Rebate_Lookup[[#This Row],[Order Form Quantity]]<Rebate_Lookup[[#This Row],[MOQ_3]]),2,IF(AND(Rebate_Lookup[[#This Row],[Instances]]=3,Rebate_Lookup[[#This Row],[Order Form Quantity]]>=Rebate_Lookup[[#This Row],[MOQ_3]]),3))))))","v":1},{"$f":"COUNTIF('2025 LL-CALCULATOR - UNITS'!A:A,Rebate_Lookup[[#This Row],[SKU CODE]])","v":0},{"$f":"Rebate_Lookup[[#This Row],[Order Form Quantity]]>=9","v":false}]
[null,"D00001373",{"$f":"INDEX(PRICING[Agency/TT],MATCH(Rebate_Lookup[[#This Row],[SKU CODE]],PRICING[SKU],0))","v":"A"},{"$f":"INDEX(PRICING[Product],MATCH(B10,PRICING[SKU],0))","v":"Densicor®"},{"$f":"INDEX(PRICING[Size],MATCH(Rebate_Lookup[[#This Row],[SKU CODE]],PRICING[SKU],0))","v":"51 oz"},{"$f":"COUNTIFS(PRICING[SKU],B10)","v":2},1,3,null,{"$f":"SUMIFS(PRICING[Rebate $],PRICING[SKU],Rebate_Lookup[[#This Row],[SKU CODE]],PRICING[Set],1)","v":0},{"$f":"SUMIFS(PRICING[Rebate $],PRICING[SKU],Rebate_Lookup[[#This Row],[SKU CODE]],PRICING[Set],2)","v":{"v":100,"d":"$100.00"}},{"$f":"SUMIFS(PRICING[Rebate $],PRICING[SKU],Rebate_Lookup[[#This Row],[SKU CODE]],PRICING[Set],3)","v":0},{"$f":"SUMIF('2025 LL-CALCULATOR - UNITS'!A:A,Rebate_Lookup[[#This Row],[SKU CODE]],'2025 LL-CALCULATOR - UNITS'!J:J)","v":0},{"$f":"IF(Rebate_Lookup[[#This Row],[Instances]]=1,1,\nIF(AND(Rebate_Lookup[[#This Row],[Instances]]=2,Rebate_Lookup[[#This Row],[Order Form Quantity]]<Rebate_Lookup[[#This Row],[MOQ_2]]),1,IF(AND(Rebate_Lookup[[#This Row],[Instances]]=2,Rebate_Lookup[[#This Row],[Order Form Quantity]]>=Rebate_Lookup[[#This Row],[MOQ_2]]),2,\nIF(AND(Rebate_Lookup[[#This Row],[Instances]]=3,Rebate_Lookup[[#This Row],[Order Form Quantity]]<Rebate_Lookup[[#This Row],[MOQ_2]]),1,IF(AND(Rebate_Lookup[[#This Row],[Instances]]=3,Rebate_Lookup[[#This Row],[MOQ_2]]<=Rebate_Lookup[[#This Row],[Order Form Quantity]],Rebate_Lookup[[#This Row],[Order Form Quantity]]<Rebate_Lookup[[#This Row],[MOQ_3]]),2,IF(AND(Rebate_Lookup[[#This Row],[Instances]]=3,Rebate_Lookup[[#This Row],[Order Form Quantity]]>=Rebate_Lookup[[#This Row],[MOQ_3]]),3))))))","v":1},{"$f":"COUNTIF('2025 LL-CALCULATOR - UNITS'!A:A,Rebate_Lookup[[#This Row],[SKU CODE]])","v":0},{"$f":"Rebate_Lookup[[#This Row],[Order Form Quantity]]>=3","v":false}]
[null,"D00000934",{"$f":"INDEX(PRICING[Agency/TT],MATCH(Rebate_Lookup[[#This Row],[SKU CODE]],PRICING[SKU],0))","v":"A"},{"$f":"INDEX(PRICING[Product],MATCH(B11,PRICING[SKU],0))","v":"Exteris® Stressgard®"},{"$f":"INDEX(PRICING[Size],MATCH(Rebate_Lookup[[#This Row],[SKU CODE]],PRICING[SKU],0))","v":" 2.5 gal"},{"$f":"COUNTIFS(PRICING[SKU],B11)","v":2},1,6,null,{"$f":"SUMIFS(PRICING[Rebate $],PRICING[SKU],Rebate_Lookup[[#This Row],[SKU CODE]],PRICING[Set],1)","v":0},{"$f":"SUMIFS(PRICING[Rebate $],PRICING[SKU],Rebate_Lookup[[#This Row],[SKU CODE]],PRICING[Set],2)","v":{"v":45,"d":"$45.00"}},{"$f":"SUMIFS(PRICING[Rebate $],PRICING[SKU],Rebate_Lookup[[#This Row],[SKU CODE]],PRICING[Set],3)","v":0},{"$f":"SUMIF('2025 LL-CALCULATOR - UNITS'!A:A,Rebate_Lookup[[#This Row],[SKU CODE]],'2025 LL-CALCULATOR - UNITS'!J:J)","v":0},{"$f":"IF(Rebate_Lookup[[#This Row],[Instances]]=1,1,\nIF(AND(Rebate_Lookup[[#This Row],[Instances]]=2,Rebate_Lookup[[#This Row],[Order Form Quantity]]<Rebate_Lookup[[#This Row],[MOQ_2]]),1,IF(AND(Rebate_Lookup[[#This Row],[Instances]]=2,Rebate_Lookup[[#This Row],[Order Form Quantity]]>=Rebate_Lookup[[#This Row],[MOQ_2]]),2,\nIF(AND(Rebate_Lookup[[#This Row],[Instances]]=3,Rebate_Lookup[[#This Row],[Order Form Quantity]]<Rebate_Lookup[[#This Row],[MOQ_2]]),1,IF(AND(Rebate_Lookup[[#This Row],[Instances]]=3,Rebate_Lookup[[#This Row],[MOQ_2]]<=Rebate_Lookup[[#This Row],[Order Form Quantity]],Rebate_Lookup[[#This Row],[Order Form Quantity]]<Rebate_Lookup[[#This Row],[MOQ_3]]),2,IF(AND(Rebate_Lookup[[#This Row],[Instances]]=3,Rebate_Lookup[[#This Row],[Order Form Quantity]]>=Rebate_Lookup[[#This Row],[MOQ_3]]),3))))))","v":1},{"$f":"COUNTIF('2025 LL-CALCULATOR - UNITS'!A:A,Rebate_Lookup[[#This Row],[SKU CODE]])","v":0},{"$f":"Rebate_Lookup[[#This Row],[Order Form Quantity]]>=6","v":false}]
[null,11008377,{"$f":"INDEX(PRICING[Agency/TT],MATCH(Rebate_Lookup[[#This Row],[SKU CODE]],PRICING[SKU],0))","v":"A"},{"$f":"INDEX(PRICING[Product],MATCH(B12,PRICING[SKU],0))","v":"Fame® +C Fungicide"},{"$f":"INDEX(PRICING[Size],MATCH(Rebate_Lookup[[#This Row],[SKU CODE]],PRICING[SKU],0))","v":"2.5 gal"},{"$f":"COUNTIFS(PRICING[SKU],B12)","v":1},1,null,null,{"$f":"SUMIFS(PRICING[Rebate $],PRICING[SKU],Rebate_Lookup[[#This Row],[SKU CODE]],PRICING[Set],1)","v":0},{"$f":"SUMIFS(PRICING[Rebate $],PRICING[SKU],Rebate_Lookup[[#This Row],[SKU CODE]],PRICING[Set],2)","v":0},{"$f":"SUMIFS(PRICING[Rebate $],PRICING[SKU],Rebate_Lookup[[#This Row],[SKU CODE]],PRICING[Set],3)","v":0},{"$f":"SUMIF('2025 LL-CALCULATOR - UNITS'!A:A,Rebate_Lookup[[#This Row],[SKU CODE]],'2025 LL-CALCULATOR - UNITS'!J:J)","v":0},{"$f":"IF(Rebate_Lookup[[#This Row],[Instances]]=1,1,\nIF(AND(Rebate_Lookup[[#This Row],[Instances]]=2,Rebate_Lookup[[#This Row],[Order Form Quantity]]<Rebate_Lookup[[#This Row],[MOQ_2]]),1,IF(AND(Rebate_Lookup[[#This Row],[Instances]]=2,Rebate_Lookup[[#This Row],[Order Form Quantity]]>=Rebate_Lookup[[#This Row],[MOQ_2]]),2,\nIF(AND(Rebate_Lookup[[#This Row],[Instances]]=3,Rebate_Lookup[[#This Row],[Order Form Quantity]]<Rebate_Lookup[[#This Row],[MOQ_2]]),1,IF(AND(Rebate_Lookup[[#This Row],[Instances]]=3,Rebate_Lookup[[#This Row],[MOQ_2]]<=Rebate_Lookup[[#This Row],[Order Form Quantity]],Rebate_Lookup[[#This Row],[Order Form Quantity]]<Rebate_Lookup[[#This Row],[MOQ_3]]),2,IF(AND(Rebate_Lookup[[#This Row],[Instances]]=3,Rebate_Lookup[[#This Row],[Order Form Quantity]]>=Rebate_Lookup[[#This Row],[MOQ_3]]),3))))))","v":1},{"$f":"COUNTIF('2025 LL-CALCULATOR - UNITS'!A:A,Rebate_Lookup[[#This Row],[SKU CODE]])","v":0},0]
[null,11008557,{"$f":"INDEX(PRICING[Agency/TT],MATCH(Rebate_Lookup[[#This Row],[SKU CODE]],PRICING[SKU],0))","v":"A"},{"$f":"INDEX(PRICING[Product],MATCH(B13,PRICING[SKU],0))","v":"Fame® SC Fungicide"},{"$f":"INDEX(PRICING[Size],MATCH(Rebate_Lookup[[#This Row],[SKU CODE]],PRICING[SKU],0))","v":"64 oz"},{"$f":"COUNTIFS(PRICING[SKU],B13)","v":2},1,4,null,{"$f":"SUMIFS(PRICING[Rebate $],PRICING[SKU],Rebate_Lookup[[#This Row],[SKU CODE]],PRICING[Set],1)","v":0},{"$f":"SUMIFS(PRICING[Rebate $],PRICING[SKU],Rebate_Lookup[[#This Row],[SKU CODE]],PRICING[Set],2)","v":{"v":410,"d":"$410.00"}},{"$f":"SUMIFS(PRICING[Rebate $],PRICING[SKU],Rebate_Lookup[[#This Row],[SKU CODE]],PRICING[Set],3)","v":0},{"$f":"SUMIF('2025 LL-CALCULATOR - UNITS'!A:A,Rebate_Lookup[[#This Row],[SKU CODE]],'2025 LL-CALCULATOR - UNITS'!J:J)","v":0},{"$f":"IF(Rebate_Lookup[[#This Row],[Instances]]=1,1,\nIF(AND(Rebate_Lookup[[#This Row],[Instances]]=2,Rebate_Lookup[[#This Row],[Order Form Quantity]]<Rebate_Lookup[[#This Row],[MOQ_2]]),1,IF(AND(Rebate_Lookup[[#This Row],[Instances]]=2,Rebate_Lookup[[#This Row],[Order Form Quantity]]>=Rebate_Lookup[[#This Row],[MOQ_2]]),2,\nIF(AND(Rebate_Lookup[[#This Row],[Instances]]=3,Rebate_Lookup[[#This Row],[Order Form Quantity]]<Rebate_Lookup[[#This Row],[MOQ_2]]),1,IF(AND(Rebate_Lookup[[#This Row],[Instances]]=3,Rebate_Lookup[[#This Row],[MOQ_2]]<=Rebate_Lookup[[#This Row],[Order Form Quantity]],Rebate_Lookup[[#This Row],[Order Form Quantity]]<Rebate_Lookup[[#This Row],[MOQ_3]]),2,IF(AND(Rebate_Lookup[[#This Row],[Instances]]=3,Rebate_Lookup[[#This Row],[Order Form Quantity]]>=Rebate_Lookup[[#This Row],[MOQ_3]]),3))))))","v":1},{"$f":"COUNTIF('2025 LL-CALCULATOR - UNITS'!A:A,Rebate_Lookup[[#This Row],[SKU CODE]])","v":1},{"$f":"Rebate_Lookup[[#This Row],[Order Form Quantity]]>=4","v":false}]
[null,11009500,{"$f":"INDEX(PRICING[Agency/TT],MATCH(Rebate_Lookup[[#This Row],[SKU CODE]],PRICING[SKU],0))","v":"A"},{"$f":"INDEX(PRICING[Product],MATCH(B14,PRICING[SKU],0))","v":"Fame® SC Fungicide"},{"$f":"INDEX(PRICING[Size],MATCH(Rebate_Lookup[[#This Row],[SKU CODE]],PRICING[SKU],0))","v":"2.5 gal"},{"$f":"COUNTIFS(PRICING[SKU],B14)","v":3},1,2,4,{"$f":"SUMIFS(PRICING[Rebate $],PRICING[SKU],Rebate_Lookup[[#This Row],[SKU CODE]],PRICING[Set],1)","v":0},{"$f":"SUMIFS(PRICING[Rebate $],PRICING[SKU],Rebate_Lookup[[#This Row],[SKU CODE]],PRICING[Set],2)","v":{"v":1450,"d":"$1,450.00"}},{"$f":"SUMIFS(PRICING[Rebate $],PRICING[SKU],Rebate_Lookup[[#This Row],[SKU CODE]],PRICING[Set],3)","v":{"v":1600,"d":"$1,600.00"}},{"$f":"SUMIF('2025 LL-CALCULATOR - UNITS'!A:A,Rebate_Lookup[[#This Row],[SKU CODE]],'2025 LL-CALCULATOR - UNITS'!J:J)","v":0},{"$f":"IF(Rebate_Lookup[[#This Row],[Instances]]=1,1,\nIF(AND(Rebate_Lookup[[#This Row],[Instances]]=2,Rebate_Lookup[[#This Row],[Order Form Quantity]]<Rebate_Lookup[[#This Row],[MOQ_2]]),1,IF(AND(Rebate_Lookup[[#This Row],[Instances]]=2,Rebate_Lookup[[#This Row],[Order Form Quantity]]>=Rebate_Lookup[[#This Row],[MOQ_2]]),2,\nIF(AND(Rebate_Lookup[[#This Row],[Instances]]=3,Rebate_Lookup[[#This Row],[Order Form Quantity]]<Rebate_Lookup[[#This Row],[MOQ_2]]),1,IF(AND(Rebate_Lookup[[#This Row],[Instances]]=3,Rebate_Lookup[[#This Row],[MOQ_2]]<=Rebate_Lookup[[#This Row],[Order Form Quantity]],Rebate_Lookup[[#This Row],[Order Form Quantity]]<Rebate_Lookup[[#This Row],[MOQ_3]]),2,IF(AND(Rebate_Lookup[[#This Row],[Instances]]=3,Rebate_Lookup[[#This Row],[Order Form Quantity]]>=Rebate_Lookup[[#This Row],[MOQ_3]]),3))))))","v":1},{"$f":"COUNTIF('2025 LL-CALCULATOR - UNITS'!A:A,Rebate_Lookup[[#This Row],[SKU CODE]])","v":1},{"$f":"Rebate_Lookup[[#This Row],[Order Form Quantity]]>=2","v":false}]
[null,11008393,{"$f":"INDEX(PRICING[Agency/TT],MATCH(Rebate_Lookup[[#This Row],[SKU CODE]],PRICING[SKU],0))","v":"A"},{"$f":"INDEX(PRICING[Product],MATCH(B15,PRICING[SKU],0))","v":"Fame® SC Fungicide"},{"$f":"INDEX(PRICING[Size],MATCH(Rebate_Lookup[[#This Row],[SKU CODE]],PRICING[SKU],0))","v":"16 oz"},2,1,4,null,{"$f":"SUMIFS(PRICING[Rebate $],PRICING[SKU],Rebate_Lookup[[#This Row],[SKU CODE]],PRICING[Set],1)","v":0},{"$f":"SUMIFS(PRICING[Rebate $],PRICING[SKU],Rebate_Lookup[[#This Row],[SKU CODE]],PRICING[Set],2)","v":{"v":50,"d":"$50.00"}},null,{"$f":"SUMIF('2025 LL-CALCULATOR - UNITS'!A:A,Rebate_Lookup[[#This Row],[SKU CODE]],'2025 LL-CALCULATOR - UNITS'!J:J)","v":0},{"$f":"IF(Rebate_Lookup[[#This Row],[Instances]]=1,1,\nIF(AND(Rebate_Lookup[[#This Row],[Instances]]=2,Rebate_Lookup[[#This Row],[Order Form Quantity]]<Rebate_Lookup[[#This Row],[MOQ_2]]),1,IF(AND(Rebate_Lookup[[#This Row],[Instances]]=2,Rebate_Lookup[[#This Row],[Order Form Quantity]]>=Rebate_Lookup[[#This Row],[MOQ_2]]),2,\nIF(AND(Rebate_Lookup[[#This Row],[Instances]]=3,Rebate_Lookup[[#This Row],[Order Form Quantity]]<Rebate_Lookup[[#This Row],[MOQ_2]]),1,IF(AND(Rebate_Lookup[[#This Row],[Instances]]=3,Rebate_Lookup[[#This Row],[MOQ_2]]<=Rebate_Lookup[[#This Row],[Order Form Quantity]],Rebate_Lookup[[#This Row],[Order Form Quantity]]<Rebate_Lookup[[#This Row],[MOQ_3]]),2,IF(AND(Rebate_Lookup[[#This Row],[Instances]]=3,Rebate_Lookup[[#This Row],[Order Form Quantity]]>=Rebate_Lookup[[#This Row],[MOQ_3]]),3))))))","v":1},{"$f":"COUNTIF('2025 LL-CALCULATOR - UNITS'!A:A,Rebate_Lookup[[#This Row],[SKU CODE]])","v":0},{"$f":"Rebate_Lookup[[#This Row],[Order Form Quantity]]>=4","v":false}]
[null,"D00000935",{"$f":"INDEX(PRICING[Agency/TT],MATCH(Rebate_Lookup[[#This Row],[SKU CODE]],PRICING[SKU],0))","v":"A"},{"$f":"INDEX(PRICING[Product],MATCH(B16,PRICING[SKU],0))","v":"Fiata® Stressgard®"},{"$f":"INDEX(PRICING[Size],MATCH(Rebate_Lookup[[#This Row],[SKU CODE]],PRICING[SKU],0))","v":" 2.5 gal"},{"$f":"COUNTIFS(PRICING[SKU],B16)","v":2},1,16,null,{"$f":"SUMIFS(PRICING[Rebate $],PRICING[SKU],Rebate_Lookup[[#This Row],[SKU CODE]],PRICING[Set],1)","v":0},{"$f":"SUMIFS(PRICING[Rebate $],PRICING[SKU],Rebate_Lookup[[#This Row],[SKU CODE]],PRICING[Set],2)","v":{"v":10,"d":"$10.00"}},{"$f":"SUMIFS(PRICING[Rebate $],PRICING[SKU],Rebate_Lookup[[#This Row],[SKU CODE]],PRICING[Set],3)","v":0},{"$f":"SUMIF('2025 LL-CALCULATOR - UNITS'!A:A,Rebate_Lookup[[#This Row],[SKU CODE]],'2025 LL-CALCULATOR - UNITS'!J:J)","v":0},{"$f":"IF(Rebate_Lookup[[#This Row],[Instances]]=1,1,\nIF(AND(Rebate_Lookup[[#This Row],[Instances]]=2,Rebate_Lookup[[#This Row],[Order Form Quantity]]<Rebate_Lookup[[#This Row],[MOQ_2]]),1,IF(AND(Rebate_Lookup[[#This Row],[Instances]]=2,Rebate_Lookup[[#This Row],[Order Form Quantity]]>=Rebate_Lookup[[#This Row],[MOQ_2]]),2,\nIF(AND(Rebate_Lookup[[#This Row],[Instances]]=3,Rebate_Lookup[[#This Row],[Order Form Quantity]]<Rebate_Lookup[[#This Row],[MOQ_2]]),1,IF(AND(Rebate_Lookup[[#This Row],[Instances]]=3,Rebate_Lookup[[#This Row],[MOQ_2]]<=Rebate_Lookup[[#This Row],[Order Form Quantity]],Rebate_Lookup[[#This Row],[Order Form Quantity]]<Rebate_Lookup[[#This Row],[MOQ_3]]),2,IF(AND(Rebate_Lookup[[#This Row],[Instances]]=3,Rebate_Lookup[[#This Row],[Order Form Quantity]]>=Rebate_Lookup[[#This Row],[MOQ_3]]),3))))))","v":1},{"$f":"COUNTIF('2025 LL-CALCULATOR - UNITS'!A:A,Rebate_Lookup[[#This Row],[SKU CODE]])","v":0},{"$f":"Rebate_Lookup[[#This Row],[Order Form Quantity]]>=16","v":false}]
[null,"D00001379",{"$f":"INDEX(PRICING[Agency/TT],MATCH(Rebate_Lookup[[#This Row],[SKU CODE]],PRICING[SKU],0))","v":"A"},{"$f":"INDEX(PRICING[Product],MATCH(B17,PRICING[SKU],0))","v":"Indemnify®"},{"$f":"INDEX(PRICING[Size],MATCH(Rebate_Lookup[[#This Row],[SKU CODE]],PRICING[SKU],0))","v":"17.1 fl oz"},{"$f":"COUNTIFS(PRICING[SKU],B17)","v":3},1,3,6,{"$f":"SUMIFS(PRICING[Rebate $],PRICING[SKU],Rebate_Lookup[[#This Row],[SKU CODE]],PRICING[Set],1)","v":0},{"$f":"SUMIFS(PRICING[Rebate $],PRICING[SKU],Rebate_Lookup[[#This Row],[SKU CODE]],PRICING[Set],2)","v":{"v":185,"d":"$185.00"}},{"$f":"SUMIFS(PRICING[Rebate $],PRICING[SKU],Rebate_Lookup[[#This Row],[SKU CODE]],PRICING[Set],3)","v":{"v":410,"d":"$410.00"}},{"$f":"SUMIF('2025 LL-CALCULATOR - UNITS'!A:A,Rebate_Lookup[[#This Row],[SKU CODE]],'2025 LL-CALCULATOR - UNITS'!J:J)","v":0},{"$f":"IF(Rebate_Lookup[[#This Row],[Instances]]=1,1,\nIF(AND(Rebate_Lookup[[#This Row],[Instances]]=2,Rebate_Lookup[[#This Row],[Order Form Quantity]]<Rebate_Lookup[[#This Row],[MOQ_2]]),1,IF(AND(Rebate_Lookup[[#This Row],[Instances]]=2,Rebate_Lookup[[#This Row],[Order Form Quantity]]>=Rebate_Lookup[[#This Row],[MOQ_2]]),2,\nIF(AND(Rebate_Lookup[[#This Row],[Instances]]=3,Rebate_Lookup[[#This Row],[Order Form Quantity]]<Rebate_Lookup[[#This Row],[MOQ_2]]),1,IF(AND(Rebate_Lookup[[#This Row],[Instances]]=3,Rebate_Lookup[[#This Row],[MOQ_2]]<=Rebate_Lookup[[#This Row],[Order Form Quantity]],Rebate_Lookup[[#This Row],[Order Form Quantity]]<Rebate_Lookup[[#This Row],[MOQ_3]]),2,IF(AND(Rebate_Lookup[[#This Row],[Instances]]=3,Rebate_Lookup[[#This Row],[Order Form Quantity]]>=Rebate_Lookup[[#This Row],[MOQ_3]]),3))))))","v":1},{"$f":"COUNTIF('2025 LL-CALCULATOR - UNITS'!A:A,Rebate_Lookup[[#This Row],[SKU CODE]])","v":0},{"$f":"Rebate_Lookup[[#This Row],[Order Form Quantity]]>=3","v":false}]
[null,81701245,{"$f":"INDEX(PRICING[Agency/TT],MATCH(Rebate_Lookup[[#This Row],[SKU CODE]],PRICING[SKU],0))","v":"A"},{"$f":"INDEX(PRICING[Product],MATCH(B18,PRICING[SKU],0))","v":"Interface® Stressgard®"},{"$f":"INDEX(PRICING[Size],MATCH(Rebate_Lookup[[#This Row],[SKU CODE]],PRICING[SKU],0))","v":"2.5 gal"},{"$f":"COUNTIFS(PRICING[SKU],B18)","v":2},1,6,null,{"$f":"SUMIFS(PRICING[Rebate $],PRICING[SKU],Rebate_Lookup[[#This Row],[SKU CODE]],PRICING[Set],1)","v":0},{"$f":"SUMIFS(PRICING[Rebate $],PRICING[SKU],Rebate_Lookup[[#This Row],[SKU CODE]],PRICING[Set],2)","v":{"v":90,"d":"$90.00"}},{"$f":"SUMIFS(PRICING[Rebate $],PRICING[SKU],Rebate_Lookup[[#This Row],[SKU CODE]],PRICING[Set],3)","v":0},{"$f":"SUMIF('2025 LL-CALCULATOR - UNITS'!A:A,Rebate_Lookup[[#This Row],[SKU CODE]],'2025 LL-CALCULATOR - UNITS'!J:J)","v":0},{"$f":"IF(Rebate_Lookup[[#This Row],[Instances]]=1,1,\nIF(AND(Rebate_Lookup[[#This Row],[Instances]]=2,Rebate_Lookup[[#This Row],[Order Form Quantity]]<Rebate_Lookup[[#This Row],[MOQ_2]]),1,IF(AND(Rebate_Lookup[[#This Row],[Instances]]=2,Rebate_Lookup[[#This Row],[Order Form Quantity]]>=Rebate_Lookup[[#This Row],[MOQ_2]]),2,\nIF(AND(Rebate_Lookup[[#This Row],[Instances]]=3,Rebate_Lookup[[#This Row],[Order Form Quantity]]<Rebate_Lookup[[#This Row],[MOQ_2]]),1,IF(AND(Rebate_Lookup[[#This Row],[Instances]]=3,Rebate_Lookup[[#This Row],[MOQ_2]]<=Rebate_Lookup[[#This Row],[Order Form Quantity]],Rebate_Lookup[[#This Row],[Order Form Quantity]]<Rebate_Lookup[[#This Row],[MOQ_3]]),2,IF(AND(Rebate_Lookup[[#This Row],[Instances]]=3,Rebate_Lookup[[#This Row],[Order Form Quantity]]>=Rebate_Lookup[[#This Row],[MOQ_3]]),3))))))","v":1},{"$f":"COUNTIF('2025 LL-CALCULATOR - UNITS'!A:A,Rebate_Lookup[[#This Row],[SKU CODE]])","v":0},{"$f":"Rebate_Lookup[[#This Row],[Order Form Quantity]]>=6","v":false}]
[null,11013671,{"$f":"INDEX(PRICING[Agency/TT],MATCH(Rebate_Lookup[[#This Row],[SKU CODE]],PRICING[SKU],0))","v":"A"},{"$f":"INDEX(PRICING[Product],MATCH(B19,PRICING[SKU],0))","v":"Kalida® Fungicide "},{"$f":"INDEX(PRICING[Size],MATCH(Rebate_Lookup[[#This Row],[SKU CODE]],PRICING[SKU],0))","v":"64 oz"},{"$f":"COUNTIFS(PRICING[SKU],B19)","v":2},1,4,null,{"$f":"SUMIFS(PRICING[Rebate $],PRICING[SKU],Rebate_Lookup[[#This Row],[SKU CODE]],PRICING[Set],1)","v":0},{"$f":"SUMIFS(PRICING[Rebate $],PRICING[SKU],Rebate_Lookup[[#This Row],[SKU CODE]],PRICING[Set],2)","v":{"v":295,"d":"$295.00"}},{"$f":"SUMIFS(PRICING[Rebate $],PRICING[SKU],Rebate_Lookup[[#This Row],[SKU CODE]],PRICING[Set],3)","v":0},{"$f":"SUMIF('2025 LL-CALCULATOR - UNITS'!A:A,Rebate_Lookup[[#This Row],[SKU CODE]],'2025 LL-CALCULATOR - UNITS'!J:J)","v":0},{"$f":"IF(Rebate_Lookup[[#This Row],[Instances]]=1,1,\nIF(AND(Rebate_Lookup[[#This Row],[Instances]]=2,Rebate_Lookup[[#This Row],[Order Form Quantity]]<Rebate_Lookup[[#This Row],[MOQ_2]]),1,IF(AND(Rebate_Lookup[[#This Row],[Instances]]=2,Rebate_Lookup[[#This Row],[Order Form Quantity]]>=Rebate_Lookup[[#This Row],[MOQ_2]]),2,\nIF(AND(Rebate_Lookup[[#This Row],[Instances]]=3,Rebate_Lookup[[#This Row],[Order Form Quantity]]<Rebate_Lookup[[#This Row],[MOQ_2]]),1,IF(AND(Rebate_Lookup[[#This Row],[Instances]]=3,Rebate_Lookup[[#This Row],[MOQ_2]]<=Rebate_Lookup[[#This Row],[Order Form Quantity]],Rebate_Lookup[[#This Row],[Order Form Quantity]]<Rebate_Lookup[[#This Row],[MOQ_3]]),2,IF(AND(Rebate_Lookup[[#This Row],[Instances]]=3,Rebate_Lookup[[#This Row],[Order Form Quantity]]>=Rebate_Lookup[[#This Row],[MOQ_3]]),3))))))","v":1},{"$f":"COUNTIF('2025 LL-CALCULATOR - UNITS'!A:A,Rebate_Lookup[[#This Row],[SKU CODE]])","v":0},{"$f":"Rebate_Lookup[[#This Row],[Order Form Quantity]]>=4","v":false}]
[null,"D00000965",{"$f":"INDEX(PRICING[Agency/TT],MATCH(Rebate_Lookup[[#This Row],[SKU CODE]],PRICING[SKU],0))","v":"A"},{"$f":"INDEX(PRICING[Product],MATCH(B20,PRICING[SKU],0))","v":"Mirage® Stressgard®"},{"$f":"INDEX(PRICING[Size],MATCH(Rebate_Lookup[[#This Row],[SKU CODE]],PRICING[SKU],0))","v":"2.5 gal"},{"$f":"COUNTIFS(PRICING[SKU],B20)","v":2},1,4,null,{"$f":"SUMIFS(PRICING[Rebate $],PRICING[SKU],Rebate_Lookup[[#This Row],[SKU CODE]],PRICING[Set],1)","v":0},{"$f":"SUMIFS(PRICING[Rebate $],PRICING[SKU],Rebate_Lookup[[#This Row],[SKU CODE]],PRICING[Set],2)","v":{"v":90,"d":"$90.00"}},{"$f":"SUMIFS(PRICING[Rebate $],PRICING[SKU],Rebate_Lookup[[#This Row],[SKU CODE]],PRICING[Set],3)","v":0},{"$f":"SUMIF('2025 LL-CALCULATOR - UNITS'!A:A,Rebate_Lookup[[#This Row],[SKU CODE]],'2025 LL-CALCULATOR - UNITS'!J:J)","v":0},{"$f":"IF(Rebate_Lookup[[#This Row],[Instances]]=1,1,\nIF(AND(Rebate_Lookup[[#This Row],[Instances]]=2,Rebate_Lookup[[#This Row],[Order Form Quantity]]<Rebate_Lookup[[#This Row],[MOQ_2]]),1,IF(AND(Rebate_Lookup[[#This Row],[Instances]]=2,Rebate_Lookup[[#This Row],[Order Form Quantity]]>=Rebate_Lookup[[#This Row],[MOQ_2]]),2,\nIF(AND(Rebate_Lookup[[#This Row],[Instances]]=3,Rebate_Lookup[[#This Row],[Order Form Quantity]]<Rebate_Lookup[[#This Row],[MOQ_2]]),1,IF(AND(Rebate_Lookup[[#This Row],[Instances]]=3,Rebate_Lookup[[#This Row],[MOQ_2]]<=Rebate_Lookup[[#This Row],[Order Form Quantity]],Rebate_Lookup[[#This Row],[Order Form Quantity]]<Rebate_Lookup[[#This Row],[MOQ_3]]),2,IF(AND(Rebate_Lookup[[#This Row],[Instances]]=3,Rebate_Lookup[[#This Row],[Order Form Quantity]]>=Rebate_Lookup[[#This Row],[MOQ_3]]),3))))))","v":1},{"$f":"COUNTIF('2025 LL-CALCULATOR - UNITS'!A:A,Rebate_Lookup[[#This Row],[SKU CODE]])","v":0},{"$f":"Rebate_Lookup[[#This Row],[Order Form Quantity]]>=4","v":false}]
[null,11003880,{"$f":"INDEX(PRICING[Agency/TT],MATCH(Rebate_Lookup[[#This Row],[SKU CODE]],PRICING[SKU],0))","v":"A"},{"$f":"INDEX(PRICING[Product],MATCH(B21,PRICING[SKU],0))","v":"Rayora® Fungicide "},{"$f":"INDEX(PRICING[Size],MATCH(Rebate_Lookup[[#This Row],[SKU CODE]],PRICING[SKU],0))","v":"2.5 gal"},{"$f":"COUNTIFS(PRICING[SKU],B21)","v":2},1,6,null,{"$f":"SUMIFS(PRICING[Rebate $],PRICING[SKU],Rebate_Lookup[[#This Row],[SKU CODE]],PRICING[Set],1)","v":0},{"$f":"SUMIFS(PRICING[Rebate $],PRICING[SKU],Rebate_Lookup[[#This Row],[SKU CODE]],PRICING[Set],2)","v":{"v":160,"d":"$160.00"}},{"$f":"SUMIFS(PRICING[Rebate $],PRICING[SKU],Rebate_Lookup[[#This Row],[SKU CODE]],PRICING[Set],3)","v":0},{"$f":"SUMIF('2025 LL-CALCULATOR - UNITS'!A:A,Rebate_Lookup[[#This Row],[SKU CODE]],'2025 LL-CALCULATOR - UNITS'!J:J)","v":0},{"$f":"IF(Rebate_Lookup[[#This Row],[Instances]]=1,1,\nIF(AND(Rebate_Lookup[[#This Row],[Instances]]=2,Rebate_Lookup[[#This Row],[Order Form Quantity]]<Rebate_Lookup[[#This Row],[MOQ_2]]),1,IF(AND(Rebate_Lookup[[#This Row],[Instances]]=2,Rebate_Lookup[[#This Row],[Order Form Quantity]]>=Rebate_Lookup[[#This Row],[MOQ_2]]),2,\nIF(AND(Rebate_Lookup[[#This Row],[Instances]]=3,Rebate_Lookup[[#This Row],[Order Form Quantity]]<Rebate_Lookup[[#This Row],[MOQ_2]]),1,IF(AND(Rebate_Lookup[[#This Row],[Instances]]=3,Rebate_Lookup[[#This Row],[MOQ_2]]<=Rebate_Lookup[[#This Row],[Order Form Quantity]],Rebate_Lookup[[#This Row],[Order Form Quantity]]<Rebate_Lookup[[#This Row],[MOQ_3]]),2,IF(AND(Rebate_Lookup[[#This Row],[Instances]]=3,Rebate_Lookup[[#This Row],[Order Form Quantity]]>=Rebate_Lookup[[#This Row],[MOQ_3]]),3))))))","v":1},{"$f":"COUNTIF('2025 LL-CALCULATOR - UNITS'!A:A,Rebate_Lookup[[#This Row],[SKU CODE]])","v":0},{"$f":"Rebate_Lookup[[#This Row],[Order Form Quantity]]>=6","v":false}]
[null,"D00000125",{"$f":"INDEX(PRICING[Agency/TT],MATCH(Rebate_Lookup[[#This Row],[SKU CODE]],PRICING[SKU],0))","v":"A"},{"$f":"INDEX(PRICING[Product],MATCH(B22,PRICING[SKU],0))","v":"Resilia™"},{"$f":"INDEX(PRICING[Size],MATCH(Rebate_Lookup[[#This Row],[SKU CODE]],PRICING[SKU],0))","v":"2.72 gal"},{"$f":"COUNTIFS(PRICING[SKU],B22)","v":3},1,4,15,{"$f":"SUMIFS(PRICING[Rebate $],PRICING[SKU],Rebate_Lookup[[#This Row],[SKU CODE]],PRICING[Set],1)","v":0},{"$f":"SUMIFS(PRICING[Rebate $],PRICING[SKU],Rebate_Lookup[[#This Row],[SKU CODE]],PRICING[Set],2)","v":{"v":65,"d":"$65.00"}},{"$f":"SUMIFS(PRICING[Rebate $],PRICING[SKU],Rebate_Lookup[[#This Row],[SKU CODE]],PRICING[Set],3)","v":{"v":180,"d":"$180.00"}},{"$f":"SUMIF('2025 LL-CALCULATOR - UNITS'!A:A,Rebate_Lookup[[#This Row],[SKU CODE]],'2025 LL-CALCULATOR - UNITS'!J:J)","v":0},{"$f":"IF(Rebate_Lookup[[#This Row],[Instances]]=1,1,\nIF(AND(Rebate_Lookup[[#This Row],[Instances]]=2,Rebate_Lookup[[#This Row],[Order Form Quantity]]<Rebate_Lookup[[#This Row],[MOQ_2]]),1,IF(AND(Rebate_Lookup[[#This Row],[Instances]]=2,Rebate_Lookup[[#This Row],[Order Form Quantity]]>=Rebate_Lookup[[#This Row],[MOQ_2]]),2,\nIF(AND(Rebate_Lookup[[#This Row],[Instances]]=3,Rebate_Lookup[[#This Row],[Order Form Quantity]]<Rebate_Lookup[[#This Row],[MOQ_2]]),1,IF(AND(Rebate_Lookup[[#This Row],[Instances]]=3,Rebate_Lookup[[#This Row],[MOQ_2]]<=Rebate_Lookup[[#This Row],[Order Form Quantity]],Rebate_Lookup[[#This Row],[Order Form Quantity]]<Rebate_Lookup[[#This Row],[MOQ_3]]),2,IF(AND(Rebate_Lookup[[#This Row],[Instances]]=3,Rebate_Lookup[[#This Row],[Order Form Quantity]]>=Rebate_Lookup[[#This Row],[MOQ_3]]),3))))))","v":1},{"$f":"COUNTIF('2025 LL-CALCULATOR - UNITS'!A:A,Rebate_Lookup[[#This Row],[SKU CODE]])","v":0},{"$f":"Rebate_Lookup[[#This Row],[Order Form Quantity]]>=4","v":false}]
[null,11014245,{"$f":"INDEX(PRICING[Agency/TT],MATCH(Rebate_Lookup[[#This Row],[SKU CODE]],PRICING[SKU],0))","v":"A"},{"$f":"INDEX(PRICING[Product],MATCH(B23,PRICING[SKU],0))","v":"Serata® Fungicide "},{"$f":"INDEX(PRICING[Size],MATCH(Rebate_Lookup[[#This Row],[SKU CODE]],PRICING[SKU],0))","v":"35 oz"},{"$f":"COUNTIFS(PRICING[SKU],B23)","v":2},1,8,null,{"$f":"SUMIFS(PRICING[Rebate $],PRICING[SKU],Rebate_Lookup[[#This Row],[SKU CODE]],PRICING[Set],1)","v":0},{"$f":"SUMIFS(PRICING[Rebate $],PRICING[SKU],Rebate_Lookup[[#This Row],[SKU CODE]],PRICING[Set],2)","v":{"v":15,"d":"$15.00"}},{"$f":"SUMIFS(PRICING[Rebate $],PRICING[SKU],Rebate_Lookup[[#This Row],[SKU CODE]],PRICING[Set],3)","v":0},{"$f":"SUMIF('2025 LL-CALCULATOR - UNITS'!A:A,Rebate_Lookup[[#This Row],[SKU CODE]],'2025 LL-CALCULATOR - UNITS'!J:J)","v":0},{"$f":"IF(Rebate_Lookup[[#This Row],[Instances]]=1,1,\nIF(AND(Rebate_Lookup[[#This Row],[Instances]]=2,Rebate_Lookup[[#This Row],[Order Form Quantity]]<Rebate_Lookup[[#This Row],[MOQ_2]]),1,IF(AND(Rebate_Lookup[[#This Row],[Instances]]=2,Rebate_Lookup[[#This Row],[Order Form Quantity]]>=Rebate_Lookup[[#This Row],[MOQ_2]]),2,\nIF(AND(Rebate_Lookup[[#This Row],[Instances]]=3,Rebate_Lookup[[#This Row],[Order Form Quantity]]<Rebate_Lookup[[#This Row],[MOQ_2]]),1,IF(AND(Rebate_Lookup[[#This Row],[Instances]]=3,Rebate_Lookup[[#This Row],[MOQ_2]]<=Rebate_Lookup[[#This Row],[Order Form Quantity]],Rebate_Lookup[[#This Row],[Order Form Quantity]]<Rebate_Lookup[[#This Row],[MOQ_3]]),2,IF(AND(Rebate_Lookup[[#This Row],[Instances]]=3,Rebate_Lookup[[#This Row],[Order Form Quantity]]>=Rebate_Lookup[[#This Row],[MOQ_3]]),3))))))","v":1},{"$f":"COUNTIF('2025 LL-CALCULATOR - UNITS'!A:A,Rebate_Lookup[[#This Row],[SKU CODE]])","v":0},{"$f":"Rebate_Lookup[[#This Row],[Order Form Quantity]]>=8","v":false}]
[null,"D00000989",{"$f":"INDEX(PRICING[Agency/TT],MATCH(Rebate_Lookup[[#This Row],[SKU CODE]],PRICING[SKU],0))","v":"A"},{"$f":"INDEX(PRICING[Product],MATCH(B24,PRICING[SKU],0))","v":"Signature™ XTRA Stressgard® "},{"$f":"INDEX(PRICING[Size],MATCH(Rebate_Lookup[[#This Row],[SKU CODE]],PRICING[SKU],0))","v":"5.5 lb"},{"$f":"COUNTIFS(PRICING[SKU],B24)","v":2},1,24,null,{"$f":"SUMIFS(PRICING[Rebate $],PRICING[SKU],Rebate_Lookup[[#This Row],[SKU CODE]],PRICING[Set],1)","v":0},{"$f":"SUMIFS(PRICING[Rebate $],PRICING[SKU],Rebate_Lookup[[#This Row],[SKU CODE]],PRICING[Set],2)","v":{"v":15,"d":"$15.00"}},{"$f":"SUMIFS(PRICING[Rebate $],PRICING[SKU],Rebate_Lookup[[#This Row],[SKU CODE]],PRICING[Set],3)","v":0},{"$f":"SUMIF('2025 LL-CALCULATOR - UNITS'!A:A,Rebate_Lookup[[#This Row],[SKU CODE]],'2025 LL-CALCULATOR - UNITS'!J:J)","v":0},{"$f":"IF(Rebate_Lookup[[#This Row],[Instances]]=1,1,\nIF(AND(Rebate_Lookup[[#This Row],[Instances]]=2,Rebate_Lookup[[#This Row],[Order Form Quantity]]<Rebate_Lookup[[#This Row],[MOQ_2]]),1,IF(AND(Rebate_Lookup[[#This Row],[Instances]]=2,Rebate_Lookup[[#This Row],[Order Form Quantity]]>=Rebate_Lookup[[#This Row],[MOQ_2]]),2,\nIF(AND(Rebate_Lookup[[#This Row],[Instances]]=3,Rebate_Lookup[[#This Row],[Order Form Quantity]]<Rebate_Lookup[[#This Row],[MOQ_2]]),1,IF(AND(Rebate_Lookup[[#This Row],[Instances]]=3,Rebate_Lookup[[#This Row],[MOQ_2]]<=Rebate_Lookup[[#This Row],[Order Form Quantity]],Rebate_Lookup[[#This Row],[Order Form Quantity]]<Rebate_Lookup[[#This Row],[MOQ_3]]),2,IF(AND(Rebate_Lookup[[#This Row],[Instances]]=3,Rebate_Lookup[[#This Row],[Order Form Quantity]]>=Rebate_Lookup[[#This Row],[MOQ_3]]),3))))))","v":1},{"$f":"COUNTIF('2025 LL-CALCULATOR - UNITS'!A:A,Rebate_Lookup[[#This Row],[SKU CODE]])","v":0},{"$f":"Rebate_Lookup[[#This Row],[Order Form Quantity]]>=24","v":false}]
[null,"D00000998",{"$f":"INDEX(PRICING[Agency/TT],MATCH(Rebate_Lookup[[#This Row],[SKU CODE]],PRICING[SKU],0))","v":"A"},{"$f":"INDEX(PRICING[Product],MATCH(B25,PRICING[SKU],0))","v":"Tartan® Stressgard® "},{"$f":"INDEX(PRICING[Size],MATCH(Rebate_Lookup[[#This Row],[SKU CODE]],PRICING[SKU],0))","v":"2.5 gal"},{"$f":"COUNTIFS(PRICING[SKU],B25)","v":2},1,6,null,{"$f":"SUMIFS(PRICING[Rebate $],PRICING[SKU],Rebate_Lookup[[#This Row],[SKU CODE]],PRICING[Set],1)","v":0},{"v":5,"d":"$5.00"},{"$f":"SUMIFS(PRICING[Rebate $],PRICING[SKU],Rebate_Lookup[[#This Row],[SKU CODE]],PRICING[Set],3)","v":0},{"$f":"SUMIF('2025 LL-CALCULATOR - UNITS'!A:A,Rebate_Lookup[[#This Row],[SKU CODE]],'2025 LL-CALCULATOR - UNITS'!J:J)","v":0},{"$f":"IF(Rebate_Lookup[[#This Row],[Instances]]=1,1,\nIF(AND(Rebate_Lookup[[#This Row],[Instances]]=2,Rebate_Lookup[[#This Row],[Order Form Quantity]]<Rebate_Lookup[[#This Row],[MOQ_2]]),1,IF(AND(Rebate_Lookup[[#This Row],[Instances]]=2,Rebate_Lookup[[#This Row],[Order Form Quantity]]>=Rebate_Lookup[[#This Row],[MOQ_2]]),2,\nIF(AND(Rebate_Lookup[[#This Row],[Instances]]=3,Rebate_Lookup[[#This Row],[Order Form Quantity]]<Rebate_Lookup[[#This Row],[MOQ_2]]),1,IF(AND(Rebate_Lookup[[#This Row],[Instances]]=3,Rebate_Lookup[[#This Row],[MOQ_2]]<=Rebate_Lookup[[#This Row],[Order Form Quantity]],Rebate_Lookup[[#This Row],[Order Form Quantity]]<Rebate_Lookup[[#This Row],[MOQ_3]]),2,IF(AND(Rebate_Lookup[[#This Row],[Instances]]=3,Rebate_Lookup[[#This Row],[Order Form Quantity]]>=Rebate_Lookup[[#This Row],[MOQ_3]]),3))))))","v":1},{"$f":"COUNTIF('2025 LL-CALCULATOR - UNITS'!A:A,Rebate_Lookup[[#This Row],[SKU CODE]])","v":0},{"$f":"Rebate_Lookup[[#This Row],[Order Form Quantity]]>=6","v":false}]
[null,11015981,{"$f":"INDEX(PRICING[Agency/TT],MATCH(Rebate_Lookup[[#This Row],[SKU CODE]],PRICING[SKU],0))","v":"A"},{"$f":"INDEX(PRICING[Product],MATCH(B26,PRICING[SKU],0))","v":"Tarvecta"},{"$f":"INDEX(PRICING[Size],MATCH(Rebate_Lookup[[#This Row],[SKU CODE]],PRICING[SKU],0))","v":"2.5 gal"},{"$f":"COUNTIFS(PRICING[SKU],B26)","v":2},1,3,null,{"$f":"SUMIFS(PRICING[Rebate $],PRICING[SKU],Rebate_Lookup[[#This Row],[SKU CODE]],PRICING[Set],1)","v":0},{"v":400,"d":"$400.00"},{"$f":"SUMIFS(PRICING[Rebate $],PRICING[SKU],Rebate_Lookup[[#This Row],[SKU CODE]],PRICING[Set],3)","v":0},{"$f":"SUMIF('2025 LL-CALCULATOR - UNITS'!A:A,Rebate_Lookup[[#This Row],[SKU CODE]],'2025 LL-CALCULATOR - UNITS'!J:J)","v":0},{"$f":"IF(Rebate_Lookup[[#This Row],[Instances]]=1,1,\nIF(AND(Rebate_Lookup[[#This Row],[Instances]]=2,Rebate_Lookup[[#This Row],[Order Form Quantity]]<Rebate_Lookup[[#This Row],[MOQ_2]]),1,IF(AND(Rebate_Lookup[[#This Row],[Instances]]=2,Rebate_Lookup[[#This Row],[Order Form Quantity]]>=Rebate_Lookup[[#This Row],[MOQ_2]]),2,\nIF(AND(Rebate_Lookup[[#This Row],[Instances]]=3,Rebate_Lookup[[#This Row],[Order Form Quantity]]<Rebate_Lookup[[#This Row],[MOQ_2]]),1,IF(AND(Rebate_Lookup[[#This Row],[Instances]]=3,Rebate_Lookup[[#This Row],[MOQ_2]]<=Rebate_Lookup[[#This Row],[Order Form Quantity]],Rebate_Lookup[[#This Row],[Order Form Quantity]]<Rebate_Lookup[[#This Row],[MOQ_3]]),2,IF(AND(Rebate_Lookup[[#This Row],[Instances]]=3,Rebate_Lookup[[#This Row],[Order Form Quantity]]>=Rebate_Lookup[[#This Row],[MOQ_3]]),3))))))","v":1},{"$f":"COUNTIF('2025 LL-CALCULATOR - UNITS'!A:A,Rebate_Lookup[[#This Row],[SKU CODE]])","v":0},{"$f":"Rebate_Lookup[[#This Row],[Order Form Quantity]]>=3","v":false}]
[null,11015990,{"$f":"INDEX(PRICING[Agency/TT],MATCH(Rebate_Lookup[[#This Row],[SKU CODE]],PRICING[SKU],0))","v":"A"},{"$f":"INDEX(PRICING[Product],MATCH(B27,PRICING[SKU],0))","v":"Tarvecta"},{"$f":"INDEX(PRICING[Size],MATCH(Rebate_Lookup[[#This Row],[SKU CODE]],PRICING[SKU],0))","v":"64 oz"},{"$f":"COUNTIFS(PRICING[SKU],B27)","v":2},1,4,null,{"$f":"SUMIFS(PRICING[Rebate $],PRICING[SKU],Rebate_Lookup[[#This Row],[SKU CODE]],PRICING[Set],1)","v":0},{"v":145,"d":"$145.00"},{"$f":"SUMIFS(PRICING[Rebate $],PRICING[SKU],Rebate_Lookup[[#This Row],[SKU CODE]],PRICING[Set],3)","v":0},{"$f":"SUMIF('2025 LL-CALCULATOR - UNITS'!A:A,Rebate_Lookup[[#This Row],[SKU CODE]],'2025 LL-CALCULATOR - UNITS'!J:J)","v":0},{"$f":"IF(Rebate_Lookup[[#This Row],[Instances]]=1,1,\nIF(AND(Rebate_Lookup[[#This Row],[Instances]]=2,Rebate_Lookup[[#This Row],[Order Form Quantity]]<Rebate_Lookup[[#This Row],[MOQ_2]]),1,IF(AND(Rebate_Lookup[[#This Row],[Instances]]=2,Rebate_Lookup[[#This Row],[Order Form Quantity]]>=Rebate_Lookup[[#This Row],[MOQ_2]]),2,\nIF(AND(Rebate_Lookup[[#This Row],[Instances]]=3,Rebate_Lookup[[#This Row],[Order Form Quantity]]<Rebate_Lookup[[#This Row],[MOQ_2]]),1,IF(AND(Rebate_Lookup[[#This Row],[Instances]]=3,Rebate_Lookup[[#This Row],[MOQ_2]]<=Rebate_Lookup[[#This Row],[Order Form Quantity]],Rebate_Lookup[[#This Row],[Order Form Quantity]]<Rebate_Lookup[[#This Row],[MOQ_3]]),2,IF(AND(Rebate_Lookup[[#This Row],[Instances]]=3,Rebate_Lookup[[#This Row],[Order Form Quantity]]>=Rebate_Lookup[[#This Row],[MOQ_3]]),3))))))","v":1},{"$f":"COUNTIF('2025 LL-CALCULATOR - UNITS'!A:A,Rebate_Lookup[[#This Row],[SKU CODE]])","v":0},{"$f":"Rebate_Lookup[[#This Row],[Order Form Quantity]]>=4","v":false}]
[null,"D00000665",{"$f":"INDEX(PRICING[Agency/TT],MATCH(Rebate_Lookup[[#This Row],[SKU CODE]],PRICING[SKU],0))","v":"TT"},{"$f":"INDEX(PRICING[Product],MATCH(B28,PRICING[SKU],0))","v":"Acclaim Accelerate"},{"$f":"INDEX(PRICING[Size],MATCH(Rebate_Lookup[[#This Row],[SKU CODE]],PRICING[SKU],0))","v":"0.5 gal"},{"$f":"COUNTIFS(PRICING[SKU],B28)","v":1},"150 gal",null,null,{"$f":"SUMIFS(PRICING[Rebate $],PRICING[SKU],Rebate_Lookup[[#This Row],[SKU CODE]],PRICING[Set],1)","v":{"v":7.5,"d":"$7.50"}},{"$f":"SUMIFS(PRICING[Rebate $],PRICING[SKU],Rebate_Lookup[[#This Row],[SKU CODE]],PRICING[Set],2)","v":0},{"$f":"SUMIFS(PRICING[Rebate $],PRICING[SKU],Rebate_Lookup[[#This Row],[SKU CODE]],PRICING[Set],3)","v":0},{"$f":"SUMIF('2025 LL-CALCULATOR - UNITS'!A:A,Rebate_Lookup[[#This Row],[SKU CODE]],'2025 LL-CALCULATOR - UNITS'!J:J)","v":0},{"$f":"IF(Rebate_Lookup[[#This Row],[Instances]]=1,1,\nIF(AND(Rebate_Lookup[[#This Row],[Instances]]=2,Rebate_Lookup[[#This Row],[Order Form Quantity]]<Rebate_Lookup[[#This Row],[MOQ_2]]),1,IF(AND(Rebate_Lookup[[#This Row],[Instances]]=2,Rebate_Lookup[[#This Row],[Order Form Quantity]]>=Rebate_Lookup[[#This Row],[MOQ_2]]),2,\nIF(AND(Rebate_Lookup[[#This Row],[Instances]]=3,Rebate_Lookup[[#This Row],[Order Form Quantity]]<Rebate_Lookup[[#This Row],[MOQ_2]]),1,IF(AND(Rebate_Lookup[[#This Row],[Instances]]=3,Rebate_Lookup[[#This Row],[MOQ_2]]<=Rebate_Lookup[[#This Row],[Order Form Quantity]],Rebate_Lookup[[#This Row],[Order Form Quantity]]<Rebate_Lookup[[#This Row],[MOQ_3]]),2,IF(AND(Rebate_Lookup[[#This Row],[Instances]]=3,Rebate_Lookup[[#This Row],[Order Form Quantity]]>=Rebate_Lookup[[#This Row],[MOQ_3]]),3))))))","v":1},{"$f":"COUNTIF('2025 LL-CALCULATOR - UNITS'!A:A,Rebate_Lookup[[#This Row],[SKU CODE]])","v":0},0]
[null,"D00000666",{"$f":"INDEX(PRICING[Agency/TT],MATCH(Rebate_Lookup[[#This Row],[SKU CODE]],PRICING[SKU],0))","v":"TT"},{"$f":"INDEX(PRICING[Product],MATCH(B29,PRICING[SKU],0))","v":"Acclaim Accelerate"},{"$f":"INDEX(PRICING[Size],MATCH(Rebate_Lookup[[#This Row],[SKU CODE]],PRICING[SKU],0))","v":"2.5 gal "},{"$f":"COUNTIFS(PRICING[SKU],B29)","v":1},"150 gal",null,null,{"$f":"SUMIFS(PRICING[Rebate $],PRICING[SKU],Rebate_Lookup[[#This Row],[SKU CODE]],PRICING[Set],1)","v":{"v":37.5,"d":"$37.50"}},{"$f":"SUMIFS(PRICING[Rebate $],PRICING[SKU],Rebate_Lookup[[#This Row],[SKU CODE]],PRICING[Set],2)","v":0},{"$f":"SUMIFS(PRICING[Rebate $],PRICING[SKU],Rebate_Lookup[[#This Row],[SKU CODE]],PRICING[Set],3)","v":0},{"$f":"SUMIF('2025 LL-CALCULATOR - UNITS'!A:A,Rebate_Lookup[[#This Row],[SKU CODE]],'2025 LL-CALCULATOR - UNITS'!J:J)","v":0},{"$f":"IF(Rebate_Lookup[[#This Row],[Instances]]=1,1,\nIF(AND(Rebate_Lookup[[#This Row],[Instances]]=2,Rebate_Lookup[[#This Row],[Order Form Quantity]]<Rebate_Lookup[[#This Row],[MOQ_2]]),1,IF(AND(Rebate_Lookup[[#This Row],[Instances]]=2,Rebate_Lookup[[#This Row],[Order Form Quantity]]>=Rebate_Lookup[[#This Row],[MOQ_2]]),2,\nIF(AND(Rebate_Lookup[[#This Row],[Instances]]=3,Rebate_Lookup[[#This Row],[Order Form Quantity]]<Rebate_Lookup[[#This Row],[MOQ_2]]),1,IF(AND(Rebate_Lookup[[#This Row],[Instances]]=3,Rebate_Lookup[[#This Row],[MOQ_2]]<=Rebate_Lookup[[#This Row],[Order Form Quantity]],Rebate_Lookup[[#This Row],[Order Form Quantity]]<Rebate_Lookup[[#This Row],[MOQ_3]]),2,IF(AND(Rebate_Lookup[[#This Row],[Instances]]=3,Rebate_Lookup[[#This Row],[Order Form Quantity]]>=Rebate_Lookup[[#This Row],[MOQ_3]]),3))))))","v":1},{"$f":"COUNTIF('2025 LL-CALCULATOR - UNITS'!A:A,Rebate_Lookup[[#This Row],[SKU CODE]])","v":0},0]
[null,87300722,{"$f":"INDEX(PRICING[Agency/TT],MATCH(Rebate_Lookup[[#This Row],[SKU CODE]],PRICING[SKU],0))","v":"TT"},{"$f":"INDEX(PRICING[Product],MATCH(B30,PRICING[SKU],0))","v":"Acclaim Extra"},{"$f":"INDEX(PRICING[Size],MATCH(Rebate_Lookup[[#This Row],[SKU CODE]],PRICING[SKU],0))","v":"1 gal"},{"$f":"COUNTIFS(PRICING[SKU],B30)","v":1},1,null,null,{"$f":"SUMIFS(PRICING[Rebate $],PRICING[SKU],Rebate_Lookup[[#This Row],[SKU CODE]],PRICING[Set],1)","v":{"v":90,"d":"$90.00"}},{"$f":"SUMIFS(PRICING[Rebate $],PRICING[SKU],Rebate_Lookup[[#This Row],[SKU CODE]],PRICING[Set],2)","v":0},{"$f":"SUMIFS(PRICING[Rebate $],PRICING[SKU],Rebate_Lookup[[#This Row],[SKU CODE]],PRICING[Set],3)","v":0},{"$f":"SUMIF('2025 LL-CALCULATOR - UNITS'!A:A,Rebate_Lookup[[#This Row],[SKU CODE]],'2025 LL-CALCULATOR - UNITS'!J:J)","v":0},{"$f":"IF(Rebate_Lookup[[#This Row],[Instances]]=1,1,\nIF(AND(Rebate_Lookup[[#This Row],[Instances]]=2,Rebate_Lookup[[#This Row],[Order Form Quantity]]<Rebate_Lookup[[#This Row],[MOQ_2]]),1,IF(AND(Rebate_Lookup[[#This Row],[Instances]]=2,Rebate_Lookup[[#This Row],[Order Form Quantity]]>=Rebate_Lookup[[#This Row],[MOQ_2]]),2,\nIF(AND(Rebate_Lookup[[#This Row],[Instances]]=3,Rebate_Lookup[[#This Row],[Order Form Quantity]]<Rebate_Lookup[[#This Row],[MOQ_2]]),1,IF(AND(Rebate_Lookup[[#This Row],[Instances]]=3,Rebate_Lookup[[#This Row],[MOQ_2]]<=Rebate_Lookup[[#This Row],[Order Form Quantity]],Rebate_Lookup[[#This Row],[Order Form Quantity]]<Rebate_Lookup[[#This Row],[MOQ_3]]),2,IF(AND(Rebate_Lookup[[#This Row],[Instances]]=3,Rebate_Lookup[[#This Row],[Order Form Quantity]]>=Rebate_Lookup[[#This Row],[MOQ_3]]),3))))))","v":1},{"$f":"COUNTIF('2025 LL-CALCULATOR - UNITS'!A:A,Rebate_Lookup[[#This Row],[SKU CODE]])","v":0},0]
[null,11008351,{"$f":"INDEX(PRICING[Agency/TT],MATCH(Rebate_Lookup[[#This Row],[SKU CODE]],PRICING[SKU],0))","v":"TT"},{"$f":"INDEX(PRICING[Product],MATCH(B31,PRICING[SKU],0))","v":"Blindside® Herbicide "},{"$f":"INDEX(PRICING[Size],MATCH(Rebate_Lookup[[#This Row],[SKU CODE]],PRICING[SKU],0))","v":"0.5 lb"},{"$f":"COUNTIFS(PRICING[SKU],B31)","v":1},1,null,null,{"$f":"SUMIFS(PRICING[Rebate $],PRICING[SKU],Rebate_Lookup[[#This Row],[SKU CODE]],PRICING[Set],1)","v":{"v":22,"d":"$22.00"}},{"$f":"SUMIFS(PRICING[Rebate $],PRICING[SKU],Rebate_Lookup[[#This Row],[SKU CODE]],PRICING[Set],2)","v":0},{"$f":"SUMIFS(PRICING[Rebate $],PRICING[SKU],Rebate_Lookup[[#This Row],[SKU CODE]],PRICING[Set],3)","v":0},{"$f":"SUMIF('2025 LL-CALCULATOR - UNITS'!A:A,Rebate_Lookup[[#This Row],[SKU CODE]],'2025 LL-CALCULATOR - UNITS'!J:J)","v":0},{"$f":"IF(Rebate_Lookup[[#This Row],[Instances]]=1,1,\nIF(AND(Rebate_Lookup[[#This Row],[Instances]]=2,Rebate_Lookup[[#This Row],[Order Form Quantity]]<Rebate_Lookup[[#This Row],[MOQ_2]]),1,IF(AND(Rebate_Lookup[[#This Row],[Instances]]=2,Rebate_Lookup[[#This Row],[Order Form Quantity]]>=Rebate_Lookup[[#This Row],[MOQ_2]]),2,\nIF(AND(Rebate_Lookup[[#This Row],[Instances]]=3,Rebate_Lookup[[#This Row],[Order Form Quantity]]<Rebate_Lookup[[#This Row],[MOQ_2]]),1,IF(AND(Rebate_Lookup[[#This Row],[Instances]]=3,Rebate_Lookup[[#This Row],[MOQ_2]]<=Rebate_Lookup[[#This Row],[Order Form Quantity]],Rebate_Lookup[[#This Row],[Order Form Quantity]]<Rebate_Lookup[[#This Row],[MOQ_3]]),2,IF(AND(Rebate_Lookup[[#This Row],[Instances]]=3,Rebate_Lookup[[#This Row],[Order Form Quantity]]>=Rebate_Lookup[[#This Row],[MOQ_3]]),3))))))","v":1},{"$f":"COUNTIF('2025 LL-CALCULATOR - UNITS'!A:A,Rebate_Lookup[[#This Row],[SKU CODE]])","v":0},0]
[null,79714858,{"$f":"INDEX(PRICING[Agency/TT],MATCH(Rebate_Lookup[[#This Row],[SKU CODE]],PRICING[SKU],0))","v":"A"},{"$f":"INDEX(PRICING[Product],MATCH(B32,PRICING[SKU],0))","v":"Celsius® WG"},{"$f":"INDEX(PRICING[Size],MATCH(Rebate_Lookup[[#This Row],[SKU CODE]],PRICING[SKU],0))","v":"10 oz"},{"$f":"COUNTIFS(PRICING[SKU],B32)","v":3},1,48,96,{"$f":"SUMIFS(PRICING[Rebate $],PRICING[SKU],Rebate_Lookup[[#This Row],[SKU CODE]],PRICING[Set],1)","v":0},{"$f":"SUMIFS(PRICING[Rebate $],PRICING[SKU],Rebate_Lookup[[#This Row],[SKU CODE]],PRICING[Set],2)","v":{"v":12,"d":"$12.00"}},{"$f":"SUMIFS(PRICING[Rebate $],PRICING[SKU],Rebate_Lookup[[#This Row],[SKU CODE]],PRICING[Set],3)","v":{"v":24,"d":"$24.00"}},{"$f":"SUMIF('2025 LL-CALCULATOR - UNITS'!A:A,Rebate_Lookup[[#This Row],[SKU CODE]],'2025 LL-CALCULATOR - UNITS'!J:J)","v":0},{"$f":"IF(Rebate_Lookup[[#This Row],[Instances]]=1,1,\nIF(AND(Rebate_Lookup[[#This Row],[Instances]]=2,Rebate_Lookup[[#This Row],[Order Form Quantity]]<Rebate_Lookup[[#This Row],[MOQ_2]]),1,IF(AND(Rebate_Lookup[[#This Row],[Instances]]=2,Rebate_Lookup[[#This Row],[Order Form Quantity]]>=Rebate_Lookup[[#This Row],[MOQ_2]]),2,\nIF(AND(Rebate_Lookup[[#This Row],[Instances]]=3,Rebate_Lookup[[#This Row],[Order Form Quantity]]<Rebate_Lookup[[#This Row],[MOQ_2]]),1,IF(AND(Rebate_Lookup[[#This Row],[Instances]]=3,Rebate_Lookup[[#This Row],[MOQ_2]]<=Rebate_Lookup[[#This Row],[Order Form Quantity]],Rebate_Lookup[[#This Row],[Order Form Quantity]]<Rebate_Lookup[[#This Row],[MOQ_3]]),2,IF(AND(Rebate_Lookup[[#This Row],[Instances]]=3,Rebate_Lookup[[#This Row],[Order Form Quantity]]>=Rebate_Lookup[[#This Row],[MOQ_3]]),3))))))","v":1},{"$f":"COUNTIF('2025 LL-CALCULATOR - UNITS'!A:A,Rebate_Lookup[[#This Row],[SKU CODE]])","v":1},{"$f":"Rebate_Lookup[[#This Row],[Order Form Quantity]]>=48","v":false}]
[null,"D00000911",{"$f":"INDEX(PRICING[Agency/TT],MATCH(Rebate_Lookup[[#This Row],[SKU CODE]],PRICING[SKU],0))","v":"A"},{"$f":"INDEX(PRICING[Product],MATCH(B33,PRICING[SKU],0))","v":"Celsius® XTRA"},{"$f":"INDEX(PRICING[Size],MATCH(Rebate_Lookup[[#This Row],[SKU CODE]],PRICING[SKU],0))","v":"10 oz"},{"$f":"COUNTIFS(PRICING[SKU],B33)","v":3},1,16,32,{"$f":"SUMIFS(PRICING[Rebate $],PRICING[SKU],Rebate_Lookup[[#This Row],[SKU CODE]],PRICING[Set],1)","v":0},{"$f":"SUMIFS(PRICING[Rebate $],PRICING[SKU],Rebate_Lookup[[#This Row],[SKU CODE]],PRICING[Set],2)","v":{"v":12,"d":"$12.00"}},{"$f":"SUMIFS(PRICING[Rebate $],PRICING[SKU],Rebate_Lookup[[#This Row],[SKU CODE]],PRICING[Set],3)","v":{"v":24,"d":"$24.00"}},{"$f":"SUMIF('2025 LL-CALCULATOR - UNITS'!A:A,Rebate_Lookup[[#This Row],[SKU CODE]],'2025 LL-CALCULATOR - UNITS'!J:J)","v":0},{"$f":"IF(Rebate_Lookup[[#This Row],[Instances]]=1,1,\nIF(AND(Rebate_Lookup[[#This Row],[Instances]]=2,Rebate_Lookup[[#This Row],[Order Form Quantity]]<Rebate_Lookup[[#This Row],[MOQ_2]]),1,IF(AND(Rebate_Lookup[[#This Row],[Instances]]=2,Rebate_Lookup[[#This Row],[Order Form Quantity]]>=Rebate_Lookup[[#This Row],[MOQ_2]]),2,\nIF(AND(Rebate_Lookup[[#This Row],[Instances]]=3,Rebate_Lookup[[#This Row],[Order Form Quantity]]<Rebate_Lookup[[#This Row],[MOQ_2]]),1,IF(AND(Rebate_Lookup[[#This Row],[Instances]]=3,Rebate_Lookup[[#This Row],[MOQ_2]]<=Rebate_Lookup[[#This Row],[Order Form Quantity]],Rebate_Lookup[[#This Row],[Order Form Quantity]]<Rebate_Lookup[[#This Row],[MOQ_3]]),2,IF(AND(Rebate_Lookup[[#This Row],[Instances]]=3,Rebate_Lookup[[#This Row],[Order Form Quantity]]>=Rebate_Lookup[[#This Row],[MOQ_3]]),3))))))","v":1},{"$f":"COUNTIF('2025 LL-CALCULATOR - UNITS'!A:A,Rebate_Lookup[[#This Row],[SKU CODE]])","v":1},{"$f":"Rebate_Lookup[[#This Row],[Order Form Quantity]]>=16","v":false}]
[null,11008357,{"$f":"INDEX(PRICING[Agency/TT],MATCH(Rebate_Lookup[[#This Row],[SKU CODE]],PRICING[SKU],0))","v":"TT"},{"$f":"INDEX(PRICING[Product],MATCH(B34,PRICING[SKU],0))","v":"Dismiss® CA Herbicide"},{"$f":"INDEX(PRICING[Size],MATCH(Rebate_Lookup[[#This Row],[SKU CODE]],PRICING[SKU],0))","v":"6 oz"},{"$f":"COUNTIFS(PRICING[SKU],B34)","v":1},{"$nulls":3},{"$f":"SUMIFS(PRICING[Rebate $],PRICING[SKU],Rebate_Lookup[[#This Row],[SKU CODE]],PRICING[Set],1)","v":{"v":14,"d":"$14.00"}},{"$f":"SUMIFS(PRICING[Rebate $],PRICING[SKU],Rebate_Lookup[[#This Row],[SKU CODE]],PRICING[Set],2)","v":0},{"$f":"SUMIFS(PRICING[Rebate $],PRICING[SKU],Rebate_Lookup[[#This Row],[SKU CODE]],PRICING[Set],3)","v":0},{"$f":"SUMIF('2025 LL-CALCULATOR - UNITS'!A:A,Rebate_Lookup[[#This Row],[SKU CODE]],'2025 LL-CALCULATOR - UNITS'!J:J)","v":0},{"$f":"IF(Rebate_Lookup[[#This Row],[Instances]]=1,1,\nIF(AND(Rebate_Lookup[[#This Row],[Instances]]=2,Rebate_Lookup[[#This Row],[Order Form Quantity]]<Rebate_Lookup[[#This Row],[MOQ_2]]),1,IF(AND(Rebate_Lookup[[#This Row],[Instances]]=2,Rebate_Lookup[[#This Row],[Order Form Quantity]]>=Rebate_Lookup[[#This Row],[MOQ_2]]),2,\nIF(AND(Rebate_Lookup[[#This Row],[Instances]]=3,Rebate_Lookup[[#This Row],[Order Form Quantity]]<Rebate_Lookup[[#This Row],[MOQ_2]]),1,IF(AND(Rebate_Lookup[[#This Row],[Instances]]=3,Rebate_Lookup[[#This Row],[MOQ_2]]<=Rebate_Lookup[[#This Row],[Order Form Quantity]],Rebate_Lookup[[#This Row],[Order Form Quantity]]<Rebate_Lookup[[#This Row],[MOQ_3]]),2,IF(AND(Rebate_Lookup[[#This Row],[Instances]]=3,Rebate_Lookup[[#This Row],[Order Form Quantity]]>=Rebate_Lookup[[#This Row],[MOQ_3]]),3))))))","v":1},{"$f":"COUNTIF('2025 LL-CALCULATOR - UNITS'!A:A,Rebate_Lookup[[#This Row],[SKU CODE]])","v":0},0]
[null,11008409,{"$f":"INDEX(PRICING[Agency/TT],MATCH(Rebate_Lookup[[#This Row],[SKU CODE]],PRICING[SKU],0))","v":"A"},{"$f":"INDEX(PRICING[Product],MATCH(B35,PRICING[SKU],0))","v":"Dismiss® NXT Herbicide"},{"$f":"INDEX(PRICING[Size],MATCH(Rebate_Lookup[[#This Row],[SKU CODE]],PRICING[SKU],0))","v":"10 oz"},{"$f":"COUNTIFS(PRICING[SKU],B35)","v":1},{"$nulls":3},{"$f":"SUMIFS(PRICING[Rebate $],PRICING[SKU],Rebate_Lookup[[#This Row],[SKU CODE]],PRICING[Set],1)","v":{"v":11,"d":"$11.00"}},{"$f":"SUMIFS(PRICING[Rebate $],PRICING[SKU],Rebate_Lookup[[#This Row],[SKU CODE]],PRICING[Set],2)","v":0},{"$f":"SUMIFS(PRICING[Rebate $],PRICING[SKU],Rebate_Lookup[[#This Row],[SKU CODE]],PRICING[Set],3)","v":0},{"$f":"SUMIF('2025 LL-CALCULATOR - UNITS'!A:A,Rebate_Lookup[[#This Row],[SKU CODE]],'2025 LL-CALCULATOR - UNITS'!J:J)","v":0},{"$f":"IF(Rebate_Lookup[[#This Row],[Instances]]=1,1,\nIF(AND(Rebate_Lookup[[#This Row],[Instances]]=2,Rebate_Lookup[[#This Row],[Order Form Quantity]]<Rebate_Lookup[[#This Row],[MOQ_2]]),1,IF(AND(Rebate_Lookup[[#This Row],[Instances]]=2,Rebate_Lookup[[#This Row],[Order Form Quantity]]>=Rebate_Lookup[[#This Row],[MOQ_2]]),2,\nIF(AND(Rebate_Lookup[[#This Row],[Instances]]=3,Rebate_Lookup[[#This Row],[Order Form Quantity]]<Rebate_Lookup[[#This Row],[MOQ_2]]),1,IF(AND(Rebate_Lookup[[#This Row],[Instances]]=3,Rebate_Lookup[[#This Row],[MOQ_2]]<=Rebate_Lookup[[#This Row],[Order Form Quantity]],Rebate_Lookup[[#This Row],[Order Form Quantity]]<Rebate_Lookup[[#This Row],[MOQ_3]]),2,IF(AND(Rebate_Lookup[[#This Row],[Instances]]=3,Rebate_Lookup[[#This Row],[Order Form Quantity]]>=Rebate_Lookup[[#This Row],[MOQ_3]]),3))))))","v":1},{"$f":"COUNTIF('2025 LL-CALCULATOR - UNITS'!A:A,Rebate_Lookup[[#This Row],[SKU CODE]])","v":0},0]
[null,11008589,{"$f":"INDEX(PRICING[Agency/TT],MATCH(Rebate_Lookup[[#This Row],[SKU CODE]],PRICING[SKU],0))","v":"A"},{"$f":"INDEX(PRICING[Product],MATCH(B36,PRICING[SKU],0))","v":"Dismiss® NXT Herbicide"},{"$f":"INDEX(PRICING[Size],MATCH(Rebate_Lookup[[#This Row],[SKU CODE]],PRICING[SKU],0))","v":"60 oz"},{"$f":"COUNTIFS(PRICING[SKU],B36)","v":3},1,16,32,{"$f":"SUMIFS(PRICING[Rebate $],PRICING[SKU],Rebate_Lookup[[#This Row],[SKU CODE]],PRICING[Set],1)","v":0},{"$f":"SUMIFS(PRICING[Rebate $],PRICING[SKU],Rebate_Lookup[[#This Row],[SKU CODE]],PRICING[Set],2)","v":{"v":60,"d":"$60.00"}},{"$f":"SUMIFS(PRICING[Rebate $],PRICING[SKU],Rebate_Lookup[[#This Row],[SKU CODE]],PRICING[Set],3)","v":{"v":150,"d":"$150.00"}},{"$f":"SUMIF('2025 LL-CALCULATOR - UNITS'!A:A,Rebate_Lookup[[#This Row],[SKU CODE]],'2025 LL-CALCULATOR - UNITS'!J:J)","v":0},{"$f":"IF(Rebate_Lookup[[#This Row],[Instances]]=1,1,\nIF(AND(Rebate_Lookup[[#This Row],[Instances]]=2,Rebate_Lookup[[#This Row],[Order Form Quantity]]<Rebate_Lookup[[#This Row],[MOQ_2]]),1,IF(AND(Rebate_Lookup[[#This Row],[Instances]]=2,Rebate_Lookup[[#This Row],[Order Form Quantity]]>=Rebate_Lookup[[#This Row],[MOQ_2]]),2,\nIF(AND(Rebate_Lookup[[#This Row],[Instances]]=3,Rebate_Lookup[[#This Row],[Order Form Quantity]]<Rebate_Lookup[[#This Row],[MOQ_2]]),1,IF(AND(Rebate_Lookup[[#This Row],[Instances]]=3,Rebate_Lookup[[#This Row],[MOQ_2]]<=Rebate_Lookup[[#This Row],[Order Form Quantity]],Rebate_Lookup[[#This Row],[Order Form Quantity]]<Rebate_Lookup[[#This Row],[MOQ_3]]),2,IF(AND(Rebate_Lookup[[#This Row],[Instances]]=3,Rebate_Lookup[[#This Row],[Order Form Quantity]]>=Rebate_Lookup[[#This Row],[MOQ_3]]),3))))))","v":1},{"$f":"COUNTIF('2025 LL-CALCULATOR - UNITS'!A:A,Rebate_Lookup[[#This Row],[SKU CODE]])","v":0},{"$f":"Rebate_Lookup[[#This Row],[Order Form Quantity]]>=16","v":false}]
[null,11008474,{"$f":"INDEX(PRICING[Agency/TT],MATCH(Rebate_Lookup[[#This Row],[SKU CODE]],PRICING[SKU],0))","v":"TT"},{"$f":"INDEX(PRICING[Product],MATCH(B37,PRICING[SKU],0))","v":"Dismiss® South Herbicide"},{"$f":"INDEX(PRICING[Size],MATCH(Rebate_Lookup[[#This Row],[SKU CODE]],PRICING[SKU],0))","v":"1 pint "},{"$f":"COUNTIFS(PRICING[SKU],B37)","v":1},1,null,null,{"$f":"SUMIFS(PRICING[Rebate $],PRICING[SKU],Rebate_Lookup[[#This Row],[SKU CODE]],PRICING[Set],1)","v":{"v":24,"d":"$24.00"}},{"$f":"SUMIFS(PRICING[Rebate $],PRICING[SKU],Rebate_Lookup[[#This Row],[SKU CODE]],PRICING[Set],2)","v":0},{"$f":"SUMIFS(PRICING[Rebate $],PRICING[SKU],Rebate_Lookup[[#This Row],[SKU CODE]],PRICING[Set],3)","v":0},{"$f":"SUMIF('2025 LL-CALCULATOR - UNITS'!A:A,Rebate_Lookup[[#This Row],[SKU CODE]],'2025 LL-CALCULATOR - UNITS'!J:J)","v":0},{"$f":"IF(Rebate_Lookup[[#This Row],[Instances]]=1,1,\nIF(AND(Rebate_Lookup[[#This Row],[Instances]]=2,Rebate_Lookup[[#This Row],[Order Form Quantity]]<Rebate_Lookup[[#This Row],[MOQ_2]]),1,IF(AND(Rebate_Lookup[[#This Row],[Instances]]=2,Rebate_Lookup[[#This Row],[Order Form Quantity]]>=Rebate_Lookup[[#This Row],[MOQ_2]]),2,\nIF(AND(Rebate_Lookup[[#This Row],[Instances]]=3,Rebate_Lookup[[#This Row],[Order Form Quantity]]<Rebate_Lookup[[#This Row],[MOQ_2]]),1,IF(AND(Rebate_Lookup[[#This Row],[Instances]]=3,Rebate_Lookup[[#This Row],[MOQ_2]]<=Rebate_Lookup[[#This Row],[Order Form Quantity]],Rebate_Lookup[[#This Row],[Order Form Quantity]]<Rebate_Lookup[[#This Row],[MOQ_3]]),2,IF(AND(Rebate_Lookup[[#This Row],[Instances]]=3,Rebate_Lookup[[#This Row],[Order Form Quantity]]>=Rebate_Lookup[[#This Row],[MOQ_3]]),3))))))","v":1},{"$f":"COUNTIF('2025 LL-CALCULATOR - UNITS'!A:A,Rebate_Lookup[[#This Row],[SKU CODE]])","v":0},0]
[null,11008475,{"$f":"INDEX(PRICING[Agency/TT],MATCH(Rebate_Lookup[[#This Row],[SKU CODE]],PRICING[SKU],0))","v":"TT"},{"$f":"INDEX(PRICING[Product],MATCH(B38,PRICING[SKU],0))","v":"Dismiss® Turf Herbicide"},{"$f":"INDEX(PRICING[Size],MATCH(Rebate_Lookup[[#This Row],[SKU CODE]],PRICING[SKU],0))","v":"6 oz"},{"$f":"COUNTIFS(PRICING[SKU],B38)","v":1},1,null,null,{"$f":"SUMIFS(PRICING[Rebate $],PRICING[SKU],Rebate_Lookup[[#This Row],[SKU CODE]],PRICING[Set],1)","v":{"v":14,"d":"$14.00"}},{"$f":"SUMIFS(PRICING[Rebate $],PRICING[SKU],Rebate_Lookup[[#This Row],[SKU CODE]],PRICING[Set],2)","v":0},{"$f":"SUMIFS(PRICING[Rebate $],PRICING[SKU],Rebate_Lookup[[#This Row],[SKU CODE]],PRICING[Set],3)","v":0},{"$f":"SUMIF('2025 LL-CALCULATOR - UNITS'!A:A,Rebate_Lookup[[#This Row],[SKU CODE]],'2025 LL-CALCULATOR - UNITS'!J:J)","v":0},{"$f":"IF(Rebate_Lookup[[#This Row],[Instances]]=1,1,\nIF(AND(Rebate_Lookup[[#This Row],[Instances]]=2,Rebate_Lookup[[#This Row],[Order Form Quantity]]<Rebate_Lookup[[#This Row],[MOQ_2]]),1,IF(AND(Rebate_Lookup[[#This Row],[Instances]]=2,Rebate_Lookup[[#This Row],[Order Form Quantity]]>=Rebate_Lookup[[#This Row],[MOQ_2]]),2,\nIF(AND(Rebate_Lookup[[#This Row],[Instances]]=3,Rebate_Lookup[[#This Row],[Order Form Quantity]]<Rebate_Lookup[[#This Row],[MOQ_2]]),1,IF(AND(Rebate_Lookup[[#This Row],[Instances]]=3,Rebate_Lookup[[#This Row],[MOQ_2]]<=Rebate_Lookup[[#This Row],[Order Form Quantity]],Rebate_Lookup[[#This Row],[Order Form Quantity]]<Rebate_Lookup[[#This Row],[MOQ_3]]),2,IF(AND(Rebate_Lookup[[#This Row],[Instances]]=3,Rebate_Lookup[[#This Row],[Order Form Quantity]]>=Rebate_Lookup[[#This Row],[MOQ_3]]),3))))))","v":1},{"$f":"COUNTIF('2025 LL-CALCULATOR - UNITS'!A:A,Rebate_Lookup[[#This Row],[SKU CODE]])","v":0},0]
[null,11008336,{"$f":"INDEX(PRICING[Agency/TT],MATCH(Rebate_Lookup[[#This Row],[SKU CODE]],PRICING[SKU],0))","v":"TT"},{"$f":"INDEX(PRICING[Product],MATCH(B39,PRICING[SKU],0))","v":"Dismiss® Turf Herbicide"},{"$f":"INDEX(PRICING[Size],MATCH(Rebate_Lookup[[#This Row],[SKU CODE]],PRICING[SKU],0))","v":"64 oz"},{"$f":"COUNTIFS(PRICING[SKU],B39)","v":1},1,null,null,{"$f":"SUMIFS(PRICING[Rebate $],PRICING[SKU],Rebate_Lookup[[#This Row],[SKU CODE]],PRICING[Set],1)","v":{"v":40,"d":"$40.00"}},{"$f":"SUMIFS(PRICING[Rebate $],PRICING[SKU],Rebate_Lookup[[#This Row],[SKU CODE]],PRICING[Set],2)","v":0},{"$f":"SUMIFS(PRICING[Rebate $],PRICING[SKU],Rebate_Lookup[[#This Row],[SKU CODE]],PRICING[Set],3)","v":0},{"$f":"SUMIF('2025 LL-CALCULATOR - UNITS'!A:A,Rebate_Lookup[[#This Row],[SKU CODE]],'2025 LL-CALCULATOR - UNITS'!J:J)","v":0},{"$f":"IF(Rebate_Lookup[[#This Row],[Instances]]=1,1,\nIF(AND(Rebate_Lookup[[#This Row],[Instances]]=2,Rebate_Lookup[[#This Row],[Order Form Quantity]]<Rebate_Lookup[[#This Row],[MOQ_2]]),1,IF(AND(Rebate_Lookup[[#This Row],[Instances]]=2,Rebate_Lookup[[#This Row],[Order Form Quantity]]>=Rebate_Lookup[[#This Row],[MOQ_2]]),2,\nIF(AND(Rebate_Lookup[[#This Row],[Instances]]=3,Rebate_Lookup[[#This Row],[Order Form Quantity]]<Rebate_Lookup[[#This Row],[MOQ_2]]),1,IF(AND(Rebate_Lookup[[#This Row],[Instances]]=3,Rebate_Lookup[[#This Row],[MOQ_2]]<=Rebate_Lookup[[#This Row],[Order Form Quantity]],Rebate_Lookup[[#This Row],[Order Form Quantity]]<Rebate_Lookup[[#This Row],[MOQ_3]]),2,IF(AND(Rebate_Lookup[[#This Row],[Instances]]=3,Rebate_Lookup[[#This Row],[Order Form Quantity]]>=Rebate_Lookup[[#This Row],[MOQ_3]]),3))))))","v":1},{"$f":"COUNTIF('2025 LL-CALCULATOR - UNITS'!A:A,Rebate_Lookup[[#This Row],[SKU CODE]])","v":0},0]
[null,11008464,{"$f":"INDEX(PRICING[Agency/TT],MATCH(Rebate_Lookup[[#This Row],[SKU CODE]],PRICING[SKU],0))","v":"A"},{"$f":"INDEX(PRICING[Product],MATCH(B40,PRICING[SKU],0))","v":"Echelon® 4SC Herbicide"},{"$f":"INDEX(PRICING[Size],MATCH(Rebate_Lookup[[#This Row],[SKU CODE]],PRICING[SKU],0))","v":"1 gal"},{"$f":"COUNTIFS(PRICING[SKU],B40)","v":2},1,16,null,{"$f":"SUMIFS(PRICING[Rebate $],PRICING[SKU],Rebate_Lookup[[#This Row],[SKU CODE]],PRICING[Set],1)","v":0},{"$f":"SUMIFS(PRICING[Rebate $],PRICING[SKU],Rebate_Lookup[[#This Row],[SKU CODE]],PRICING[Set],2)","v":{"v":145,"d":"$145.00"}},{"$f":"SUMIFS(PRICING[Rebate $],PRICING[SKU],Rebate_Lookup[[#This Row],[SKU CODE]],PRICING[Set],3)","v":0},{"$f":"SUMIF('2025 LL-CALCULATOR - UNITS'!A:A,Rebate_Lookup[[#This Row],[SKU CODE]],'2025 LL-CALCULATOR - UNITS'!J:J)","v":0},{"$f":"IF(Rebate_Lookup[[#This Row],[Instances]]=1,1,\nIF(AND(Rebate_Lookup[[#This Row],[Instances]]=2,Rebate_Lookup[[#This Row],[Order Form Quantity]]<Rebate_Lookup[[#This Row],[MOQ_2]]),1,IF(AND(Rebate_Lookup[[#This Row],[Instances]]=2,Rebate_Lookup[[#This Row],[Order Form Quantity]]>=Rebate_Lookup[[#This Row],[MOQ_2]]),2,\nIF(AND(Rebate_Lookup[[#This Row],[Instances]]=3,Rebate_Lookup[[#This Row],[Order Form Quantity]]<Rebate_Lookup[[#This Row],[MOQ_2]]),1,IF(AND(Rebate_Lookup[[#This Row],[Instances]]=3,Rebate_Lookup[[#This Row],[MOQ_2]]<=Rebate_Lookup[[#This Row],[Order Form Quantity]],Rebate_Lookup[[#This Row],[Order Form Quantity]]<Rebate_Lookup[[#This Row],[MOQ_3]]),2,IF(AND(Rebate_Lookup[[#This Row],[Instances]]=3,Rebate_Lookup[[#This Row],[Order Form Quantity]]>=Rebate_Lookup[[#This Row],[MOQ_3]]),3))))))","v":1},{"$f":"COUNTIF('2025 LL-CALCULATOR - UNITS'!A:A,Rebate_Lookup[[#This Row],[SKU CODE]])","v":0},{"$f":"Rebate_Lookup[[#This Row],[Order Form Quantity]]>=16","v":false}]
[null,"D00000946",{"$f":"INDEX(PRICING[Agency/TT],MATCH(Rebate_Lookup[[#This Row],[SKU CODE]],PRICING[SKU],0))","v":"A"},{"$f":"INDEX(PRICING[Product],MATCH(B41,PRICING[SKU],0))","v":"Marengo FLO"},{"$f":"INDEX(PRICING[Size],MATCH(Rebate_Lookup[[#This Row],[SKU CODE]],PRICING[SKU],0))","v":"64 oz"},{"$f":"COUNTIFS(PRICING[SKU],B41)","v":3},1,4,16,{"$f":"SUMIFS(PRICING[Rebate $],PRICING[SKU],Rebate_Lookup[[#This Row],[SKU CODE]],PRICING[Set],1)","v":0},{"$f":"SUMIFS(PRICING[Rebate $],PRICING[SKU],Rebate_Lookup[[#This Row],[SKU CODE]],PRICING[Set],2)","v":0},{"$f":"SUMIFS(PRICING[Rebate $],PRICING[SKU],Rebate_Lookup[[#This Row],[SKU CODE]],PRICING[Set],3)","v":0},{"$f":"SUMIF('2025 LL-CALCULATOR - UNITS'!A:A,Rebate_Lookup[[#This Row],[SKU CODE]],'2025 LL-CALCULATOR - UNITS'!J:J)","v":0},{"$f":"IF(Rebate_Lookup[[#This Row],[Instances]]=1,1,\nIF(AND(Rebate_Lookup[[#This Row],[Instances]]=2,Rebate_Lookup[[#This Row],[Order Form Quantity]]<Rebate_Lookup[[#This Row],[MOQ_2]]),1,IF(AND(Rebate_Lookup[[#This Row],[Instances]]=2,Rebate_Lookup[[#This Row],[Order Form Quantity]]>=Rebate_Lookup[[#This Row],[MOQ_2]]),2,\nIF(AND(Rebate_Lookup[[#This Row],[Instances]]=3,Rebate_Lookup[[#This Row],[Order Form Quantity]]<Rebate_Lookup[[#This Row],[MOQ_2]]),1,IF(AND(Rebate_Lookup[[#This Row],[Instances]]=3,Rebate_Lookup[[#This Row],[MOQ_2]]<=Rebate_Lookup[[#This Row],[Order Form Quantity]],Rebate_Lookup[[#This Row],[Order Form Quantity]]<Rebate_Lookup[[#This Row],[MOQ_3]]),2,IF(AND(Rebate_Lookup[[#This Row],[Instances]]=3,Rebate_Lookup[[#This Row],[Order Form Quantity]]>=Rebate_Lookup[[#This Row],[MOQ_3]]),3))))))","v":1},{"$f":"COUNTIF('2025 LL-CALCULATOR - UNITS'!A:A,Rebate_Lookup[[#This Row],[SKU CODE]])","v":0},0]
[null,"D00000945",{"$f":"INDEX(PRICING[Agency/TT],MATCH(Rebate_Lookup[[#This Row],[SKU CODE]],PRICING[SKU],0))","v":"A"},{"$f":"INDEX(PRICING[Product],MATCH(B42,PRICING[SKU],0))","v":"Marengo G"},{"$f":"INDEX(PRICING[Size],MATCH(Rebate_Lookup[[#This Row],[SKU CODE]],PRICING[SKU],0))","v":"50 lb"},{"$f":"COUNTIFS(PRICING[SKU],B42)","v":3},1,40,120,{"$f":"SUMIFS(PRICING[Rebate $],PRICING[SKU],Rebate_Lookup[[#This Row],[SKU CODE]],PRICING[Set],1)","v":0},{"$f":"SUMIFS(PRICING[Rebate $],PRICING[SKU],Rebate_Lookup[[#This Row],[SKU CODE]],PRICING[Set],2)","v":0},{"$f":"SUMIFS(PRICING[Rebate $],PRICING[SKU],Rebate_Lookup[[#This Row],[SKU CODE]],PRICING[Set],3)","v":0},{"$f":"SUMIF('2025 LL-CALCULATOR - UNITS'!A:A,Rebate_Lookup[[#This Row],[SKU CODE]],'2025 LL-CALCULATOR - UNITS'!J:J)","v":0},{"$f":"IF(Rebate_Lookup[[#This Row],[Instances]]=1,1,\nIF(AND(Rebate_Lookup[[#This Row],[Instances]]=2,Rebate_Lookup[[#This Row],[Order Form Quantity]]<Rebate_Lookup[[#This Row],[MOQ_2]]),1,IF(AND(Rebate_Lookup[[#This Row],[Instances]]=2,Rebate_Lookup[[#This Row],[Order Form Quantity]]>=Rebate_Lookup[[#This Row],[MOQ_2]]),2,\nIF(AND(Rebate_Lookup[[#This Row],[Instances]]=3,Rebate_Lookup[[#This Row],[Order Form Quantity]]<Rebate_Lookup[[#This Row],[MOQ_2]]),1,IF(AND(Rebate_Lookup[[#This Row],[Instances]]=3,Rebate_Lookup[[#This Row],[MOQ_2]]<=Rebate_Lookup[[#This Row],[Order Form Quantity]],Rebate_Lookup[[#This Row],[Order Form Quantity]]<Rebate_Lookup[[#This Row],[MOQ_3]]),2,IF(AND(Rebate_Lookup[[#This Row],[Instances]]=3,Rebate_Lookup[[#This Row],[Order Form Quantity]]>=Rebate_Lookup[[#This Row],[MOQ_3]]),3))))))","v":1},{"$f":"COUNTIF('2025 LL-CALCULATOR - UNITS'!A:A,Rebate_Lookup[[#This Row],[SKU CODE]])","v":0},0]
[null,86215578,{"$f":"INDEX(PRICING[Agency/TT],MATCH(Rebate_Lookup[[#This Row],[SKU CODE]],PRICING[SKU],0))","v":"TT"},{"$f":"INDEX(PRICING[Product],MATCH(B43,PRICING[SKU],0))","v":"Prograss EC"},{"$f":"INDEX(PRICING[Size],MATCH(Rebate_Lookup[[#This Row],[SKU CODE]],PRICING[SKU],0))","v":"2.5 gal "},{"$f":"COUNTIFS(PRICING[SKU],B43)","v":1},1,null,null,{"$f":"SUMIFS(PRICING[Rebate $],PRICING[SKU],Rebate_Lookup[[#This Row],[SKU CODE]],PRICING[Set],1)","v":{"v":22,"d":"$22.00"}},{"$f":"SUMIFS(PRICING[Rebate $],PRICING[SKU],Rebate_Lookup[[#This Row],[SKU CODE]],PRICING[Set],2)","v":0},{"$f":"SUMIFS(PRICING[Rebate $],PRICING[SKU],Rebate_Lookup[[#This Row],[SKU CODE]],PRICING[Set],3)","v":0},{"$f":"SUMIF('2025 LL-CALCULATOR - UNITS'!A:A,Rebate_Lookup[[#This Row],[SKU CODE]],'2025 LL-CALCULATOR - UNITS'!J:J)","v":0},{"$f":"IF(Rebate_Lookup[[#This Row],[Instances]]=1,1,\nIF(AND(Rebate_Lookup[[#This Row],[Instances]]=2,Rebate_Lookup[[#This Row],[Order Form Quantity]]<Rebate_Lookup[[#This Row],[MOQ_2]]),1,IF(AND(Rebate_Lookup[[#This Row],[Instances]]=2,Rebate_Lookup[[#This Row],[Order Form Quantity]]>=Rebate_Lookup[[#This Row],[MOQ_2]]),2,\nIF(AND(Rebate_Lookup[[#This Row],[Instances]]=3,Rebate_Lookup[[#This Row],[Order Form Quantity]]<Rebate_Lookup[[#This Row],[MOQ_2]]),1,IF(AND(Rebate_Lookup[[#This Row],[Instances]]=3,Rebate_Lookup[[#This Row],[MOQ_2]]<=Rebate_Lookup[[#This Row],[Order Form Quantity]],Rebate_Lookup[[#This Row],[Order Form Quantity]]<Rebate_Lookup[[#This Row],[MOQ_3]]),2,IF(AND(Rebate_Lookup[[#This Row],[Instances]]=3,Rebate_Lookup[[#This Row],[Order Form Quantity]]>=Rebate_Lookup[[#This Row],[MOQ_3]]),3))))))","v":1},{"$f":"COUNTIF('2025 LL-CALCULATOR - UNITS'!A:A,Rebate_Lookup[[#This Row],[SKU CODE]])","v":0},0]
[null,"D00000913",{"$f":"INDEX(PRICING[Agency/TT],MATCH(Rebate_Lookup[[#This Row],[SKU CODE]],PRICING[SKU],0))","v":"TT"},{"$f":"INDEX(PRICING[Product],MATCH(B44,PRICING[SKU],0))","v":"Proxy"},{"$f":"INDEX(PRICING[Size],MATCH(Rebate_Lookup[[#This Row],[SKU CODE]],PRICING[SKU],0))","v":"2.5 gal "},{"$f":"COUNTIFS(PRICING[SKU],B44)","v":1},1,null,null,{"$f":"SUMIFS(PRICING[Rebate $],PRICING[SKU],Rebate_Lookup[[#This Row],[SKU CODE]],PRICING[Set],1)","v":0},{"$f":"SUMIFS(PRICING[Rebate $],PRICING[SKU],Rebate_Lookup[[#This Row],[SKU CODE]],PRICING[Set],2)","v":0},{"$f":"SUMIFS(PRICING[Rebate $],PRICING[SKU],Rebate_Lookup[[#This Row],[SKU CODE]],PRICING[Set],3)","v":0},{"$f":"SUMIF('2025 LL-CALCULATOR - UNITS'!A:A,Rebate_Lookup[[#This Row],[SKU CODE]],'2025 LL-CALCULATOR - UNITS'!J:J)","v":0},{"$f":"IF(Rebate_Lookup[[#This Row],[Instances]]=1,1,\nIF(AND(Rebate_Lookup[[#This Row],[Instances]]=2,Rebate_Lookup[[#This Row],[Order Form Quantity]]<Rebate_Lookup[[#This Row],[MOQ_2]]),1,IF(AND(Rebate_Lookup[[#This Row],[Instances]]=2,Rebate_Lookup[[#This Row],[Order Form Quantity]]>=Rebate_Lookup[[#This Row],[MOQ_2]]),2,\nIF(AND(Rebate_Lookup[[#This Row],[Instances]]=3,Rebate_Lookup[[#This Row],[Order Form Quantity]]<Rebate_Lookup[[#This Row],[MOQ_2]]),1,IF(AND(Rebate_Lookup[[#This Row],[Instances]]=3,Rebate_Lookup[[#This Row],[MOQ_2]]<=Rebate_Lookup[[#This Row],[Order Form Quantity]],Rebate_Lookup[[#This Row],[Order Form Quantity]]<Rebate_Lookup[[#This Row],[MOQ_3]]),2,IF(AND(Rebate_Lookup[[#This Row],[Instances]]=3,Rebate_Lookup[[#This Row],[Order Form Quantity]]>=Rebate_Lookup[[#This Row],[MOQ_3]]),3))))))","v":1},{"$f":"COUNTIF('2025 LL-CALCULATOR - UNITS'!A:A,Rebate_Lookup[[#This Row],[SKU CODE]])","v":0},0]
[null,11008447,{"$f":"INDEX(PRICING[Agency/TT],MATCH(Rebate_Lookup[[#This Row],[SKU CODE]],PRICING[SKU],0))","v":"TT"},{"$f":"INDEX(PRICING[Product],MATCH(B45,PRICING[SKU],0))","v":"QuickSilver® Herbicide "},{"$f":"INDEX(PRICING[Size],MATCH(Rebate_Lookup[[#This Row],[SKU CODE]],PRICING[SKU],0))","v":"8 oz"},{"$f":"COUNTIFS(PRICING[SKU],B45)","v":1},1,null,null,{"$f":"SUMIFS(PRICING[Rebate $],PRICING[SKU],Rebate_Lookup[[#This Row],[SKU CODE]],PRICING[Set],1)","v":{"v":20,"d":"$20.00"}},{"$f":"SUMIFS(PRICING[Rebate $],PRICING[SKU],Rebate_Lookup[[#This Row],[SKU CODE]],PRICING[Set],2)","v":0},{"$f":"SUMIFS(PRICING[Rebate $],PRICING[SKU],Rebate_Lookup[[#This Row],[SKU CODE]],PRICING[Set],3)","v":0},{"$f":"SUMIF('2025 LL-CALCULATOR - UNITS'!A:A,Rebate_Lookup[[#This Row],[SKU CODE]],'2025 LL-CALCULATOR - UNITS'!J:J)","v":0},{"$f":"IF(Rebate_Lookup[[#This Row],[Instances]]=1,1,\nIF(AND(Rebate_Lookup[[#This Row],[Instances]]=2,Rebate_Lookup[[#This Row],[Order Form Quantity]]<Rebate_Lookup[[#This Row],[MOQ_2]]),1,IF(AND(Rebate_Lookup[[#This Row],[Instances]]=2,Rebate_Lookup[[#This Row],[Order Form Quantity]]>=Rebate_Lookup[[#This Row],[MOQ_2]]),2,\nIF(AND(Rebate_Lookup[[#This Row],[Instances]]=3,Rebate_Lookup[[#This Row],[Order Form Quantity]]<Rebate_Lookup[[#This Row],[MOQ_2]]),1,IF(AND(Rebate_Lookup[[#This Row],[Instances]]=3,Rebate_Lookup[[#This Row],[MOQ_2]]<=Rebate_Lookup[[#This Row],[Order Form Quantity]],Rebate_Lookup[[#This Row],[Order Form Quantity]]<Rebate_Lookup[[#This Row],[MOQ_3]]),2,IF(AND(Rebate_Lookup[[#This Row],[Instances]]=3,Rebate_Lookup[[#This Row],[Order Form Quantity]]>=Rebate_Lookup[[#This Row],[MOQ_3]]),3))))))","v":1},{"$f":"COUNTIF('2025 LL-CALCULATOR - UNITS'!A:A,Rebate_Lookup[[#This Row],[SKU CODE]])","v":0},0]
[null,79545312,{"$f":"INDEX(PRICING[Agency/TT],MATCH(Rebate_Lookup[[#This Row],[SKU CODE]],PRICING[SKU],0))","v":"A"},{"$f":"INDEX(PRICING[Product],MATCH(B46,PRICING[SKU],0))","v":"Revolver®"},{"$f":"INDEX(PRICING[Size],MATCH(Rebate_Lookup[[#This Row],[SKU CODE]],PRICING[SKU],0))","v":"87 fl oz"},{"$f":"COUNTIFS(PRICING[SKU],B46)","v":3},1,16,32,{"$f":"SUMIFS(PRICING[Rebate $],PRICING[SKU],Rebate_Lookup[[#This Row],[SKU CODE]],PRICING[Set],1)","v":0},{"$f":"SUMIFS(PRICING[Rebate $],PRICING[SKU],Rebate_Lookup[[#This Row],[SKU CODE]],PRICING[Set],2)","v":{"v":50,"d":"$50.00"}},{"$f":"SUMIFS(PRICING[Rebate $],PRICING[SKU],Rebate_Lookup[[#This Row],[SKU CODE]],PRICING[Set],3)","v":{"v":100,"d":"$100.00"}},{"$f":"SUMIF('2025 LL-CALCULATOR - UNITS'!A:A,Rebate_Lookup[[#This Row],[SKU CODE]],'2025 LL-CALCULATOR - UNITS'!J:J)","v":0},{"$f":"IF(Rebate_Lookup[[#This Row],[Instances]]=1,1,\nIF(AND(Rebate_Lookup[[#This Row],[Instances]]=2,Rebate_Lookup[[#This Row],[Order Form Quantity]]<Rebate_Lookup[[#This Row],[MOQ_2]]),1,IF(AND(Rebate_Lookup[[#This Row],[Instances]]=2,Rebate_Lookup[[#This Row],[Order Form Quantity]]>=Rebate_Lookup[[#This Row],[MOQ_2]]),2,\nIF(AND(Rebate_Lookup[[#This Row],[Instances]]=3,Rebate_Lookup[[#This Row],[Order Form Quantity]]<Rebate_Lookup[[#This Row],[MOQ_2]]),1,IF(AND(Rebate_Lookup[[#This Row],[Instances]]=3,Rebate_Lookup[[#This Row],[MOQ_2]]<=Rebate_Lookup[[#This Row],[Order Form Quantity]],Rebate_Lookup[[#This Row],[Order Form Quantity]]<Rebate_Lookup[[#This Row],[MOQ_3]]),2,IF(AND(Rebate_Lookup[[#This Row],[Instances]]=3,Rebate_Lookup[[#This Row],[Order Form Quantity]]>=Rebate_Lookup[[#This Row],[MOQ_3]]),3))))))","v":1},{"$f":"COUNTIF('2025 LL-CALCULATOR - UNITS'!A:A,Rebate_Lookup[[#This Row],[SKU CODE]])","v":1},{"$f":"Rebate_Lookup[[#This Row],[Order Form Quantity]]>=16","v":false}]
[null,79850980,{"$f":"INDEX(PRICING[Agency/TT],MATCH(Rebate_Lookup[[#This Row],[SKU CODE]],PRICING[SKU],0))","v":"TT"},{"$f":"INDEX(PRICING[Product],MATCH(B47,PRICING[SKU],0))","v":"Revolver®"},{"$f":"INDEX(PRICING[Size],MATCH(Rebate_Lookup[[#This Row],[SKU CODE]],PRICING[SKU],0))","v":"32 fl oz"},{"$f":"COUNTIFS(PRICING[SKU],B47)","v":1},1,null,null,{"$f":"SUMIFS(PRICING[Rebate $],PRICING[SKU],Rebate_Lookup[[#This Row],[SKU CODE]],PRICING[Set],1)","v":{"v":21,"d":"$21.00"}},{"$f":"SUMIFS(PRICING[Rebate $],PRICING[SKU],Rebate_Lookup[[#This Row],[SKU CODE]],PRICING[Set],2)","v":0},{"$f":"SUMIFS(PRICING[Rebate $],PRICING[SKU],Rebate_Lookup[[#This Row],[SKU CODE]],PRICING[Set],3)","v":0},{"$f":"SUMIF('2025 LL-CALCULATOR - UNITS'!A:A,Rebate_Lookup[[#This Row],[SKU CODE]],'2025 LL-CALCULATOR - UNITS'!J:J)","v":0},{"$f":"IF(Rebate_Lookup[[#This Row],[Instances]]=1,1,\nIF(AND(Rebate_Lookup[[#This Row],[Instances]]=2,Rebate_Lookup[[#This Row],[Order Form Quantity]]<Rebate_Lookup[[#This Row],[MOQ_2]]),1,IF(AND(Rebate_Lookup[[#This Row],[Instances]]=2,Rebate_Lookup[[#This Row],[Order Form Quantity]]>=Rebate_Lookup[[#This Row],[MOQ_2]]),2,\nIF(AND(Rebate_Lookup[[#This Row],[Instances]]=3,Rebate_Lookup[[#This Row],[Order Form Quantity]]<Rebate_Lookup[[#This Row],[MOQ_2]]),1,IF(AND(Rebate_Lookup[[#This Row],[Instances]]=3,Rebate_Lookup[[#This Row],[MOQ_2]]<=Rebate_Lookup[[#This Row],[Order Form Quantity]],Rebate_Lookup[[#This Row],[Order Form Quantity]]<Rebate_Lookup[[#This Row],[MOQ_3]]),2,IF(AND(Rebate_Lookup[[#This Row],[Instances]]=3,Rebate_Lookup[[#This Row],[Order Form Quantity]]>=Rebate_Lookup[[#This Row],[MOQ_3]]),3))))))","v":1},{"$f":"COUNTIF('2025 LL-CALCULATOR - UNITS'!A:A,Rebate_Lookup[[#This Row],[SKU CODE]])","v":0},0]
[null,"D00000986",{"$f":"INDEX(PRICING[Agency/TT],MATCH(Rebate_Lookup[[#This Row],[SKU CODE]],PRICING[SKU],0))","v":"A"},{"$f":"INDEX(PRICING[Product],MATCH(B48,PRICING[SKU],0))","v":"Ronstar® FLO "},{"$f":"INDEX(PRICING[Size],MATCH(Rebate_Lookup[[#This Row],[SKU CODE]],PRICING[SKU],0))","v":"2.5 gal"},{"$f":"COUNTIFS(PRICING[SKU],B48)","v":3},"MANUAL",null,null,{"$f":"SUMIFS(PRICING[Rebate $],PRICING[SKU],Rebate_Lookup[[#This Row],[SKU CODE]],PRICING[Set],1)","v":0},{"$f":"SUMIFS(PRICING[Rebate $],PRICING[SKU],Rebate_Lookup[[#This Row],[SKU CODE]],PRICING[Set],2)","v":0},{"$f":"SUMIFS(PRICING[Rebate $],PRICING[SKU],Rebate_Lookup[[#This Row],[SKU CODE]],PRICING[Set],3)","v":0},{"$f":"SUMIF('2025 LL-CALCULATOR - UNITS'!A:A,Rebate_Lookup[[#This Row],[SKU CODE]],'2025 LL-CALCULATOR - UNITS'!J:J)","v":0},{"$f":"IF(Rebate_Lookup[[#This Row],[Instances]]=1,1,\nIF(AND(Rebate_Lookup[[#This Row],[Instances]]=2,Rebate_Lookup[[#This Row],[Order Form Quantity]]<Rebate_Lookup[[#This Row],[MOQ_2]]),1,IF(AND(Rebate_Lookup[[#This Row],[Instances]]=2,Rebate_Lookup[[#This Row],[Order Form Quantity]]>=Rebate_Lookup[[#This Row],[MOQ_2]]),2,\nIF(AND(Rebate_Lookup[[#This Row],[Instances]]=3,Rebate_Lookup[[#This Row],[Order Form Quantity]]<Rebate_Lookup[[#This Row],[MOQ_2]]),1,IF(AND(Rebate_Lookup[[#This Row],[Instances]]=3,Rebate_Lookup[[#This Row],[MOQ_2]]<=Rebate_Lookup[[#This Row],[Order Form Quantity]],Rebate_Lookup[[#This Row],[Order Form Quantity]]<Rebate_Lookup[[#This Row],[MOQ_3]]),2,IF(AND(Rebate_Lookup[[#This Row],[Instances]]=3,Rebate_Lookup[[#This Row],[Order Form Quantity]]>=Rebate_Lookup[[#This Row],[MOQ_3]]),3))))))","v":3},{"$f":"COUNTIF('2025 LL-CALCULATOR - UNITS'!A:A,Rebate_Lookup[[#This Row],[SKU CODE]])","v":0},{"$f":"Rebate_Lookup[[#This Row],[Order Form Quantity]]>=12","v":false}]
[null,427709,{"$f":"INDEX(PRICING[Agency/TT],MATCH(Rebate_Lookup[[#This Row],[SKU CODE]],PRICING[SKU],0))","v":"TT"},{"$f":"INDEX(PRICING[Product],MATCH(B49,PRICING[SKU],0))","v":"Sencor 75"},{"$f":"INDEX(PRICING[Size],MATCH(Rebate_Lookup[[#This Row],[SKU CODE]],PRICING[SKU],0))","v":"5 lb"},{"$f":"COUNTIFS(PRICING[SKU],B49)","v":1},1,null,null,{"$f":"SUMIFS(PRICING[Rebate $],PRICING[SKU],Rebate_Lookup[[#This Row],[SKU CODE]],PRICING[Set],1)","v":0},{"$f":"SUMIFS(PRICING[Rebate $],PRICING[SKU],Rebate_Lookup[[#This Row],[SKU CODE]],PRICING[Set],2)","v":0},{"$f":"SUMIFS(PRICING[Rebate $],PRICING[SKU],Rebate_Lookup[[#This Row],[SKU CODE]],PRICING[Set],3)","v":0},{"$f":"SUMIF('2025 LL-CALCULATOR - UNITS'!A:A,Rebate_Lookup[[#This Row],[SKU CODE]],'2025 LL-CALCULATOR - UNITS'!J:J)","v":0},{"$f":"IF(Rebate_Lookup[[#This Row],[Instances]]=1,1,\nIF(AND(Rebate_Lookup[[#This Row],[Instances]]=2,Rebate_Lookup[[#This Row],[Order Form Quantity]]<Rebate_Lookup[[#This Row],[MOQ_2]]),1,IF(AND(Rebate_Lookup[[#This Row],[Instances]]=2,Rebate_Lookup[[#This Row],[Order Form Quantity]]>=Rebate_Lookup[[#This Row],[MOQ_2]]),2,\nIF(AND(Rebate_Lookup[[#This Row],[Instances]]=3,Rebate_Lookup[[#This Row],[Order Form Quantity]]<Rebate_Lookup[[#This Row],[MOQ_2]]),1,IF(AND(Rebate_Lookup[[#This Row],[Instances]]=3,Rebate_Lookup[[#This Row],[MOQ_2]]<=Rebate_Lookup[[#This Row],[Order Form Quantity]],Rebate_Lookup[[#This Row],[Order Form Quantity]]<Rebate_Lookup[[#This Row],[MOQ_3]]),2,IF(AND(Rebate_Lookup[[#This Row],[Instances]]=3,Rebate_Lookup[[#This Row],[Order Form Quantity]]>=Rebate_Lookup[[#This Row],[MOQ_3]]),3))))))","v":1},{"$f":"COUNTIF('2025 LL-CALCULATOR - UNITS'!A:A,Rebate_Lookup[[#This Row],[SKU CODE]])","v":0},0]
[null,11008522,{"$f":"INDEX(PRICING[Agency/TT],MATCH(Rebate_Lookup[[#This Row],[SKU CODE]],PRICING[SKU],0))","v":"A"},{"$f":"INDEX(PRICING[Product],MATCH(B50,PRICING[SKU],0))","v":"Solitare® Herbicide "},{"$f":"INDEX(PRICING[Size],MATCH(Rebate_Lookup[[#This Row],[SKU CODE]],PRICING[SKU],0))","v":"4 lb"},{"$f":"COUNTIFS(PRICING[SKU],B50)","v":3},1,16,32,{"$f":"SUMIFS(PRICING[Rebate $],PRICING[SKU],Rebate_Lookup[[#This Row],[SKU CODE]],PRICING[Set],1)","v":0},{"$f":"SUMIFS(PRICING[Rebate $],PRICING[SKU],Rebate_Lookup[[#This Row],[SKU CODE]],PRICING[Set],2)","v":{"v":40,"d":"$40.00"}},{"$f":"SUMIFS(PRICING[Rebate $],PRICING[SKU],Rebate_Lookup[[#This Row],[SKU CODE]],PRICING[Set],3)","v":{"v":85,"d":"$85.00"}},{"$f":"SUMIF('2025 LL-CALCULATOR - UNITS'!A:A,Rebate_Lookup[[#This Row],[SKU CODE]],'2025 LL-CALCULATOR - UNITS'!J:J)","v":0},{"$f":"IF(Rebate_Lookup[[#This Row],[Instances]]=1,1,\nIF(AND(Rebate_Lookup[[#This Row],[Instances]]=2,Rebate_Lookup[[#This Row],[Order Form Quantity]]<Rebate_Lookup[[#This Row],[MOQ_2]]),1,IF(AND(Rebate_Lookup[[#This Row],[Instances]]=2,Rebate_Lookup[[#This Row],[Order Form Quantity]]>=Rebate_Lookup[[#This Row],[MOQ_2]]),2,\nIF(AND(Rebate_Lookup[[#This Row],[Instances]]=3,Rebate_Lookup[[#This Row],[Order Form Quantity]]<Rebate_Lookup[[#This Row],[MOQ_2]]),1,IF(AND(Rebate_Lookup[[#This Row],[Instances]]=3,Rebate_Lookup[[#This Row],[MOQ_2]]<=Rebate_Lookup[[#This Row],[Order Form Quantity]],Rebate_Lookup[[#This Row],[Order Form Quantity]]<Rebate_Lookup[[#This Row],[MOQ_3]]),2,IF(AND(Rebate_Lookup[[#This Row],[Instances]]=3,Rebate_Lookup[[#This Row],[Order Form Quantity]]>=Rebate_Lookup[[#This Row],[MOQ_3]]),3))))))","v":1},{"$f":"COUNTIF('2025 LL-CALCULATOR - UNITS'!A:A,Rebate_Lookup[[#This Row],[SKU CODE]])","v":0},{"$f":"Rebate_Lookup[[#This Row],[Order Form Quantity]]>=16","v":false}]
[null,11008482,{"$f":"INDEX(PRICING[Agency/TT],MATCH(Rebate_Lookup[[#This Row],[SKU CODE]],PRICING[SKU],0))","v":"TT"},{"$f":"INDEX(PRICING[Product],MATCH(B51,PRICING[SKU],0))","v":"Solitare® Herbicide "},{"$f":"INDEX(PRICING[Size],MATCH(Rebate_Lookup[[#This Row],[SKU CODE]],PRICING[SKU],0))","v":"1 lb "},{"$f":"COUNTIFS(PRICING[SKU],B51)","v":1},1,null,null,{"$f":"SUMIFS(PRICING[Rebate $],PRICING[SKU],Rebate_Lookup[[#This Row],[SKU CODE]],PRICING[Set],1)","v":{"v":15,"d":"$15.00"}},{"$f":"SUMIFS(PRICING[Rebate $],PRICING[SKU],Rebate_Lookup[[#This Row],[SKU CODE]],PRICING[Set],2)","v":0},{"$f":"SUMIFS(PRICING[Rebate $],PRICING[SKU],Rebate_Lookup[[#This Row],[SKU CODE]],PRICING[Set],3)","v":0},{"$f":"SUMIF('2025 LL-CALCULATOR - UNITS'!A:A,Rebate_Lookup[[#This Row],[SKU CODE]],'2025 LL-CALCULATOR - UNITS'!J:J)","v":0},{"$f":"IF(Rebate_Lookup[[#This Row],[Instances]]=1,1,\nIF(AND(Rebate_Lookup[[#This Row],[Instances]]=2,Rebate_Lookup[[#This Row],[Order Form Quantity]]<Rebate_Lookup[[#This Row],[MOQ_2]]),1,IF(AND(Rebate_Lookup[[#This Row],[Instances]]=2,Rebate_Lookup[[#This Row],[Order Form Quantity]]>=Rebate_Lookup[[#This Row],[MOQ_2]]),2,\nIF(AND(Rebate_Lookup[[#This Row],[Instances]]=3,Rebate_Lookup[[#This Row],[Order Form Quantity]]<Rebate_Lookup[[#This Row],[MOQ_2]]),1,IF(AND(Rebate_Lookup[[#This Row],[Instances]]=3,Rebate_Lookup[[#This Row],[MOQ_2]]<=Rebate_Lookup[[#This Row],[Order Form Quantity]],Rebate_Lookup[[#This Row],[Order Form Quantity]]<Rebate_Lookup[[#This Row],[MOQ_3]]),2,IF(AND(Rebate_Lookup[[#This Row],[Instances]]=3,Rebate_Lookup[[#This Row],[Order Form Quantity]]>=Rebate_Lookup[[#This Row],[MOQ_3]]),3))))))","v":1},{"$f":"COUNTIF('2025 LL-CALCULATOR - UNITS'!A:A,Rebate_Lookup[[#This Row],[SKU CODE]])","v":0},0]
[null,11013862,{"$f":"INDEX(PRICING[Agency/TT],MATCH(Rebate_Lookup[[#This Row],[SKU CODE]],PRICING[SKU],0))","v":"A"},{"$f":"INDEX(PRICING[Product],MATCH(B52,PRICING[SKU],0))","v":"Solitare® WSL Herbicide"},{"$f":"INDEX(PRICING[Size],MATCH(Rebate_Lookup[[#This Row],[SKU CODE]],PRICING[SKU],0))","v":"2.5 gal"},{"$f":"COUNTIFS(PRICING[SKU],B52)","v":3},1,24,48,{"$f":"SUMIFS(PRICING[Rebate $],PRICING[SKU],Rebate_Lookup[[#This Row],[SKU CODE]],PRICING[Set],1)","v":0},{"$f":"SUMIFS(PRICING[Rebate $],PRICING[SKU],Rebate_Lookup[[#This Row],[SKU CODE]],PRICING[Set],2)","v":{"v":40,"d":"$40.00"}},{"$f":"SUMIFS(PRICING[Rebate $],PRICING[SKU],Rebate_Lookup[[#This Row],[SKU CODE]],PRICING[Set],3)","v":{"v":85,"d":"$85.00"}},{"$f":"SUMIF('2025 LL-CALCULATOR - UNITS'!A:A,Rebate_Lookup[[#This Row],[SKU CODE]],'2025 LL-CALCULATOR - UNITS'!J:J)","v":0},{"$f":"IF(Rebate_Lookup[[#This Row],[Instances]]=1,1,\nIF(AND(Rebate_Lookup[[#This Row],[Instances]]=2,Rebate_Lookup[[#This Row],[Order Form Quantity]]<Rebate_Lookup[[#This Row],[MOQ_2]]),1,IF(AND(Rebate_Lookup[[#This Row],[Instances]]=2,Rebate_Lookup[[#This Row],[Order Form Quantity]]>=Rebate_Lookup[[#This Row],[MOQ_2]]),2,\nIF(AND(Rebate_Lookup[[#This Row],[Instances]]=3,Rebate_Lookup[[#This Row],[Order Form Quantity]]<Rebate_Lookup[[#This Row],[MOQ_2]]),1,IF(AND(Rebate_Lookup[[#This Row],[Instances]]=3,Rebate_Lookup[[#This Row],[MOQ_2]]<=Rebate_Lookup[[#This Row],[Order Form Quantity]],Rebate_Lookup[[#This Row],[Order Form Quantity]]<Rebate_Lookup[[#This Row],[MOQ_3]]),2,IF(AND(Rebate_Lookup[[#This Row],[Instances]]=3,Rebate_Lookup[[#This Row],[Order Form Quantity]]>=Rebate_Lookup[[#This Row],[MOQ_3]]),3))))))","v":1},{"$f":"COUNTIF('2025 LL-CALCULATOR - UNITS'!A:A,Rebate_Lookup[[#This Row],[SKU CODE]])","v":1},{"$f":"Rebate_Lookup[[#This Row],[Order Form Quantity]]>=7","v":false}]
[null,11008369,{"$f":"INDEX(PRICING[Agency/TT],MATCH(Rebate_Lookup[[#This Row],[SKU CODE]],PRICING[SKU],0))","v":"TT"},{"$f":"INDEX(PRICING[Product],MATCH(B53,PRICING[SKU],0))","v":"Solitare® WSL Herbicide"},{"$f":"INDEX(PRICING[Size],MATCH(Rebate_Lookup[[#This Row],[SKU CODE]],PRICING[SKU],0))","v":"0.75 gal "},{"$f":"COUNTIFS(PRICING[SKU],B53)","v":1},1,null,null,{"$f":"SUMIFS(PRICING[Rebate $],PRICING[SKU],Rebate_Lookup[[#This Row],[SKU CODE]],PRICING[Set],1)","v":{"v":12,"d":"$12.00"}},{"$f":"SUMIFS(PRICING[Rebate $],PRICING[SKU],Rebate_Lookup[[#This Row],[SKU CODE]],PRICING[Set],2)","v":0},{"$f":"SUMIFS(PRICING[Rebate $],PRICING[SKU],Rebate_Lookup[[#This Row],[SKU CODE]],PRICING[Set],3)","v":0},{"$f":"SUMIF('2025 LL-CALCULATOR - UNITS'!A:A,Rebate_Lookup[[#This Row],[SKU CODE]],'2025 LL-CALCULATOR - UNITS'!J:J)","v":0},{"$f":"IF(Rebate_Lookup[[#This Row],[Instances]]=1,1,\nIF(AND(Rebate_Lookup[[#This Row],[Instances]]=2,Rebate_Lookup[[#This Row],[Order Form Quantity]]<Rebate_Lookup[[#This Row],[MOQ_2]]),1,IF(AND(Rebate_Lookup[[#This Row],[Instances]]=2,Rebate_Lookup[[#This Row],[Order Form Quantity]]>=Rebate_Lookup[[#This Row],[MOQ_2]]),2,\nIF(AND(Rebate_Lookup[[#This Row],[Instances]]=3,Rebate_Lookup[[#This Row],[Order Form Quantity]]<Rebate_Lookup[[#This Row],[MOQ_2]]),1,IF(AND(Rebate_Lookup[[#This Row],[Instances]]=3,Rebate_Lookup[[#This Row],[MOQ_2]]<=Rebate_Lookup[[#This Row],[Order Form Quantity]],Rebate_Lookup[[#This Row],[Order Form Quantity]]<Rebate_Lookup[[#This Row],[MOQ_3]]),2,IF(AND(Rebate_Lookup[[#This Row],[Instances]]=3,Rebate_Lookup[[#This Row],[Order Form Quantity]]>=Rebate_Lookup[[#This Row],[MOQ_3]]),3))))))","v":1},{"$f":"COUNTIF('2025 LL-CALCULATOR - UNITS'!A:A,Rebate_Lookup[[#This Row],[SKU CODE]])","v":0},0]
[null,"D00000990",{"$f":"INDEX(PRICING[Agency/TT],MATCH(Rebate_Lookup[[#This Row],[SKU CODE]],PRICING[SKU],0))","v":"A"},{"$f":"INDEX(PRICING[Product],MATCH(B54,PRICING[SKU],0))","v":"Specticle® FLO "},{"$f":"INDEX(PRICING[Size],MATCH(Rebate_Lookup[[#This Row],[SKU CODE]],PRICING[SKU],0))","v":"1 gal"},{"$f":"COUNTIFS(PRICING[SKU],B54)","v":6},"MANUAL",null,null,{"$f":"SUMIFS(PRICING[Rebate $],PRICING[SKU],Rebate_Lookup[[#This Row],[SKU CODE]],PRICING[Set],1)","v":0},{"$f":"SUMIFS(PRICING[Rebate $],PRICING[SKU],Rebate_Lookup[[#This Row],[SKU CODE]],PRICING[Set],2)","v":{"v":38,"d":"$38.00"}},{"$f":"SUMIFS(PRICING[Rebate $],PRICING[SKU],Rebate_Lookup[[#This Row],[SKU CODE]],PRICING[Set],3)","v":{"v":32,"d":"$32.00"}},{"$f":"SUMIF('2025 LL-CALCULATOR - UNITS'!A:A,Rebate_Lookup[[#This Row],[SKU CODE]],'2025 LL-CALCULATOR - UNITS'!J:J)","v":0},{"$f":"IF(Rebate_Lookup[[#This Row],[Instances]]=1,1,\nIF(AND(Rebate_Lookup[[#This Row],[Instances]]=2,Rebate_Lookup[[#This Row],[Order Form Quantity]]<Rebate_Lookup[[#This Row],[MOQ_2]]),1,IF(AND(Rebate_Lookup[[#This Row],[Instances]]=2,Rebate_Lookup[[#This Row],[Order Form Quantity]]>=Rebate_Lookup[[#This Row],[MOQ_2]]),2,\nIF(AND(Rebate_Lookup[[#This Row],[Instances]]=3,Rebate_Lookup[[#This Row],[Order Form Quantity]]<Rebate_Lookup[[#This Row],[MOQ_2]]),1,IF(AND(Rebate_Lookup[[#This Row],[Instances]]=3,Rebate_Lookup[[#This Row],[MOQ_2]]<=Rebate_Lookup[[#This Row],[Order Form Quantity]],Rebate_Lookup[[#This Row],[Order Form Quantity]]<Rebate_Lookup[[#This Row],[MOQ_3]]),2,IF(AND(Rebate_Lookup[[#This Row],[Instances]]=3,Rebate_Lookup[[#This Row],[Order Form Quantity]]>=Rebate_Lookup[[#This Row],[MOQ_3]]),3,0))))))","v":0},{"$f":"COUNTIF('2025 LL-CALCULATOR - UNITS'!A:A,Rebate_Lookup[[#This Row],[SKU CODE]])","v":6},{"$f":"Rebate_Lookup[[#This Row],[Order Form Quantity]]>=7","v":false}]
[null,"D00000992",{"$f":"INDEX(PRICING[Agency/TT],MATCH(Rebate_Lookup[[#This Row],[SKU CODE]],PRICING[SKU],0))","v":"A"},{"$f":"INDEX(PRICING[Product],MATCH(B55,PRICING[SKU],0))","v":"Specticle® G"},{"$f":"INDEX(PRICING[Size],MATCH(Rebate_Lookup[[#This Row],[SKU CODE]],PRICING[SKU],0))","v":"50 lb"},{"$f":"COUNTIFS(PRICING[SKU],B55)","v":3},1,20,200,{"$f":"SUMIFS(PRICING[Rebate $],PRICING[SKU],Rebate_Lookup[[#This Row],[SKU CODE]],PRICING[Set],1)","v":0},{"v":8,"d":"$8.00"},{"v":18,"d":"$18.00"},{"$f":"SUMIF('2025 LL-CALCULATOR - UNITS'!A:A,Rebate_Lookup[[#This Row],[SKU CODE]],'2025 LL-CALCULATOR - UNITS'!J:J)","v":0},{"$f":"IF(Rebate_Lookup[[#This Row],[Instances]]=1,1,\nIF(AND(Rebate_Lookup[[#This Row],[Instances]]=2,Rebate_Lookup[[#This Row],[Order Form Quantity]]<Rebate_Lookup[[#This Row],[MOQ_2]]),1,IF(AND(Rebate_Lookup[[#This Row],[Instances]]=2,Rebate_Lookup[[#This Row],[Order Form Quantity]]>=Rebate_Lookup[[#This Row],[MOQ_2]]),2,\nIF(AND(Rebate_Lookup[[#This Row],[Instances]]=3,Rebate_Lookup[[#This Row],[Order Form Quantity]]<Rebate_Lookup[[#This Row],[MOQ_2]]),1,IF(AND(Rebate_Lookup[[#This Row],[Instances]]=3,Rebate_Lookup[[#This Row],[MOQ_2]]<=Rebate_Lookup[[#This Row],[Order Form Quantity]],Rebate_Lookup[[#This Row],[Order Form Quantity]]<Rebate_Lookup[[#This Row],[MOQ_3]]),2,IF(AND(Rebate_Lookup[[#This Row],[Instances]]=3,Rebate_Lookup[[#This Row],[Order Form Quantity]]>=Rebate_Lookup[[#This Row],[MOQ_3]]),3))))))","v":1},{"$f":"COUNTIF('2025 LL-CALCULATOR - UNITS'!A:A,Rebate_Lookup[[#This Row],[SKU CODE]])","v":1},{"$f":"Rebate_Lookup[[#This Row],[Order Form Quantity]]>=20","v":false}]
[null,"D00000675",{"$f":"INDEX(PRICING[Agency/TT],MATCH(Rebate_Lookup[[#This Row],[SKU CODE]],PRICING[SKU],0))","v":"TT"},{"$f":"INDEX(PRICING[Product],MATCH(B56,PRICING[SKU],0))","v":"Terradex C&B"},{"$f":"INDEX(PRICING[Size],MATCH(Rebate_Lookup[[#This Row],[SKU CODE]],PRICING[SKU],0))","v":"1 gal "},{"$f":"COUNTIFS(PRICING[SKU],B56)","v":1},1,null,null,{"v":15,"d":"$15.00"},{"$f":"SUMIFS(PRICING[Rebate $],PRICING[SKU],Rebate_Lookup[[#This Row],[SKU CODE]],PRICING[Set],2)","v":0},{"$f":"SUMIFS(PRICING[Rebate $],PRICING[SKU],Rebate_Lookup[[#This Row],[SKU CODE]],PRICING[Set],3)","v":0},{"$f":"SUMIF('2025 LL-CALCULATOR - UNITS'!A:A,Rebate_Lookup[[#This Row],[SKU CODE]],'2025 LL-CALCULATOR - UNITS'!J:J)","v":0},{"$f":"IF(Rebate_Lookup[[#This Row],[Instances]]=1,1,\nIF(AND(Rebate_Lookup[[#This Row],[Instances]]=2,Rebate_Lookup[[#This Row],[Order Form Quantity]]<Rebate_Lookup[[#This Row],[MOQ_2]]),1,IF(AND(Rebate_Lookup[[#This Row],[Instances]]=2,Rebate_Lookup[[#This Row],[Order Form Quantity]]>=Rebate_Lookup[[#This Row],[MOQ_2]]),2,\nIF(AND(Rebate_Lookup[[#This Row],[Instances]]=3,Rebate_Lookup[[#This Row],[Order Form Quantity]]<Rebate_Lookup[[#This Row],[MOQ_2]]),1,IF(AND(Rebate_Lookup[[#This Row],[Instances]]=3,Rebate_Lookup[[#This Row],[MOQ_2]]<=Rebate_Lookup[[#This Row],[Order Form Quantity]],Rebate_Lookup[[#This Row],[Order Form Quantity]]<Rebate_Lookup[[#This Row],[MOQ_3]]),2,IF(AND(Rebate_Lookup[[#This Row],[Instances]]=3,Rebate_Lookup[[#This Row],[Order Form Quantity]]>=Rebate_Lookup[[#This Row],[MOQ_3]]),3))))))","v":1},{"$f":"COUNTIF('2025 LL-CALCULATOR - UNITS'!A:A,Rebate_Lookup[[#This Row],[SKU CODE]])","v":0},0]
[null,"D00000674",{"$f":"INDEX(PRICING[Agency/TT],MATCH(Rebate_Lookup[[#This Row],[SKU CODE]],PRICING[SKU],0))","v":"TT"},{"$f":"INDEX(PRICING[Product],MATCH(B57,PRICING[SKU],0))","v":"Terradex C&B"},{"$f":"INDEX(PRICING[Size],MATCH(Rebate_Lookup[[#This Row],[SKU CODE]],PRICING[SKU],0))","v":"2.5 gal "},{"$f":"COUNTIFS(PRICING[SKU],B57)","v":1},1,null,null,{"v":37.5,"d":"$37.50"},{"$f":"SUMIFS(PRICING[Rebate $],PRICING[SKU],Rebate_Lookup[[#This Row],[SKU CODE]],PRICING[Set],2)","v":0},{"$f":"SUMIFS(PRICING[Rebate $],PRICING[SKU],Rebate_Lookup[[#This Row],[SKU CODE]],PRICING[Set],3)","v":0},{"$f":"SUMIF('2025 LL-CALCULATOR - UNITS'!A:A,Rebate_Lookup[[#This Row],[SKU CODE]],'2025 LL-CALCULATOR - UNITS'!J:J)","v":0},{"$f":"IF(Rebate_Lookup[[#This Row],[Instances]]=1,1,\nIF(AND(Rebate_Lookup[[#This Row],[Instances]]=2,Rebate_Lookup[[#This Row],[Order Form Quantity]]<Rebate_Lookup[[#This Row],[MOQ_2]]),1,IF(AND(Rebate_Lookup[[#This Row],[Instances]]=2,Rebate_Lookup[[#This Row],[Order Form Quantity]]>=Rebate_Lookup[[#This Row],[MOQ_2]]),2,\nIF(AND(Rebate_Lookup[[#This Row],[Instances]]=3,Rebate_Lookup[[#This Row],[Order Form Quantity]]<Rebate_Lookup[[#This Row],[MOQ_2]]),1,IF(AND(Rebate_Lookup[[#This Row],[Instances]]=3,Rebate_Lookup[[#This Row],[MOQ_2]]<=Rebate_Lookup[[#This Row],[Order Form Quantity]],Rebate_Lookup[[#This Row],[Order Form Quantity]]<Rebate_Lookup[[#This Row],[MOQ_3]]),2,IF(AND(Rebate_Lookup[[#This Row],[Instances]]=3,Rebate_Lookup[[#This Row],[Order Form Quantity]]>=Rebate_Lookup[[#This Row],[MOQ_3]]),3))))))","v":1},{"$f":"COUNTIF('2025 LL-CALCULATOR - UNITS'!A:A,Rebate_Lookup[[#This Row],[SKU CODE]])","v":0},0]
[null,"D00000669",{"$f":"INDEX(PRICING[Agency/TT],MATCH(Rebate_Lookup[[#This Row],[SKU CODE]],PRICING[SKU],0))","v":"TT"},{"$f":"INDEX(PRICING[Product],MATCH(B58,PRICING[SKU],0))","v":"Terradex Power Premix"},{"$f":"INDEX(PRICING[Size],MATCH(Rebate_Lookup[[#This Row],[SKU CODE]],PRICING[SKU],0))","v":"2.5 gal "},{"$f":"COUNTIFS(PRICING[SKU],B58)","v":1},1,null,null,{"v":37.5,"d":"$37.50"},{"$f":"SUMIFS(PRICING[Rebate $],PRICING[SKU],Rebate_Lookup[[#This Row],[SKU CODE]],PRICING[Set],2)","v":0},{"$f":"SUMIFS(PRICING[Rebate $],PRICING[SKU],Rebate_Lookup[[#This Row],[SKU CODE]],PRICING[Set],3)","v":0},{"$f":"SUMIF('2025 LL-CALCULATOR - UNITS'!A:A,Rebate_Lookup[[#This Row],[SKU CODE]],'2025 LL-CALCULATOR - UNITS'!J:J)","v":0},{"$f":"IF(Rebate_Lookup[[#This Row],[Instances]]=1,1,\nIF(AND(Rebate_Lookup[[#This Row],[Instances]]=2,Rebate_Lookup[[#This Row],[Order Form Quantity]]<Rebate_Lookup[[#This Row],[MOQ_2]]),1,IF(AND(Rebate_Lookup[[#This Row],[Instances]]=2,Rebate_Lookup[[#This Row],[Order Form Quantity]]>=Rebate_Lookup[[#This Row],[MOQ_2]]),2,\nIF(AND(Rebate_Lookup[[#This Row],[Instances]]=3,Rebate_Lookup[[#This Row],[Order Form Quantity]]<Rebate_Lookup[[#This Row],[MOQ_2]]),1,IF(AND(Rebate_Lookup[[#This Row],[Instances]]=3,Rebate_Lookup[[#This Row],[MOQ_2]]<=Rebate_Lookup[[#This Row],[Order Form Quantity]],Rebate_Lookup[[#This Row],[Order Form Quantity]]<Rebate_Lookup[[#This Row],[MOQ_3]]),2,IF(AND(Rebate_Lookup[[#This Row],[Instances]]=3,Rebate_Lookup[[#This Row],[Order Form Quantity]]>=Rebate_Lookup[[#This Row],[MOQ_3]]),3))))))","v":1},{"$f":"COUNTIF('2025 LL-CALCULATOR - UNITS'!A:A,Rebate_Lookup[[#This Row],[SKU CODE]])","v":0},0]
[null,"D00000670",{"$f":"INDEX(PRICING[Agency/TT],MATCH(Rebate_Lookup[[#This Row],[SKU CODE]],PRICING[SKU],0))","v":"TT"},{"$f":"INDEX(PRICING[Product],MATCH(B59,PRICING[SKU],0))","v":"Terradex Power Premix"},{"$f":"INDEX(PRICING[Size],MATCH(Rebate_Lookup[[#This Row],[SKU CODE]],PRICING[SKU],0))","v":"30 gal"},{"$f":"COUNTIFS(PRICING[SKU],B59)","v":1},1,null,null,{"v":450,"d":"$450.00"},{"$f":"SUMIFS(PRICING[Rebate $],PRICING[SKU],Rebate_Lookup[[#This Row],[SKU CODE]],PRICING[Set],2)","v":0},{"$f":"SUMIFS(PRICING[Rebate $],PRICING[SKU],Rebate_Lookup[[#This Row],[SKU CODE]],PRICING[Set],3)","v":0},{"$f":"SUMIF('2025 LL-CALCULATOR - UNITS'!A:A,Rebate_Lookup[[#This Row],[SKU CODE]],'2025 LL-CALCULATOR - UNITS'!J:J)","v":0},{"$f":"IF(Rebate_Lookup[[#This Row],[Instances]]=1,1,\nIF(AND(Rebate_Lookup[[#This Row],[Instances]]=2,Rebate_Lookup[[#This Row],[Order Form Quantity]]<Rebate_Lookup[[#This Row],[MOQ_2]]),1,IF(AND(Rebate_Lookup[[#This Row],[Instances]]=2,Rebate_Lookup[[#This Row],[Order Form Quantity]]>=Rebate_Lookup[[#This Row],[MOQ_2]]),2,\nIF(AND(Rebate_Lookup[[#This Row],[Instances]]=3,Rebate_Lookup[[#This Row],[Order Form Quantity]]<Rebate_Lookup[[#This Row],[MOQ_2]]),1,IF(AND(Rebate_Lookup[[#This Row],[Instances]]=3,Rebate_Lookup[[#This Row],[MOQ_2]]<=Rebate_Lookup[[#This Row],[Order Form Quantity]],Rebate_Lookup[[#This Row],[Order Form Quantity]]<Rebate_Lookup[[#This Row],[MOQ_3]]),2,IF(AND(Rebate_Lookup[[#This Row],[Instances]]=3,Rebate_Lookup[[#This Row],[Order Form Quantity]]>=Rebate_Lookup[[#This Row],[MOQ_3]]),3))))))","v":1},{"$f":"COUNTIF('2025 LL-CALCULATOR - UNITS'!A:A,Rebate_Lookup[[#This Row],[SKU CODE]])","v":0},0]
[null,"D00000673",{"$f":"INDEX(PRICING[Agency/TT],MATCH(Rebate_Lookup[[#This Row],[SKU CODE]],PRICING[SKU],0))","v":"TT"},{"$f":"INDEX(PRICING[Product],MATCH(B60,PRICING[SKU],0))","v":"Terradex Quick Strike"},{"$f":"INDEX(PRICING[Size],MATCH(Rebate_Lookup[[#This Row],[SKU CODE]],PRICING[SKU],0))","v":"1 gal "},{"$f":"COUNTIFS(PRICING[SKU],B60)","v":1},1,null,null,{"v":15,"d":"$15.00"},{"$f":"SUMIFS(PRICING[Rebate $],PRICING[SKU],Rebate_Lookup[[#This Row],[SKU CODE]],PRICING[Set],2)","v":0},{"$f":"SUMIFS(PRICING[Rebate $],PRICING[SKU],Rebate_Lookup[[#This Row],[SKU CODE]],PRICING[Set],3)","v":0},{"$f":"SUMIF('2025 LL-CALCULATOR - UNITS'!A:A,Rebate_Lookup[[#This Row],[SKU CODE]],'2025 LL-CALCULATOR - UNITS'!J:J)","v":0},{"$f":"IF(Rebate_Lookup[[#This Row],[Instances]]=1,1,\nIF(AND(Rebate_Lookup[[#This Row],[Instances]]=2,Rebate_Lookup[[#This Row],[Order Form Quantity]]<Rebate_Lookup[[#This Row],[MOQ_2]]),1,IF(AND(Rebate_Lookup[[#This Row],[Instances]]=2,Rebate_Lookup[[#This Row],[Order Form Quantity]]>=Rebate_Lookup[[#This Row],[MOQ_2]]),2,\nIF(AND(Rebate_Lookup[[#This Row],[Instances]]=3,Rebate_Lookup[[#This Row],[Order Form Quantity]]<Rebate_Lookup[[#This Row],[MOQ_2]]),1,IF(AND(Rebate_Lookup[[#This Row],[Instances]]=3,Rebate_Lookup[[#This Row],[MOQ_2]]<=Rebate_Lookup[[#This Row],[Order Form Quantity]],Rebate_Lookup[[#This Row],[Order Form Quantity]]<Rebate_Lookup[[#This Row],[MOQ_3]]),2,IF(AND(Rebate_Lookup[[#This Row],[Instances]]=3,Rebate_Lookup[[#This Row],[Order Form Quantity]]>=Rebate_Lookup[[#This Row],[MOQ_3]]),3))))))","v":1},{"$f":"COUNTIF('2025 LL-CALCULATOR - UNITS'!A:A,Rebate_Lookup[[#This Row],[SKU CODE]])","v":0},0]
[null,"D00000672",{"$f":"INDEX(PRICING[Agency/TT],MATCH(Rebate_Lookup[[#This Row],[SKU CODE]],PRICING[SKU],0))","v":"TT"},{"$f":"INDEX(PRICING[Product],MATCH(B61,PRICING[SKU],0))","v":"Terradex Quick Strike"},{"$f":"INDEX(PRICING[Size],MATCH(Rebate_Lookup[[#This Row],[SKU CODE]],PRICING[SKU],0))","v":"2.5 gal "},{"$f":"COUNTIFS(PRICING[SKU],B61)","v":1},1,null,null,{"v":37.5,"d":"$37.50"},{"$f":"SUMIFS(PRICING[Rebate $],PRICING[SKU],Rebate_Lookup[[#This Row],[SKU CODE]],PRICING[Set],2)","v":0},{"$f":"SUMIFS(PRICING[Rebate $],PRICING[SKU],Rebate_Lookup[[#This Row],[SKU CODE]],PRICING[Set],3)","v":0},{"$f":"SUMIF('2025 LL-CALCULATOR - UNITS'!A:A,Rebate_Lookup[[#This Row],[SKU CODE]],'2025 LL-CALCULATOR - UNITS'!J:J)","v":0},{"$f":"IF(Rebate_Lookup[[#This Row],[Instances]]=1,1,\nIF(AND(Rebate_Lookup[[#This Row],[Instances]]=2,Rebate_Lookup[[#This Row],[Order Form Quantity]]<Rebate_Lookup[[#This Row],[MOQ_2]]),1,IF(AND(Rebate_Lookup[[#This Row],[Instances]]=2,Rebate_Lookup[[#This Row],[Order Form Quantity]]>=Rebate_Lookup[[#This Row],[MOQ_2]]),2,\nIF(AND(Rebate_Lookup[[#This Row],[Instances]]=3,Rebate_Lookup[[#This Row],[Order Form Quantity]]<Rebate_Lookup[[#This Row],[MOQ_2]]),1,IF(AND(Rebate_Lookup[[#This Row],[Instances]]=3,Rebate_Lookup[[#This Row],[MOQ_2]]<=Rebate_Lookup[[#This Row],[Order Form Quantity]],Rebate_Lookup[[#This Row],[Order Form Quantity]]<Rebate_Lookup[[#This Row],[MOQ_3]]),2,IF(AND(Rebate_Lookup[[#This Row],[Instances]]=3,Rebate_Lookup[[#This Row],[Order Form Quantity]]>=Rebate_Lookup[[#This Row],[MOQ_3]]),3))))))","v":1},{"$f":"COUNTIF('2025 LL-CALCULATOR - UNITS'!A:A,Rebate_Lookup[[#This Row],[SKU CODE]])","v":0},0]
[null,"D00000671",{"$f":"INDEX(PRICING[Agency/TT],MATCH(Rebate_Lookup[[#This Row],[SKU CODE]],PRICING[SKU],0))","v":"TT"},{"$f":"INDEX(PRICING[Product],MATCH(B62,PRICING[SKU],0))","v":"Terradex Quick Strike"},{"$f":"INDEX(PRICING[Size],MATCH(Rebate_Lookup[[#This Row],[SKU CODE]],PRICING[SKU],0))","v":"30 gal"},{"$f":"COUNTIFS(PRICING[SKU],B62)","v":1},1,null,null,{"v":450,"d":"$450.00"},{"$f":"SUMIFS(PRICING[Rebate $],PRICING[SKU],Rebate_Lookup[[#This Row],[SKU CODE]],PRICING[Set],2)","v":0},{"$f":"SUMIFS(PRICING[Rebate $],PRICING[SKU],Rebate_Lookup[[#This Row],[SKU CODE]],PRICING[Set],3)","v":0},{"$f":"SUMIF('2025 LL-CALCULATOR - UNITS'!A:A,Rebate_Lookup[[#This Row],[SKU CODE]],'2025 LL-CALCULATOR - UNITS'!J:J)","v":0},{"$f":"IF(Rebate_Lookup[[#This Row],[Instances]]=1,1,\nIF(AND(Rebate_Lookup[[#This Row],[Instances]]=2,Rebate_Lookup[[#This Row],[Order Form Quantity]]<Rebate_Lookup[[#This Row],[MOQ_2]]),1,IF(AND(Rebate_Lookup[[#This Row],[Instances]]=2,Rebate_Lookup[[#This Row],[Order Form Quantity]]>=Rebate_Lookup[[#This Row],[MOQ_2]]),2,\nIF(AND(Rebate_Lookup[[#This Row],[Instances]]=3,Rebate_Lookup[[#This Row],[Order Form Quantity]]<Rebate_Lookup[[#This Row],[MOQ_2]]),1,IF(AND(Rebate_Lookup[[#This Row],[Instances]]=3,Rebate_Lookup[[#This Row],[MOQ_2]]<=Rebate_Lookup[[#This Row],[Order Form Quantity]],Rebate_Lookup[[#This Row],[Order Form Quantity]]<Rebate_Lookup[[#This Row],[MOQ_3]]),2,IF(AND(Rebate_Lookup[[#This Row],[Instances]]=3,Rebate_Lookup[[#This Row],[Order Form Quantity]]>=Rebate_Lookup[[#This Row],[MOQ_3]]),3))))))","v":1},{"$f":"COUNTIF('2025 LL-CALCULATOR - UNITS'!A:A,Rebate_Lookup[[#This Row],[SKU CODE]])","v":0},0]
[null,81746257,{"$f":"INDEX(PRICING[Agency/TT],MATCH(Rebate_Lookup[[#This Row],[SKU CODE]],PRICING[SKU],0))","v":"A"},{"$f":"INDEX(PRICING[Product],MATCH(B63,PRICING[SKU],0))","v":"Tribute® Total"},{"$f":"INDEX(PRICING[Size],MATCH(Rebate_Lookup[[#This Row],[SKU CODE]],PRICING[SKU],0))","v":"6 oz"},{"$f":"COUNTIFS(PRICING[SKU],B63)","v":3},1,24,48,{"$f":"SUMIFS(PRICING[Rebate $],PRICING[SKU],Rebate_Lookup[[#This Row],[SKU CODE]],PRICING[Set],1)","v":0},{"v":30,"d":"$30.00"},{"v":50,"d":"$50.00"},{"$f":"SUMIF('2025 LL-CALCULATOR - UNITS'!A:A,Rebate_Lookup[[#This Row],[SKU CODE]],'2025 LL-CALCULATOR - UNITS'!J:J)","v":0},{"$f":"IF(Rebate_Lookup[[#This Row],[Instances]]=1,1,\nIF(AND(Rebate_Lookup[[#This Row],[Instances]]=2,Rebate_Lookup[[#This Row],[Order Form Quantity]]<Rebate_Lookup[[#This Row],[MOQ_2]]),1,IF(AND(Rebate_Lookup[[#This Row],[Instances]]=2,Rebate_Lookup[[#This Row],[Order Form Quantity]]>=Rebate_Lookup[[#This Row],[MOQ_2]]),2,\nIF(AND(Rebate_Lookup[[#This Row],[Instances]]=3,Rebate_Lookup[[#This Row],[Order Form Quantity]]<Rebate_Lookup[[#This Row],[MOQ_2]]),1,IF(AND(Rebate_Lookup[[#This Row],[Instances]]=3,Rebate_Lookup[[#This Row],[MOQ_2]]<=Rebate_Lookup[[#This Row],[Order Form Quantity]],Rebate_Lookup[[#This Row],[Order Form Quantity]]<Rebate_Lookup[[#This Row],[MOQ_3]]),2,IF(AND(Rebate_Lookup[[#This Row],[Instances]]=3,Rebate_Lookup[[#This Row],[Order Form Quantity]]>=Rebate_Lookup[[#This Row],[MOQ_3]]),3))))))","v":1},{"$f":"COUNTIF('2025 LL-CALCULATOR - UNITS'!A:A,Rebate_Lookup[[#This Row],[SKU CODE]])","v":1},{"$f":"Rebate_Lookup[[#This Row],[Order Form Quantity]]>=24","v":false}]
[null,11008590,{"$f":"INDEX(PRICING[Agency/TT],MATCH(Rebate_Lookup[[#This Row],[SKU CODE]],PRICING[SKU],0))","v":"A"},{"$f":"INDEX(PRICING[Product],MATCH(B64,PRICING[SKU],0))","v":"Xonerate® 2SC Herbicide"},{"$f":"INDEX(PRICING[Size],MATCH(Rebate_Lookup[[#This Row],[SKU CODE]],PRICING[SKU],0))","v":"12 oz"},{"$f":"COUNTIFS(PRICING[SKU],B64)","v":2},1,24,null,{"$f":"SUMIFS(PRICING[Rebate $],PRICING[SKU],Rebate_Lookup[[#This Row],[SKU CODE]],PRICING[Set],1)","v":0},{"v":50,"d":"$50.00"},{"$f":"SUMIFS(PRICING[Rebate $],PRICING[SKU],Rebate_Lookup[[#This Row],[SKU CODE]],PRICING[Set],3)","v":0},{"$f":"SUMIF('2025 LL-CALCULATOR - UNITS'!A:A,Rebate_Lookup[[#This Row],[SKU CODE]],'2025 LL-CALCULATOR - UNITS'!J:J)","v":0},{"$f":"IF(Rebate_Lookup[[#This Row],[Instances]]=1,1,\nIF(AND(Rebate_Lookup[[#This Row],[Instances]]=2,Rebate_Lookup[[#This Row],[Order Form Quantity]]<Rebate_Lookup[[#This Row],[MOQ_2]]),1,IF(AND(Rebate_Lookup[[#This Row],[Instances]]=2,Rebate_Lookup[[#This Row],[Order Form Quantity]]>=Rebate_Lookup[[#This Row],[MOQ_2]]),2,\nIF(AND(Rebate_Lookup[[#This Row],[Instances]]=3,Rebate_Lookup[[#This Row],[Order Form Quantity]]<Rebate_Lookup[[#This Row],[MOQ_2]]),1,IF(AND(Rebate_Lookup[[#This Row],[Instances]]=3,Rebate_Lookup[[#This Row],[MOQ_2]]<=Rebate_Lookup[[#This Row],[Order Form Quantity]],Rebate_Lookup[[#This Row],[Order Form Quantity]]<Rebate_Lookup[[#This Row],[MOQ_3]]),2,IF(AND(Rebate_Lookup[[#This Row],[Instances]]=3,Rebate_Lookup[[#This Row],[Order Form Quantity]]>=Rebate_Lookup[[#This Row],[MOQ_3]]),3))))))","v":1},{"$f":"COUNTIF('2025 LL-CALCULATOR - UNITS'!A:A,Rebate_Lookup[[#This Row],[SKU CODE]])","v":0},{"$f":"Rebate_Lookup[[#This Row],[Order Form Quantity]]>=24","v":false}]
[null,"D00000903",{"$f":"INDEX(PRICING[Agency/TT],MATCH(Rebate_Lookup[[#This Row],[SKU CODE]],PRICING[SKU],0))","v":"A"},{"$f":"INDEX(PRICING[Product],MATCH(B65,PRICING[SKU],0))","v":"Altus®"},{"$f":"INDEX(PRICING[Size],MATCH(Rebate_Lookup[[#This Row],[SKU CODE]],PRICING[SKU],0))","v":"64 oz"},{"$f":"COUNTIFS(PRICING[SKU],B65)","v":3},1,16,32,{"$f":"SUMIFS(PRICING[Rebate $],PRICING[SKU],Rebate_Lookup[[#This Row],[SKU CODE]],PRICING[Set],1)","v":0},{"$f":"SUMIFS(PRICING[Rebate $],PRICING[SKU],Rebate_Lookup[[#This Row],[SKU CODE]],PRICING[Set],2)","v":0},{"$f":"SUMIFS(PRICING[Rebate $],PRICING[SKU],Rebate_Lookup[[#This Row],[SKU CODE]],PRICING[Set],3)","v":0},{"$f":"SUMIF('2025 LL-CALCULATOR - UNITS'!A:A,Rebate_Lookup[[#This Row],[SKU CODE]],'2025 LL-CALCULATOR - UNITS'!J:J)","v":0},{"$f":"IF(Rebate_Lookup[[#This Row],[Instances]]=1,1,\nIF(AND(Rebate_Lookup[[#This Row],[Instances]]=2,Rebate_Lookup[[#This Row],[Order Form Quantity]]<Rebate_Lookup[[#This Row],[MOQ_2]]),1,IF(AND(Rebate_Lookup[[#This Row],[Instances]]=2,Rebate_Lookup[[#This Row],[Order Form Quantity]]>=Rebate_Lookup[[#This Row],[MOQ_2]]),2,\nIF(AND(Rebate_Lookup[[#This Row],[Instances]]=3,Rebate_Lookup[[#This Row],[Order Form Quantity]]<Rebate_Lookup[[#This Row],[MOQ_2]]),1,IF(AND(Rebate_Lookup[[#This Row],[Instances]]=3,Rebate_Lookup[[#This Row],[MOQ_2]]<=Rebate_Lookup[[#This Row],[Order Form Quantity]],Rebate_Lookup[[#This Row],[Order Form Quantity]]<Rebate_Lookup[[#This Row],[MOQ_3]]),2,IF(AND(Rebate_Lookup[[#This Row],[Instances]]=3,Rebate_Lookup[[#This Row],[Order Form Quantity]]>=Rebate_Lookup[[#This Row],[MOQ_3]]),3))))))","v":1},{"$f":"COUNTIF('2025 LL-CALCULATOR - UNITS'!A:A,Rebate_Lookup[[#This Row],[SKU CODE]])","v":0},{"$f":"Rebate_Lookup[[#This Row],[Order Form Quantity]]>=16","v":false}]
[null,11008513,{"$f":"INDEX(PRICING[Agency/TT],MATCH(Rebate_Lookup[[#This Row],[SKU CODE]],PRICING[SKU],0))","v":"TT"},{"$f":"INDEX(PRICING[Product],MATCH(B66,PRICING[SKU],0))","v":"Aria® Insecticide  "},{"$f":"INDEX(PRICING[Size],MATCH(Rebate_Lookup[[#This Row],[SKU CODE]],PRICING[SKU],0))","v":"160 g"},{"$f":"COUNTIFS(PRICING[SKU],B66)","v":1},1,8,null,null,{"v":21,"d":"$21.00"},{"$f":"SUMIFS(PRICING[Rebate $],PRICING[SKU],Rebate_Lookup[[#This Row],[SKU CODE]],PRICING[Set],3)","v":0},{"$f":"SUMIF('2025 LL-CALCULATOR - UNITS'!A:A,Rebate_Lookup[[#This Row],[SKU CODE]],'2025 LL-CALCULATOR - UNITS'!J:J)","v":0},{"$f":"IF(Rebate_Lookup[[#This Row],[Instances]]=1,1,\nIF(AND(Rebate_Lookup[[#This Row],[Instances]]=2,Rebate_Lookup[[#This Row],[Order Form Quantity]]<Rebate_Lookup[[#This Row],[MOQ_2]]),1,IF(AND(Rebate_Lookup[[#This Row],[Instances]]=2,Rebate_Lookup[[#This Row],[Order Form Quantity]]>=Rebate_Lookup[[#This Row],[MOQ_2]]),2,\nIF(AND(Rebate_Lookup[[#This Row],[Instances]]=3,Rebate_Lookup[[#This Row],[Order Form Quantity]]<Rebate_Lookup[[#This Row],[MOQ_2]]),1,IF(AND(Rebate_Lookup[[#This Row],[Instances]]=3,Rebate_Lookup[[#This Row],[MOQ_2]]<=Rebate_Lookup[[#This Row],[Order Form Quantity]],Rebate_Lookup[[#This Row],[Order Form Quantity]]<Rebate_Lookup[[#This Row],[MOQ_3]]),2,IF(AND(Rebate_Lookup[[#This Row],[Instances]]=3,Rebate_Lookup[[#This Row],[Order Form Quantity]]>=Rebate_Lookup[[#This Row],[MOQ_3]]),3))))))","v":1},{"$f":"COUNTIF('2025 LL-CALCULATOR - UNITS'!A:A,Rebate_Lookup[[#This Row],[SKU CODE]])","v":0},{"$f":"Rebate_Lookup[[#This Row],[Order Form Quantity]]>=8","v":false}]
[null,11015390,{"$f":"INDEX(PRICING[Agency/TT],MATCH(Rebate_Lookup[[#This Row],[SKU CODE]],PRICING[SKU],0))","v":"A"},{"$f":"INDEX(PRICING[Product],MATCH(B67,PRICING[SKU],0))","v":"Durentis™ Insecticide  "},{"$f":"INDEX(PRICING[Size],MATCH(Rebate_Lookup[[#This Row],[SKU CODE]],PRICING[SKU],0))","v":"16 oz"},{"$f":"COUNTIFS(PRICING[SKU],B67)","v":4},4,9,16,{"v":90,"d":"$90.00"},{"v":120,"d":"$120.00"},{"v":160,"d":"$160.00"},{"$f":"SUMIF('2025 LL-CALCULATOR - UNITS'!A:A,Rebate_Lookup[[#This Row],[SKU CODE]],'2025 LL-CALCULATOR - UNITS'!J:J)","v":0},{"$f":"IF(Rebate_Lookup[[#This Row],[Instances]]=1,1,\nIF(AND(Rebate_Lookup[[#This Row],[Instances]]=2,Rebate_Lookup[[#This Row],[Order Form Quantity]]<Rebate_Lookup[[#This Row],[MOQ_2]]),1,IF(AND(Rebate_Lookup[[#This Row],[Instances]]=2,Rebate_Lookup[[#This Row],[Order Form Quantity]]>=Rebate_Lookup[[#This Row],[MOQ_2]]),2,\nIF(AND(Rebate_Lookup[[#This Row],[Instances]]=3,Rebate_Lookup[[#This Row],[Order Form Quantity]]<Rebate_Lookup[[#This Row],[MOQ_2]]),1,IF(AND(Rebate_Lookup[[#This Row],[Instances]]=3,Rebate_Lookup[[#This Row],[MOQ_2]]<=Rebate_Lookup[[#This Row],[Order Form Quantity]],Rebate_Lookup[[#This Row],[Order Form Quantity]]<Rebate_Lookup[[#This Row],[MOQ_3]]),2,IF(AND(Rebate_Lookup[[#This Row],[Instances]]=3,Rebate_Lookup[[#This Row],[Order Form Quantity]]>=Rebate_Lookup[[#This Row],[MOQ_3]]),3,0))))))","v":0},{"$f":"COUNTIF('2025 LL-CALCULATOR - UNITS'!A:A,Rebate_Lookup[[#This Row],[SKU CODE]])","v":0},{"$f":"Rebate_Lookup[[#This Row],[Order Form Quantity]]>=4","v":false}]
[null,11015391,{"$f":"INDEX(PRICING[Agency/TT],MATCH(Rebate_Lookup[[#This Row],[SKU CODE]],PRICING[SKU],0))","v":"A"},{"$f":"INDEX(PRICING[Product],MATCH(B68,PRICING[SKU],0))","v":"Durentis™ Insecticide  "},{"$f":"INDEX(PRICING[Size],MATCH(Rebate_Lookup[[#This Row],[SKU CODE]],PRICING[SKU],0))","v":"64 oz"},{"$f":"COUNTIFS(PRICING[SKU],B68)","v":3},1,4,8,{"$f":"SUMIFS(PRICING[Rebate $],PRICING[SKU],Rebate_Lookup[[#This Row],[SKU CODE]],PRICING[Set],1)","v":0},{"$f":"SUMIFS(PRICING[Rebate $],PRICING[SKU],Rebate_Lookup[[#This Row],[SKU CODE]],PRICING[Set],2)","v":{"v":557,"d":"$557.00"}},{"$f":"SUMIFS(PRICING[Rebate $],PRICING[SKU],Rebate_Lookup[[#This Row],[SKU CODE]],PRICING[Set],3)","v":{"v":657,"d":"$657.00"}},{"$f":"SUMIF('2025 LL-CALCULATOR - UNITS'!A:A,Rebate_Lookup[[#This Row],[SKU CODE]],'2025 LL-CALCULATOR - UNITS'!J:J)","v":0},{"$f":"IF(Rebate_Lookup[[#This Row],[Instances]]=1,1,\nIF(AND(Rebate_Lookup[[#This Row],[Instances]]=2,Rebate_Lookup[[#This Row],[Order Form Quantity]]<Rebate_Lookup[[#This Row],[MOQ_2]]),1,IF(AND(Rebate_Lookup[[#This Row],[Instances]]=2,Rebate_Lookup[[#This Row],[Order Form Quantity]]>=Rebate_Lookup[[#This Row],[MOQ_2]]),2,\nIF(AND(Rebate_Lookup[[#This Row],[Instances]]=3,Rebate_Lookup[[#This Row],[Order Form Quantity]]<Rebate_Lookup[[#This Row],[MOQ_2]]),1,IF(AND(Rebate_Lookup[[#This Row],[Instances]]=3,Rebate_Lookup[[#This Row],[MOQ_2]]<=Rebate_Lookup[[#This Row],[Order Form Quantity]],Rebate_Lookup[[#This Row],[Order Form Quantity]]<Rebate_Lookup[[#This Row],[MOQ_3]]),2,IF(AND(Rebate_Lookup[[#This Row],[Instances]]=3,Rebate_Lookup[[#This Row],[Order Form Quantity]]>=Rebate_Lookup[[#This Row],[MOQ_3]]),3))))))","v":1},{"$f":"COUNTIF('2025 LL-CALCULATOR - UNITS'!A:A,Rebate_Lookup[[#This Row],[SKU CODE]])","v":0},{"$f":"Rebate_Lookup[[#This Row],[Order Form Quantity]]>=4","v":false}]
[null,"D00001040",{"$f":"INDEX(PRICING[Agency/TT],MATCH(Rebate_Lookup[[#This Row],[SKU CODE]],PRICING[SKU],0))","v":"TT"},{"$f":"INDEX(PRICING[Product],MATCH(B69,PRICING[SKU],0))","v":"Dylox SL420"},{"$f":"INDEX(PRICING[Size],MATCH(Rebate_Lookup[[#This Row],[SKU CODE]],PRICING[SKU],0))","v":"2.5 gal "},{"$f":"COUNTIFS(PRICING[SKU],B69)","v":1},1,null,null,{"$f":"SUMIFS(PRICING[Rebate $],PRICING[SKU],Rebate_Lookup[[#This Row],[SKU CODE]],PRICING[Set],1)","v":0},{"$f":"SUMIFS(PRICING[Rebate $],PRICING[SKU],Rebate_Lookup[[#This Row],[SKU CODE]],PRICING[Set],2)","v":0},{"$f":"SUMIFS(PRICING[Rebate $],PRICING[SKU],Rebate_Lookup[[#This Row],[SKU CODE]],PRICING[Set],3)","v":0},{"$f":"SUMIF('2025 LL-CALCULATOR - UNITS'!A:A,Rebate_Lookup[[#This Row],[SKU CODE]],'2025 LL-CALCULATOR - UNITS'!J:J)","v":0},{"$f":"IF(Rebate_Lookup[[#This Row],[Instances]]=1,1,\nIF(AND(Rebate_Lookup[[#This Row],[Instances]]=2,Rebate_Lookup[[#This Row],[Order Form Quantity]]<Rebate_Lookup[[#This Row],[MOQ_2]]),1,IF(AND(Rebate_Lookup[[#This Row],[Instances]]=2,Rebate_Lookup[[#This Row],[Order Form Quantity]]>=Rebate_Lookup[[#This Row],[MOQ_2]]),2,\nIF(AND(Rebate_Lookup[[#This Row],[Instances]]=3,Rebate_Lookup[[#This Row],[Order Form Quantity]]<Rebate_Lookup[[#This Row],[MOQ_2]]),1,IF(AND(Rebate_Lookup[[#This Row],[Instances]]=3,Rebate_Lookup[[#This Row],[MOQ_2]]<=Rebate_Lookup[[#This Row],[Order Form Quantity]],Rebate_Lookup[[#This Row],[Order Form Quantity]]<Rebate_Lookup[[#This Row],[MOQ_3]]),2,IF(AND(Rebate_Lookup[[#This Row],[Instances]]=3,Rebate_Lookup[[#This Row],[Order Form Quantity]]>=Rebate_Lookup[[#This Row],[MOQ_3]]),3))))))","v":1},{"$f":"COUNTIF('2025 LL-CALCULATOR - UNITS'!A:A,Rebate_Lookup[[#This Row],[SKU CODE]])","v":0},0]
[null,"D00001275",{"$f":"INDEX(PRICING[Agency/TT],MATCH(Rebate_Lookup[[#This Row],[SKU CODE]],PRICING[SKU],0))","v":"TT"},{"$f":"INDEX(PRICING[Product],MATCH(B70,PRICING[SKU],0))","v":"Floramite"},{"$f":"INDEX(PRICING[Size],MATCH(Rebate_Lookup[[#This Row],[SKU CODE]],PRICING[SKU],0))","v":"1 qt"},{"$f":"COUNTIFS(PRICING[SKU],B70)","v":1},4,null,null,{"$f":"SUMIFS(PRICING[Rebate $],PRICING[SKU],Rebate_Lookup[[#This Row],[SKU CODE]],PRICING[Set],1)","v":{"v":50,"d":"$50.00"}},{"$f":"SUMIFS(PRICING[Rebate $],PRICING[SKU],Rebate_Lookup[[#This Row],[SKU CODE]],PRICING[Set],2)","v":0},{"$f":"SUMIFS(PRICING[Rebate $],PRICING[SKU],Rebate_Lookup[[#This Row],[SKU CODE]],PRICING[Set],3)","v":0},{"$f":"SUMIF('2025 LL-CALCULATOR - UNITS'!A:A,Rebate_Lookup[[#This Row],[SKU CODE]],'2025 LL-CALCULATOR - UNITS'!J:J)","v":0},{"$f":"IF(Rebate_Lookup[[#This Row],[Instances]]=1,1,\nIF(AND(Rebate_Lookup[[#This Row],[Instances]]=2,Rebate_Lookup[[#This Row],[Order Form Quantity]]<Rebate_Lookup[[#This Row],[MOQ_2]]),1,IF(AND(Rebate_Lookup[[#This Row],[Instances]]=2,Rebate_Lookup[[#This Row],[Order Form Quantity]]>=Rebate_Lookup[[#This Row],[MOQ_2]]),2,\nIF(AND(Rebate_Lookup[[#This Row],[Instances]]=3,Rebate_Lookup[[#This Row],[Order Form Quantity]]<Rebate_Lookup[[#This Row],[MOQ_2]]),1,IF(AND(Rebate_Lookup[[#This Row],[Instances]]=3,Rebate_Lookup[[#This Row],[MOQ_2]]<=Rebate_Lookup[[#This Row],[Order Form Quantity]],Rebate_Lookup[[#This Row],[Order Form Quantity]]<Rebate_Lookup[[#This Row],[MOQ_3]]),2,IF(AND(Rebate_Lookup[[#This Row],[Instances]]=3,Rebate_Lookup[[#This Row],[Order Form Quantity]]>=Rebate_Lookup[[#This Row],[MOQ_3]]),3))))))","v":1},{"$f":"COUNTIF('2025 LL-CALCULATOR - UNITS'!A:A,Rebate_Lookup[[#This Row],[SKU CODE]])","v":0},{"$f":"Rebate_Lookup[[#This Row],[Order Form Quantity]]>=4","v":false}]
[null,3944704,{"$f":"INDEX(PRICING[Agency/TT],MATCH(Rebate_Lookup[[#This Row],[SKU CODE]],PRICING[SKU],0))","v":"TT"},{"$f":"INDEX(PRICING[Product],MATCH(B71,PRICING[SKU],0))","v":"Forbid"},{"$f":"INDEX(PRICING[Size],MATCH(Rebate_Lookup[[#This Row],[SKU CODE]],PRICING[SKU],0))","v":"8 oz "},{"$f":"COUNTIFS(PRICING[SKU],B71)","v":1},1,null,null,{"$f":"SUMIFS(PRICING[Rebate $],PRICING[SKU],Rebate_Lookup[[#This Row],[SKU CODE]],PRICING[Set],1)","v":{"v":22,"d":"$22.00"}},{"$f":"SUMIFS(PRICING[Rebate $],PRICING[SKU],Rebate_Lookup[[#This Row],[SKU CODE]],PRICING[Set],2)","v":0},{"$f":"SUMIFS(PRICING[Rebate $],PRICING[SKU],Rebate_Lookup[[#This Row],[SKU CODE]],PRICING[Set],3)","v":0},{"$f":"SUMIF('2025 LL-CALCULATOR - UNITS'!A:A,Rebate_Lookup[[#This Row],[SKU CODE]],'2025 LL-CALCULATOR - UNITS'!J:J)","v":0},{"$f":"IF(Rebate_Lookup[[#This Row],[Instances]]=1,1,\nIF(AND(Rebate_Lookup[[#This Row],[Instances]]=2,Rebate_Lookup[[#This Row],[Order Form Quantity]]<Rebate_Lookup[[#This Row],[MOQ_2]]),1,IF(AND(Rebate_Lookup[[#This Row],[Instances]]=2,Rebate_Lookup[[#This Row],[Order Form Quantity]]>=Rebate_Lookup[[#This Row],[MOQ_2]]),2,\nIF(AND(Rebate_Lookup[[#This Row],[Instances]]=3,Rebate_Lookup[[#This Row],[Order Form Quantity]]<Rebate_Lookup[[#This Row],[MOQ_2]]),1,IF(AND(Rebate_Lookup[[#This Row],[Instances]]=3,Rebate_Lookup[[#This Row],[MOQ_2]]<=Rebate_Lookup[[#This Row],[Order Form Quantity]],Rebate_Lookup[[#This Row],[Order Form Quantity]]<Rebate_Lookup[[#This Row],[MOQ_3]]),2,IF(AND(Rebate_Lookup[[#This Row],[Instances]]=3,Rebate_Lookup[[#This Row],[Order Form Quantity]]>=Rebate_Lookup[[#This Row],[MOQ_3]]),3))))))","v":1},{"$f":"COUNTIF('2025 LL-CALCULATOR - UNITS'!A:A,Rebate_Lookup[[#This Row],[SKU CODE]])","v":0},0]
[null,"D00000944",{"$f":"INDEX(PRICING[Agency/TT],MATCH(Rebate_Lookup[[#This Row],[SKU CODE]],PRICING[SKU],0))","v":"A"},{"$f":"INDEX(PRICING[Product],MATCH(B72,PRICING[SKU],0))","v":"Kontos"},{"$f":"INDEX(PRICING[Size],MATCH(Rebate_Lookup[[#This Row],[SKU CODE]],PRICING[SKU],0))","v":"250 ml"},{"$f":"COUNTIFS(PRICING[SKU],B72)","v":1},1,null,null,{"$f":"SUMIFS(PRICING[Rebate $],PRICING[SKU],Rebate_Lookup[[#This Row],[SKU CODE]],PRICING[Set],1)","v":0},{"$f":"SUMIFS(PRICING[Rebate $],PRICING[SKU],Rebate_Lookup[[#This Row],[SKU CODE]],PRICING[Set],2)","v":0},{"$f":"SUMIFS(PRICING[Rebate $],PRICING[SKU],Rebate_Lookup[[#This Row],[SKU CODE]],PRICING[Set],3)","v":0},{"$f":"SUMIF('2025 LL-CALCULATOR - UNITS'!A:A,Rebate_Lookup[[#This Row],[SKU CODE]],'2025 LL-CALCULATOR - UNITS'!J:J)","v":0},{"$f":"IF(Rebate_Lookup[[#This Row],[Instances]]=1,1,\nIF(AND(Rebate_Lookup[[#This Row],[Instances]]=2,Rebate_Lookup[[#This Row],[Order Form Quantity]]<Rebate_Lookup[[#This Row],[MOQ_2]]),1,IF(AND(Rebate_Lookup[[#This Row],[Instances]]=2,Rebate_Lookup[[#This Row],[Order Form Quantity]]>=Rebate_Lookup[[#This Row],[MOQ_2]]),2,\nIF(AND(Rebate_Lookup[[#This Row],[Instances]]=3,Rebate_Lookup[[#This Row],[Order Form Quantity]]<Rebate_Lookup[[#This Row],[MOQ_2]]),1,IF(AND(Rebate_Lookup[[#This Row],[Instances]]=3,Rebate_Lookup[[#This Row],[MOQ_2]]<=Rebate_Lookup[[#This Row],[Order Form Quantity]],Rebate_Lookup[[#This Row],[Order Form Quantity]]<Rebate_Lookup[[#This Row],[MOQ_3]]),2,IF(AND(Rebate_Lookup[[#This Row],[Instances]]=3,Rebate_Lookup[[#This Row],[Order Form Quantity]]>=Rebate_Lookup[[#This Row],[MOQ_3]]),3))))))","v":1},{"$f":"COUNTIF('2025 LL-CALCULATOR - UNITS'!A:A,Rebate_Lookup[[#This Row],[SKU CODE]])","v":0},0]
[null,"D00001272",{"$f":"INDEX(PRICING[Agency/TT],MATCH(Rebate_Lookup[[#This Row],[SKU CODE]],PRICING[SKU],0))","v":"A"},{"$f":"INDEX(PRICING[Product],MATCH(B73,PRICING[SKU],0))","v":"Kontos"},{"$f":"INDEX(PRICING[Size],MATCH(Rebate_Lookup[[#This Row],[SKU CODE]],PRICING[SKU],0))","v":"1 qt"},{"$f":"COUNTIFS(PRICING[SKU],B73)","v":3},1,4,16,{"$f":"SUMIFS(PRICING[Rebate $],PRICING[SKU],Rebate_Lookup[[#This Row],[SKU CODE]],PRICING[Set],1)","v":0},{"$f":"SUMIFS(PRICING[Rebate $],PRICING[SKU],Rebate_Lookup[[#This Row],[SKU CODE]],PRICING[Set],2)","v":0},{"$f":"SUMIFS(PRICING[Rebate $],PRICING[SKU],Rebate_Lookup[[#This Row],[SKU CODE]],PRICING[Set],3)","v":0},{"$f":"SUMIF('2025 LL-CALCULATOR - UNITS'!A:A,Rebate_Lookup[[#This Row],[SKU CODE]],'2025 LL-CALCULATOR - UNITS'!J:J)","v":0},{"$f":"IF(Rebate_Lookup[[#This Row],[Instances]]=1,1,\nIF(AND(Rebate_Lookup[[#This Row],[Instances]]=2,Rebate_Lookup[[#This Row],[Order Form Quantity]]<Rebate_Lookup[[#This Row],[MOQ_2]]),1,IF(AND(Rebate_Lookup[[#This Row],[Instances]]=2,Rebate_Lookup[[#This Row],[Order Form Quantity]]>=Rebate_Lookup[[#This Row],[MOQ_2]]),2,\nIF(AND(Rebate_Lookup[[#This Row],[Instances]]=3,Rebate_Lookup[[#This Row],[Order Form Quantity]]<Rebate_Lookup[[#This Row],[MOQ_2]]),1,IF(AND(Rebate_Lookup[[#This Row],[Instances]]=3,Rebate_Lookup[[#This Row],[MOQ_2]]<=Rebate_Lookup[[#This Row],[Order Form Quantity]],Rebate_Lookup[[#This Row],[Order Form Quantity]]<Rebate_Lookup[[#This Row],[MOQ_3]]),2,IF(AND(Rebate_Lookup[[#This Row],[Instances]]=3,Rebate_Lookup[[#This Row],[Order Form Quantity]]>=Rebate_Lookup[[#This Row],[MOQ_3]]),3))))))","v":1},{"$f":"COUNTIF('2025 LL-CALCULATOR - UNITS'!A:A,Rebate_Lookup[[#This Row],[SKU CODE]])","v":0},0]
[null,"D00000961",{"$f":"INDEX(PRICING[Agency/TT],MATCH(Rebate_Lookup[[#This Row],[SKU CODE]],PRICING[SKU],0))","v":"TT"},{"$f":"INDEX(PRICING[Product],MATCH(B74,PRICING[SKU],0))","v":"Merit 2F"},{"$f":"INDEX(PRICING[Size],MATCH(Rebate_Lookup[[#This Row],[SKU CODE]],PRICING[SKU],0))","v":"1 gal"},{"$f":"COUNTIFS(PRICING[SKU],B74)","v":1},1,null,null,{"$f":"SUMIFS(PRICING[Rebate $],PRICING[SKU],Rebate_Lookup[[#This Row],[SKU CODE]],PRICING[Set],1)","v":0},{"$f":"SUMIFS(PRICING[Rebate $],PRICING[SKU],Rebate_Lookup[[#This Row],[SKU CODE]],PRICING[Set],2)","v":0},{"$f":"SUMIFS(PRICING[Rebate $],PRICING[SKU],Rebate_Lookup[[#This Row],[SKU CODE]],PRICING[Set],3)","v":0},{"$f":"SUMIF('2025 LL-CALCULATOR - UNITS'!A:A,Rebate_Lookup[[#This Row],[SKU CODE]],'2025 LL-CALCULATOR - UNITS'!J:J)","v":0},{"$f":"IF(Rebate_Lookup[[#This Row],[Instances]]=1,1,\nIF(AND(Rebate_Lookup[[#This Row],[Instances]]=2,Rebate_Lookup[[#This Row],[Order Form Quantity]]<Rebate_Lookup[[#This Row],[MOQ_2]]),1,IF(AND(Rebate_Lookup[[#This Row],[Instances]]=2,Rebate_Lookup[[#This Row],[Order Form Quantity]]>=Rebate_Lookup[[#This Row],[MOQ_2]]),2,\nIF(AND(Rebate_Lookup[[#This Row],[Instances]]=3,Rebate_Lookup[[#This Row],[Order Form Quantity]]<Rebate_Lookup[[#This Row],[MOQ_2]]),1,IF(AND(Rebate_Lookup[[#This Row],[Instances]]=3,Rebate_Lookup[[#This Row],[MOQ_2]]<=Rebate_Lookup[[#This Row],[Order Form Quantity]],Rebate_Lookup[[#This Row],[Order Form Quantity]]<Rebate_Lookup[[#This Row],[MOQ_3]]),2,IF(AND(Rebate_Lookup[[#This Row],[Instances]]=3,Rebate_Lookup[[#This Row],[Order Form Quantity]]>=Rebate_Lookup[[#This Row],[MOQ_3]]),3))))))","v":1},{"$f":"COUNTIF('2025 LL-CALCULATOR - UNITS'!A:A,Rebate_Lookup[[#This Row],[SKU CODE]])","v":0},0]
[null,"D00000987",{"$f":"INDEX(PRICING[Agency/TT],MATCH(Rebate_Lookup[[#This Row],[SKU CODE]],PRICING[SKU],0))","v":"A"},{"$f":"INDEX(PRICING[Product],MATCH(B75,PRICING[SKU],0))","v":"Savate"},{"$f":"INDEX(PRICING[Size],MATCH(Rebate_Lookup[[#This Row],[SKU CODE]],PRICING[SKU],0))","v":"8 oz"},{"$f":"COUNTIFS(PRICING[SKU],B75)","v":3},1,12,30,{"$f":"SUMIFS(PRICING[Rebate $],PRICING[SKU],Rebate_Lookup[[#This Row],[SKU CODE]],PRICING[Set],1)","v":0},{"$f":"SUMIFS(PRICING[Rebate $],PRICING[SKU],Rebate_Lookup[[#This Row],[SKU CODE]],PRICING[Set],2)","v":0},{"$f":"SUMIFS(PRICING[Rebate $],PRICING[SKU],Rebate_Lookup[[#This Row],[SKU CODE]],PRICING[Set],3)","v":0},{"$f":"SUMIF('2025 LL-CALCULATOR - UNITS'!A:A,Rebate_Lookup[[#This Row],[SKU CODE]],'2025 LL-CALCULATOR - UNITS'!J:J)","v":0},{"$f":"IF(Rebate_Lookup[[#This Row],[Instances]]=1,1,\nIF(AND(Rebate_Lookup[[#This Row],[Instances]]=2,Rebate_Lookup[[#This Row],[Order Form Quantity]]<Rebate_Lookup[[#This Row],[MOQ_2]]),1,IF(AND(Rebate_Lookup[[#This Row],[Instances]]=2,Rebate_Lookup[[#This Row],[Order Form Quantity]]>=Rebate_Lookup[[#This Row],[MOQ_2]]),2,\nIF(AND(Rebate_Lookup[[#This Row],[Instances]]=3,Rebate_Lookup[[#This Row],[Order Form Quantity]]<Rebate_Lookup[[#This Row],[MOQ_2]]),1,IF(AND(Rebate_Lookup[[#This Row],[Instances]]=3,Rebate_Lookup[[#This Row],[MOQ_2]]<=Rebate_Lookup[[#This Row],[Order Form Quantity]],Rebate_Lookup[[#This Row],[Order Form Quantity]]<Rebate_Lookup[[#This Row],[MOQ_3]]),2,IF(AND(Rebate_Lookup[[#This Row],[Instances]]=3,Rebate_Lookup[[#This Row],[Order Form Quantity]]>=Rebate_Lookup[[#This Row],[MOQ_3]]),3))))))","v":1},{"$f":"COUNTIF('2025 LL-CALCULATOR - UNITS'!A:A,Rebate_Lookup[[#This Row],[SKU CODE]])","v":0},0]
[null,11009495,{"$f":"INDEX(PRICING[Agency/TT],MATCH(Rebate_Lookup[[#This Row],[SKU CODE]],PRICING[SKU],0))","v":"A"},{"$f":"INDEX(PRICING[Product],MATCH(B76,PRICING[SKU],0))","v":"Scion"},{"$f":"INDEX(PRICING[Size],MATCH(Rebate_Lookup[[#This Row],[SKU CODE]],PRICING[SKU],0))","v":"32 oz"},{"$f":"COUNTIFS(PRICING[SKU],B76)","v":1},1,null,null,{"$f":"SUMIFS(PRICING[Rebate $],PRICING[SKU],Rebate_Lookup[[#This Row],[SKU CODE]],PRICING[Set],1)","v":{"v":38,"d":"$38.00"}},{"$f":"SUMIFS(PRICING[Rebate $],PRICING[SKU],Rebate_Lookup[[#This Row],[SKU CODE]],PRICING[Set],2)","v":0},{"$f":"SUMIFS(PRICING[Rebate $],PRICING[SKU],Rebate_Lookup[[#This Row],[SKU CODE]],PRICING[Set],3)","v":0},{"$f":"SUMIF('2025 LL-CALCULATOR - UNITS'!A:A,Rebate_Lookup[[#This Row],[SKU CODE]],'2025 LL-CALCULATOR - UNITS'!J:J)","v":0},{"$f":"IF(Rebate_Lookup[[#This Row],[Instances]]=1,1,\nIF(AND(Rebate_Lookup[[#This Row],[Instances]]=2,Rebate_Lookup[[#This Row],[Order Form Quantity]]<Rebate_Lookup[[#This Row],[MOQ_2]]),1,IF(AND(Rebate_Lookup[[#This Row],[Instances]]=2,Rebate_Lookup[[#This Row],[Order Form Quantity]]>=Rebate_Lookup[[#This Row],[MOQ_2]]),2,\nIF(AND(Rebate_Lookup[[#This Row],[Instances]]=3,Rebate_Lookup[[#This Row],[Order Form Quantity]]<Rebate_Lookup[[#This Row],[MOQ_2]]),1,IF(AND(Rebate_Lookup[[#This Row],[Instances]]=3,Rebate_Lookup[[#This Row],[MOQ_2]]<=Rebate_Lookup[[#This Row],[Order Form Quantity]],Rebate_Lookup[[#This Row],[Order Form Quantity]]<Rebate_Lookup[[#This Row],[MOQ_3]]),2,IF(AND(Rebate_Lookup[[#This Row],[Instances]]=3,Rebate_Lookup[[#This Row],[Order Form Quantity]]>=Rebate_Lookup[[#This Row],[MOQ_3]]),3))))))","v":1},{"$f":"COUNTIF('2025 LL-CALCULATOR - UNITS'!A:A,Rebate_Lookup[[#This Row],[SKU CODE]])","v":0},0]
[null,"D00001276",{"$f":"INDEX(PRICING[Agency/TT],MATCH(Rebate_Lookup[[#This Row],[SKU CODE]],PRICING[SKU],0))","v":"TT"},{"$f":"INDEX(PRICING[Product],MATCH(B77,PRICING[SKU],0))","v":"Shuttle"},{"$f":"INDEX(PRICING[Size],MATCH(Rebate_Lookup[[#This Row],[SKU CODE]],PRICING[SKU],0))","v":"1 qt"},{"$f":"COUNTIFS(PRICING[SKU],B77)","v":1},4,null,null,{"$f":"SUMIFS(PRICING[Rebate $],PRICING[SKU],Rebate_Lookup[[#This Row],[SKU CODE]],PRICING[Set],1)","v":{"v":25,"d":"$25.00"}},{"$f":"SUMIFS(PRICING[Rebate $],PRICING[SKU],Rebate_Lookup[[#This Row],[SKU CODE]],PRICING[Set],2)","v":0},{"$f":"SUMIFS(PRICING[Rebate $],PRICING[SKU],Rebate_Lookup[[#This Row],[SKU CODE]],PRICING[Set],3)","v":0},{"$f":"SUMIF('2025 LL-CALCULATOR - UNITS'!A:A,Rebate_Lookup[[#This Row],[SKU CODE]],'2025 LL-CALCULATOR - UNITS'!J:J)","v":0},{"$f":"IF(Rebate_Lookup[[#This Row],[Instances]]=1,1,\nIF(AND(Rebate_Lookup[[#This Row],[Instances]]=2,Rebate_Lookup[[#This Row],[Order Form Quantity]]<Rebate_Lookup[[#This Row],[MOQ_2]]),1,IF(AND(Rebate_Lookup[[#This Row],[Instances]]=2,Rebate_Lookup[[#This Row],[Order Form Quantity]]>=Rebate_Lookup[[#This Row],[MOQ_2]]),2,\nIF(AND(Rebate_Lookup[[#This Row],[Instances]]=3,Rebate_Lookup[[#This Row],[Order Form Quantity]]<Rebate_Lookup[[#This Row],[MOQ_2]]),1,IF(AND(Rebate_Lookup[[#This Row],[Instances]]=3,Rebate_Lookup[[#This Row],[MOQ_2]]<=Rebate_Lookup[[#This Row],[Order Form Quantity]],Rebate_Lookup[[#This Row],[Order Form Quantity]]<Rebate_Lookup[[#This Row],[MOQ_3]]),2,IF(AND(Rebate_Lookup[[#This Row],[Instances]]=3,Rebate_Lookup[[#This Row],[Order Form Quantity]]>=Rebate_Lookup[[#This Row],[MOQ_3]]),3))))))","v":1},{"$f":"COUNTIF('2025 LL-CALCULATOR - UNITS'!A:A,Rebate_Lookup[[#This Row],[SKU CODE]])","v":0},{"$f":"Rebate_Lookup[[#This Row],[Order Form Quantity]]>=4","v":false}]
[null,11008457,{"$f":"INDEX(PRICING[Agency/TT],MATCH(Rebate_Lookup[[#This Row],[SKU CODE]],PRICING[SKU],0))","v":"TT"},{"$f":"INDEX(PRICING[Product],MATCH(B78,PRICING[SKU],0))","v":"Talstar® Select Insecticide (RUP) "},{"$f":"INDEX(PRICING[Size],MATCH(Rebate_Lookup[[#This Row],[SKU CODE]],PRICING[SKU],0))","v":"1 gal"},{"$f":"COUNTIFS(PRICING[SKU],B78)","v":1},4,null,null,{"v":6,"d":"$6.00"},{"$f":"SUMIFS(PRICING[Rebate $],PRICING[SKU],Rebate_Lookup[[#This Row],[SKU CODE]],PRICING[Set],2)","v":0},{"$f":"SUMIFS(PRICING[Rebate $],PRICING[SKU],Rebate_Lookup[[#This Row],[SKU CODE]],PRICING[Set],3)","v":0},{"$f":"SUMIF('2025 LL-CALCULATOR - UNITS'!A:A,Rebate_Lookup[[#This Row],[SKU CODE]],'2025 LL-CALCULATOR - UNITS'!J:J)","v":0},{"$f":"IF(Rebate_Lookup[[#This Row],[Instances]]=1,1,\nIF(AND(Rebate_Lookup[[#This Row],[Instances]]=2,Rebate_Lookup[[#This Row],[Order Form Quantity]]<Rebate_Lookup[[#This Row],[MOQ_2]]),1,IF(AND(Rebate_Lookup[[#This Row],[Instances]]=2,Rebate_Lookup[[#This Row],[Order Form Quantity]]>=Rebate_Lookup[[#This Row],[MOQ_2]]),2,\nIF(AND(Rebate_Lookup[[#This Row],[Instances]]=3,Rebate_Lookup[[#This Row],[Order Form Quantity]]<Rebate_Lookup[[#This Row],[MOQ_2]]),1,IF(AND(Rebate_Lookup[[#This Row],[Instances]]=3,Rebate_Lookup[[#This Row],[MOQ_2]]<=Rebate_Lookup[[#This Row],[Order Form Quantity]],Rebate_Lookup[[#This Row],[Order Form Quantity]]<Rebate_Lookup[[#This Row],[MOQ_3]]),2,IF(AND(Rebate_Lookup[[#This Row],[Instances]]=3,Rebate_Lookup[[#This Row],[Order Form Quantity]]>=Rebate_Lookup[[#This Row],[MOQ_3]]),3))))))","v":1},{"$f":"COUNTIF('2025 LL-CALCULATOR - UNITS'!A:A,Rebate_Lookup[[#This Row],[SKU CODE]])","v":0},{"$f":"Rebate_Lookup[[#This Row],[Order Form Quantity]]>=4","v":false}]
[null,86797658,{"$f":"INDEX(PRICING[Agency/TT],MATCH(Rebate_Lookup[[#This Row],[SKU CODE]],PRICING[SKU],0))","v":"A"},{"$f":"INDEX(PRICING[Product],MATCH(B79,PRICING[SKU],0))","v":"Tetrino®"},{"$f":"INDEX(PRICING[Size],MATCH(Rebate_Lookup[[#This Row],[SKU CODE]],PRICING[SKU],0))","v":" 1 gal"},{"$f":"COUNTIFS(PRICING[SKU],B79)","v":2},4,null,null,{"v":40,"d":"$40.00"},{"$f":"SUMIFS(PRICING[Rebate $],PRICING[SKU],Rebate_Lookup[[#This Row],[SKU CODE]],PRICING[Set],2)","v":0},{"$f":"SUMIFS(PRICING[Rebate $],PRICING[SKU],Rebate_Lookup[[#This Row],[SKU CODE]],PRICING[Set],3)","v":0},{"$f":"SUMIF('2025 LL-CALCULATOR - UNITS'!A:A,Rebate_Lookup[[#This Row],[SKU CODE]],'2025 LL-CALCULATOR - UNITS'!J:J)","v":0},{"$f":"IF(Rebate_Lookup[[#This Row],[Instances]]=1,1,\nIF(AND(Rebate_Lookup[[#This Row],[Instances]]=2,Rebate_Lookup[[#This Row],[Order Form Quantity]]<Rebate_Lookup[[#This Row],[MOQ_2]]),1,IF(AND(Rebate_Lookup[[#This Row],[Instances]]=2,Rebate_Lookup[[#This Row],[Order Form Quantity]]>=Rebate_Lookup[[#This Row],[MOQ_2]]),2,\nIF(AND(Rebate_Lookup[[#This Row],[Instances]]=3,Rebate_Lookup[[#This Row],[Order Form Quantity]]<Rebate_Lookup[[#This Row],[MOQ_2]]),1,IF(AND(Rebate_Lookup[[#This Row],[Instances]]=3,Rebate_Lookup[[#This Row],[MOQ_2]]<=Rebate_Lookup[[#This Row],[Order Form Quantity]],Rebate_Lookup[[#This Row],[Order Form Quantity]]<Rebate_Lookup[[#This Row],[MOQ_3]]),2,IF(AND(Rebate_Lookup[[#This Row],[Instances]]=3,Rebate_Lookup[[#This Row],[Order Form Quantity]]>=Rebate_Lookup[[#This Row],[MOQ_3]]),3))))))","v":2},{"$f":"COUNTIF('2025 LL-CALCULATOR - UNITS'!A:A,Rebate_Lookup[[#This Row],[SKU CODE]])","v":0},{"$f":"Rebate_Lookup[[#This Row],[Order Form Quantity]]>=4","v":false}]
[null,"D00001012",{"$f":"INDEX(PRICING[Agency/TT],MATCH(Rebate_Lookup[[#This Row],[SKU CODE]],PRICING[SKU],0))","v":"TT"},{"$f":"INDEX(PRICING[Product],MATCH(B80,PRICING[SKU],0))","v":"TopChoice"},{"$f":"INDEX(PRICING[Size],MATCH(Rebate_Lookup[[#This Row],[SKU CODE]],PRICING[SKU],0))","v":"50 lb"},{"$f":"COUNTIFS(PRICING[SKU],B80)","v":1},1,null,null,{"v":2,"d":"$2.00"},{"$f":"SUMIFS(PRICING[Rebate $],PRICING[SKU],Rebate_Lookup[[#This Row],[SKU CODE]],PRICING[Set],2)","v":0},{"$f":"SUMIFS(PRICING[Rebate $],PRICING[SKU],Rebate_Lookup[[#This Row],[SKU CODE]],PRICING[Set],3)","v":0},{"$f":"SUMIF('2025 LL-CALCULATOR - UNITS'!A:A,Rebate_Lookup[[#This Row],[SKU CODE]],'2025 LL-CALCULATOR - UNITS'!J:J)","v":0},{"$f":"IF(Rebate_Lookup[[#This Row],[Instances]]=1,1,\nIF(AND(Rebate_Lookup[[#This Row],[Instances]]=2,Rebate_Lookup[[#This Row],[Order Form Quantity]]<Rebate_Lookup[[#This Row],[MOQ_2]]),1,IF(AND(Rebate_Lookup[[#This Row],[Instances]]=2,Rebate_Lookup[[#This Row],[Order Form Quantity]]>=Rebate_Lookup[[#This Row],[MOQ_2]]),2,\nIF(AND(Rebate_Lookup[[#This Row],[Instances]]=3,Rebate_Lookup[[#This Row],[Order Form Quantity]]<Rebate_Lookup[[#This Row],[MOQ_2]]),1,IF(AND(Rebate_Lookup[[#This Row],[Instances]]=3,Rebate_Lookup[[#This Row],[MOQ_2]]<=Rebate_Lookup[[#This Row],[Order Form Quantity]],Rebate_Lookup[[#This Row],[Order Form Quantity]]<Rebate_Lookup[[#This Row],[MOQ_3]]),2,IF(AND(Rebate_Lookup[[#This Row],[Instances]]=3,Rebate_Lookup[[#This Row],[Order Form Quantity]]>=Rebate_Lookup[[#This Row],[MOQ_3]]),3))))))","v":1},{"$f":"COUNTIF('2025 LL-CALCULATOR - UNITS'!A:A,Rebate_Lookup[[#This Row],[SKU CODE]])","v":0},0]
[null,11008521,{"$f":"INDEX(PRICING[Agency/TT],MATCH(Rebate_Lookup[[#This Row],[SKU CODE]],PRICING[SKU],0))","v":"A"},{"$f":"INDEX(PRICING[Product],MATCH(B81,PRICING[SKU],0))","v":"Triple Crown® Golf Insecticide (RUP)"},{"$f":"INDEX(PRICING[Size],MATCH(Rebate_Lookup[[#This Row],[SKU CODE]],PRICING[SKU],0))","v":"1 gal"},{"$f":"COUNTIFS(PRICING[SKU],B81)","v":3},1,20,40,0,{"v":12,"d":"$12.00"},{"v":25,"d":"$25.00"},{"$f":"SUMIF('2025 LL-CALCULATOR - UNITS'!A:A,Rebate_Lookup[[#This Row],[SKU CODE]],'2025 LL-CALCULATOR - UNITS'!J:J)","v":0},{"$f":"IF(Rebate_Lookup[[#This Row],[Instances]]=1,1,\nIF(AND(Rebate_Lookup[[#This Row],[Instances]]=2,Rebate_Lookup[[#This Row],[Order Form Quantity]]<Rebate_Lookup[[#This Row],[MOQ_2]]),1,IF(AND(Rebate_Lookup[[#This Row],[Instances]]=2,Rebate_Lookup[[#This Row],[Order Form Quantity]]>=Rebate_Lookup[[#This Row],[MOQ_2]]),2,\nIF(AND(Rebate_Lookup[[#This Row],[Instances]]=3,Rebate_Lookup[[#This Row],[Order Form Quantity]]<Rebate_Lookup[[#This Row],[MOQ_2]]),1,IF(AND(Rebate_Lookup[[#This Row],[Instances]]=3,Rebate_Lookup[[#This Row],[MOQ_2]]<=Rebate_Lookup[[#This Row],[Order Form Quantity]],Rebate_Lookup[[#This Row],[Order Form Quantity]]<Rebate_Lookup[[#This Row],[MOQ_3]]),2,IF(AND(Rebate_Lookup[[#This Row],[Instances]]=3,Rebate_Lookup[[#This Row],[Order Form Quantity]]>=Rebate_Lookup[[#This Row],[MOQ_3]]),3))))))","v":1},{"$f":"COUNTIF('2025 LL-CALCULATOR - UNITS'!A:A,Rebate_Lookup[[#This Row],[SKU CODE]])","v":0},{"$f":"Rebate_Lookup[[#This Row],[Order Form Quantity]]>=20","v":false}]
[null,11008520,{"$f":"INDEX(PRICING[Agency/TT],MATCH(Rebate_Lookup[[#This Row],[SKU CODE]],PRICING[SKU],0))","v":"A"},{"$f":"INDEX(PRICING[Product],MATCH(B82,PRICING[SKU],0))","v":"Triple Crown® T&O Insecticide "},{"$f":"INDEX(PRICING[Size],MATCH(Rebate_Lookup[[#This Row],[SKU CODE]],PRICING[SKU],0))","v":"1 gal "},{"$f":"COUNTIFS(PRICING[SKU],B82)","v":3},1,20,40,{"$f":"SUMIFS(PRICING[Rebate $],PRICING[SKU],Rebate_Lookup[[#This Row],[SKU CODE]],PRICING[Set],1)","v":0},{"v":12,"d":"$12.00"},{"v":25,"d":"$25.00"},{"$f":"SUMIF('2025 LL-CALCULATOR - UNITS'!A:A,Rebate_Lookup[[#This Row],[SKU CODE]],'2025 LL-CALCULATOR - UNITS'!J:J)","v":0},{"$f":"IF(Rebate_Lookup[[#This Row],[Instances]]=1,1,\nIF(AND(Rebate_Lookup[[#This Row],[Instances]]=2,Rebate_Lookup[[#This Row],[Order Form Quantity]]<Rebate_Lookup[[#This Row],[MOQ_2]]),1,IF(AND(Rebate_Lookup[[#This Row],[Instances]]=2,Rebate_Lookup[[#This Row],[Order Form Quantity]]>=Rebate_Lookup[[#This Row],[MOQ_2]]),2,\nIF(AND(Rebate_Lookup[[#This Row],[Instances]]=3,Rebate_Lookup[[#This Row],[Order Form Quantity]]<Rebate_Lookup[[#This Row],[MOQ_2]]),1,IF(AND(Rebate_Lookup[[#This Row],[Instances]]=3,Rebate_Lookup[[#This Row],[MOQ_2]]<=Rebate_Lookup[[#This Row],[Order Form Quantity]],Rebate_Lookup[[#This Row],[Order Form Quantity]]<Rebate_Lookup[[#This Row],[MOQ_3]]),2,IF(AND(Rebate_Lookup[[#This Row],[Instances]]=3,Rebate_Lookup[[#This Row],[Order Form Quantity]]>=Rebate_Lookup[[#This Row],[MOQ_3]]),3))))))","v":1},{"$f":"COUNTIF('2025 LL-CALCULATOR - UNITS'!A:A,Rebate_Lookup[[#This Row],[SKU CODE]])","v":0},{"$f":"Rebate_Lookup[[#This Row],[Order Form Quantity]]>=20","v":false}]
[null,"D00001274",{"$f":"INDEX(PRICING[Agency/TT],MATCH(Rebate_Lookup[[#This Row],[SKU CODE]],PRICING[SKU],0))","v":"TT"},{"$f":"INDEX(PRICING[Product],MATCH(B83,PRICING[SKU],0))","v":"B-Nine"},{"$f":"INDEX(PRICING[Size],MATCH(Rebate_Lookup[[#This Row],[SKU CODE]],PRICING[SKU],0))","v":"5 lb"},{"$f":"COUNTIFS(PRICING[SKU],B83)","v":1},4,null,null,{"$f":"SUMIFS(PRICING[Rebate $],PRICING[SKU],Rebate_Lookup[[#This Row],[SKU CODE]],PRICING[Set],1)","v":{"v":12,"d":"$12.00"}},{"$f":"SUMIFS(PRICING[Rebate $],PRICING[SKU],Rebate_Lookup[[#This Row],[SKU CODE]],PRICING[Set],2)","v":0},{"$f":"SUMIFS(PRICING[Rebate $],PRICING[SKU],Rebate_Lookup[[#This Row],[SKU CODE]],PRICING[Set],3)","v":0},{"$f":"SUMIF('2025 LL-CALCULATOR - UNITS'!A:A,Rebate_Lookup[[#This Row],[SKU CODE]],'2025 LL-CALCULATOR - UNITS'!J:J)","v":0},{"$f":"IF(Rebate_Lookup[[#This Row],[Instances]]=1,1,\nIF(AND(Rebate_Lookup[[#This Row],[Instances]]=2,Rebate_Lookup[[#This Row],[Order Form Quantity]]<Rebate_Lookup[[#This Row],[MOQ_2]]),1,IF(AND(Rebate_Lookup[[#This Row],[Instances]]=2,Rebate_Lookup[[#This Row],[Order Form Quantity]]>=Rebate_Lookup[[#This Row],[MOQ_2]]),2,\nIF(AND(Rebate_Lookup[[#This Row],[Instances]]=3,Rebate_Lookup[[#This Row],[Order Form Quantity]]<Rebate_Lookup[[#This Row],[MOQ_2]]),1,IF(AND(Rebate_Lookup[[#This Row],[Instances]]=3,Rebate_Lookup[[#This Row],[MOQ_2]]<=Rebate_Lookup[[#This Row],[Order Form Quantity]],Rebate_Lookup[[#This Row],[Order Form Quantity]]<Rebate_Lookup[[#This Row],[MOQ_3]]),2,IF(AND(Rebate_Lookup[[#This Row],[Instances]]=3,Rebate_Lookup[[#This Row],[Order Form Quantity]]>=Rebate_Lookup[[#This Row],[MOQ_3]]),3))))))","v":1},{"$f":"COUNTIF('2025 LL-CALCULATOR - UNITS'!A:A,Rebate_Lookup[[#This Row],[SKU CODE]])","v":0},{"$f":"Rebate_Lookup[[#This Row],[Order Form Quantity]]>=4","v":false}]
{"$rows_empty":40}
[{"$nulls":3},11015390]
[{"$nulls":3},11015391]
[{"$nulls":3},"D00001040"]
[{"$nulls":3},"D00001275"]
[{"$nulls":3},3944704]
[{"$nulls":3},"D00000944"]
[{"$nulls":3},"D00001272"]
[{"$nulls":3},"D00000961"]
[{"$nulls":3},"D00000987"]
[{"$nulls":3},11009495]
[{"$nulls":3},"D00001276"]
[{"$nulls":3},11008457]
[{"$nulls":3},86797658]
[{"$nulls":3},"D00001012"]
[{"$nulls":3},11008521]
[{"$nulls":3},11008520]
[{"$nulls":3},"D00001274"]

{"sheet":"2025 SLP_LL_NOW","index":3,"n_rows":159,"n_cols":32,"rows_kept":159,"hidden":true}
["Manufacturer","Agency/TT","Segment","Region","Indication","Vol Buys","Program","Old Bayer SKU ","Old Envu SKU","SKU","Product","Size","2025 In-Season Price","NOW Price","In SZN-NOW delta","Min Qty","Rebate $","Final Price","CA In-season Price","CA NOW Price","CA Final Price","WA In-season Price","WA NOW Price","WA Final Price","Package Ounces","Standard Use Rate (oz/M)","Standard Use Rate (oz/Acre)","Price/1000 sq ft","Price/Acre","Total %","*cumlative","Set"]
["Envu","TT","G","NST","F",null,"EOP",null,null,4250930,"26 GT","2.5 gal",610.8,610.8,0,null,null,610.8,{"$nulls":6},320,4,174.24,7.635,332.5806,0,null,1]
["Envu","TT","L","NST","F",null,"EOP","80224672",null,"D00000898","Armada 50 WDG","2 lb",136.79999999999998,136.79999999999998,0,null,{"v":10,"d":"$10.00"},126.79999999999998,{"$nulls":6},32,1.2,52.272,4.754999999999999,207.12779999999998,0.07309941520467833,null,{"$f":"IF(PRICING[[#This Row],[SKU]]=J2,AF2+1,1)","v":1}]
["Envu","A","G","NST","F","X","NOW",79895402,null,"D00000907","Banol®","2.5 gal ",{"v":1267,"d":"$1,267.00"},{"v":1267,"d":"$1,267.00"},{"v":0,"d":"$0.00"},null,null,1267,1302.16,1302.16,1302.16,1275.85,1275.85,1275.85,320,2,87.12,7.91875,344.94075000000004,0,null,{"$f":"IF(PRICING[[#This Row],[SKU]]=J3,AF3+1,1)","v":1}]
["Envu","A","G","NST","F","X","NOW",79895402,null,"D00000907","Banol®","2.5 gal ",{"v":1267,"d":"$1,267.00"},{"v":1267,"d":"$1,267.00"},{"v":0,"d":"$0.00"},"2+",{"v":90,"d":"$90.00"},1177,1302.16,1302.16,1212.16,1275.85,1275.85,1185.85,320,2,87.12,7.35625,320.43825000000004,0.07103393843725336,null,{"$f":"IF(PRICING[[#This Row],[SKU]]=J4,AF4+1,1)","v":2}]
["Envu","A","LO",null,"F",null,"EOP/ORN","86762153",null,"D00000908","Broadform","12 oz",250,null,250,"1-15",null,0,{"$nulls":11},1,null,{"$f":"IF(PRICING[[#This Row],[SKU]]=J5,AF5+1,1)","v":1}]
["Envu","A","LO",null,"F",null,"EOP/ORN","86762153",null,"D00000908","Broadform","12 oz",250,237.5,12.5,"16-31",null,237.5,{"$nulls":13},{"$f":"IF(PRICING[[#This Row],[SKU]]=J6,AF6+1,1)","v":2}]
["Envu","A","LO",null,"F",null,"EOP/ORN","86762153",null,"D00000908","Broadform","12 oz",250,225,25,"32+",null,225,{"$nulls":13},{"$f":"IF(PRICING[[#This Row],[SKU]]=J7,AF7+1,1)","v":3}]
["Envu","A","G","NST","F","X","NOW",null,null,"D00000623","Castlon™","1 gal",2748.2,2610.79,137.40999999999985,null,null,2610.79,2824.46,2683.24,2683.24,2767.44,2629.07,2629.07,128,0.36,15.6816,7.342846874999999,319.854409875,0.04999999999999993,null,{"$f":"IF(PRICING[[#This Row],[SKU]]=J8,AF8+1,1)","v":1}]
["Envu","A","G","NST","F","X","NOW",null,null,"D00000623","Castlon™","1 gal",2748.2,2610.79,137.40999999999985,"5-9",{"v":525,"d":"$525.00"},2085.79,2824.46,2683.24,2158.24,2767.44,2629.07,2104.07,128,0.36,15.6816,5.866284374999999,255.535347375,0.24103413143148233,null,{"$f":"IF(PRICING[[#This Row],[SKU]]=J9,AF9+1,1)","v":2}]
["Envu","A","G","NST","F","X","NOW",null,null,"D00000623","Castlon™","1 gal",2748.2,{"v":2610.79,"d":"$2,610.79"},{"v":137.40999999999985,"d":"$137.41"},"10+",{"v":585,"d":"$585.00"},2025.79,2824.46,2683.24,2098.24,2767.44,2629.07,2044.0700000000002,128,0.36,15.6816,5.697534375,248.18459737499998,0.2628666035950804,null,{"$f":"IF(PRICING[[#This Row],[SKU]]=J10,AF10+1,1)","v":3}]
["Envu","A","G","NST","F","X","EOP",null,null,"D00000624","Castlon™","16 oz",428,{"v":406.6,"d":"$406.60"},{"v":21.399999999999977,"d":"$21.40"},null,null,406.6,{"$nulls":6},16,0.36,15.6816,9.1485,398.50866,0.04999999999999993,null,{"$f":"IF(PRICING[[#This Row],[SKU]]=J11,AF11+1,1)","v":1}]
["Envu","A","G","NST","F","X","EOP",null,null,"D00000624","Castlon™","16 oz",428,{"v":406.6,"d":"$406.60"},{"v":21.399999999999977,"d":"$21.40"},"4+",{"v":50,"d":"$50.00"},356.6,{"$nulls":6},16,0.36,15.6816,8.0235,349.50366,0.16682242990654206,null,{"$f":"IF(PRICING[[#This Row],[SKU]]=J12,AF12+1,1)","v":2}]
["Envu","A","GL","NST","F","X","EOP",null,null,"D00000624","Castlon™","16 oz",428,{"v":406.6,"d":"$406.60"},{"v":21.399999999999977,"d":"$21.40"},"8+",{"v":105,"d":"$105.00"},301.6,{"$nulls":6},16,0.36,15.6816,6.7860000000000005,295.59816,0.2953271028037383,null,{"$f":"IF(PRICING[[#This Row],[SKU]]=J13,AF13+1,1)","v":3}]
["Envu","A","G","NST","F","X","NOW","87276341",null,"D00000914","Chipco® Signature™","11 lb",404.8,384.56,20.24000000000001,null,0,384.56,416.03,395.23,395.23,407.64,387.25,387.25,10,4,174.24,153.824,6700.573440000001,0.050000000000000044,null,{"$f":"IF(PRICING[[#This Row],[SKU]]=J14,AF14+1,1)","v":1}]
["Envu","A","G","NST","F","X","NOW","87276341",null,"D00000914","Chipco® Signature™","11 lb",404.8,384.56,20.24000000000001,"9+",{"v":5,"d":"$5.00"},379.56,416.03,395.23,390.23,407.64,387.25,382.25,10,4,174.24,151.824,6613.453440000001,0.06235177865612651,null,{"$f":"IF(PRICING[[#This Row],[SKU]]=J15,AF15+1,1)","v":2}]
["Envu","A","G","NST","F","X","NOW","87348709","D00000926","D00001373","Densicor®","51 oz",702.8,667.66,35.139999999999986,null,null,667.66,"NA","NA","NA",707.72,672.33,672.33,51,0.196,8.53776,2.565909019607843,111.77099689411764,0.04999999999999993,null,{"$f":"IF(PRICING[[#This Row],[SKU]]=J16,AF16+1,1)","v":1}]
["Envu","A","G","NST","F","X","NOW","87348709","D00000926","D00001373","Densicor®","51 oz",702.8,667.66,35.139999999999986,"3+",{"v":100,"d":"$100.00"},567.66,"NA","NA","NA",707.72,672.33,572.33,51,0.196,8.53776,2.1815952941176473,95.03029101176472,0.19228799089356863,null,{"$f":"IF(PRICING[[#This Row],[SKU]]=J17,AF17+1,1)","v":2}]
["Envu","A","G","NST","F","X","EOP",85771248,"D00000934","D00000934","Exteris® Stressgard®"," 2.5 gal",370,{"v":370,"d":"$370.00"},0,null,null,370,{"$nulls":6},320,4,174.24,4.625,201.465,0,null,{"$f":"IF(PRICING[[#This Row],[SKU]]=J18,AF18+1,1)","v":1}]
["Envu","A","G","NST","F","X","EOP",85771248,"D00000934","D00000934","Exteris® Stressgard®"," 2.5 gal",370,{"v":370,"d":"$370.00"},0,"6+",{"v":45,"d":"$45.00"},325,{"$nulls":6},320,4,174.24,4.0625,176.9625,0.1216216216216216,null,{"$f":"IF(PRICING[[#This Row],[SKU]]=J19,AF19+1,1)","v":2}]
["FMC","A","G","NST","F",null,"EOP",null,null,11008377,"Fame® +C Fungicide","2.5 gal",575.4,575.4,0,null,null,575.4,{"$nulls":6},320,4,174.24,7.1925,313.3053,0,null,{"$f":"IF(PRICING[[#This Row],[SKU]]=J20,AF20+1,1)","v":1}]
["FMC","A","GL","NST","F","X","NOW",null,null,11008557,"Fame® SC Fungicide","64 oz",1549.45,1471.98,77.47000000000003,null,null,1471.98,1592.45,1512.83,1512.83,1560.3,1482.28,1482.28,64,0.36,15.6816,8.2798875,360.6718995,0.04999838652425059,null,{"$f":"IF(PRICING[[#This Row],[SKU]]=J21,AF21+1,1)","v":1}]
["FMC","A","GL","NST","F","X","NOW",null,null,11008557,"Fame® SC Fungicide","64 oz",1549.45,1471.98,77.47000000000003,"4+",{"v":410,"d":"$410.00"},1061.98,1592.45,1512.83,1102.83,1560.3,1482.28,1072.28,64,0.36,15.6816,5.9736375,260.2116495,0.3146084094356062,null,{"$f":"IF(PRICING[[#This Row],[SKU]]=J22,AF22+1,1)","v":2}]
["FMC","A","GL","NST","F","X","NOW",null,null,11009500,"Fame® SC Fungicide","2.5 gal",6863.6,6520.42,343.1800000000003,null,null,6520.42,7054.06,6701.36,6701.36,6911.64,6566.06,6566.06,320,0.36,15.6816,7.3354725,319.53318210000003,0.050000000000000044,null,{"$f":"IF(PRICING[[#This Row],[SKU]]=J23,AF23+1,1)","v":1}]
["FMC","A","GL","NST","F","X","NOW",null,null,11009500,"Fame® SC Fungicide","2.5 gal",{"v":6863.6,"d":"$6,863.60"},{"v":6520.42,"d":"$6,520.42"},{"v":343.1800000000003,"d":"$343.18"},"2-3",{"v":1450,"d":"$1,450.00"},5070.42,7054.06,6701.36,5251.36,6911.64,6566.06,5116.06,320,0.36,15.6816,5.7042225,248.4759321,0.26125939740078097,null,{"$f":"IF(PRICING[[#This Row],[SKU]]=J24,AF24+1,1)","v":2}]
["FMC","A","GL","NST","F","X","NOW",null,null,11009500,"Fame® SC Fungicide","2.5 gal",{"v":6863.6,"d":"$6,863.60"},{"v":6520.42,"d":"$6,520.42"},{"v":343.1800000000003,"d":"$343.18"},"4+",{"v":1600,"d":"$1,600.00"},4920.42,7054.06,6701.36,5101.36,6911.64,6566.06,4966.06,320,0.36,15.6816,5.5354725,241.12518210000002,0.28311381782155143,null,{"$f":"IF(PRICING[[#This Row],[SKU]]=J25,AF25+1,1)","v":3}]
["FMC","A","G","NST","F","X","EOP",null,null,11008393,"Fame® SC Fungicide","16 oz",{"v":428,"d":"$428.00"},{"v":406.6,"d":"$406.60"},{"v":21.399999999999977,"d":"$21.40"},null,null,406.6,{"$nulls":6},16,0.36,15.6816,9.1485,398.50866,0.04999999999999993,null,{"$f":"IF(PRICING[[#This Row],[SKU]]=J26,AF26+1,1)","v":1}]
["FMC","TT","G","NST","F","X","EOP",null,null,11008393,"Fame® SC Fungicide","16 oz",{"v":428,"d":"$428.00"},{"v":406.6,"d":"$406.60"},{"v":21.399999999999977,"d":"$21.40"},"4+",{"v":50,"d":"$50.00"},356.6,{"$nulls":6},16,0.36,15.6816,8.0235,349.50366,0.16682242990654206,null,{"$f":"IF(PRICING[[#This Row],[SKU]]=J27,AF27+1,1)","v":2}]
["FMC","TT","G","NST","F","X","EOP",null,null,11008393,"Fame® SC Fungicide","16 oz",428,406.6,21.399999999999977,"8+",{"v":105,"d":"$105.00"},301.6,{"$nulls":6},16,0.36,15.6816,6.7860000000000005,295.59816,0.2953271028037383,null,{"$f":"IF(PRICING[[#This Row],[SKU]]=J28,AF28+1,1)","v":3}]
["Envu","A","G","NST","F","X","EOP","80910932",null,"D00000935","Fiata® Stressgard®"," 2.5 gal",{"v":192,"d":"$192.00"},{"v":192,"d":"$192.00"},{"v":0,"d":"$0.00"},null,null,192,{"$nulls":6},320,3,130.68,1.7999999999999998,78.408,0,null,{"$f":"IF(PRICING[[#This Row],[SKU]]=J29,AF29+1,1)","v":1}]
["Envu","A","G","NST","F","X","EOP","80910932",null,"D00000935","Fiata® Stressgard®"," 2.5 gal",{"v":192,"d":"$192.00"},{"v":192,"d":"$192.00"},{"v":0,"d":"$0.00"},"16+",{"v":10,"d":"$10.00"},182,{"$nulls":6},320,3,130.68,1.7062499999999998,74.32425,0.05208333333333337,null,{"$f":"IF(PRICING[[#This Row],[SKU]]=J30,AF30+1,1)","v":2}]
["Envu","A","G","NST","F","X","NOW","84411426","D00000940","D00001379","Indemnify®","17.1 fl oz",1963.6,1865.42,98.17999999999984,null,null,1865.42,2018.09,1917.19,1917.19,1977.34,1878.48,1878.48,17.1,0.39,16.988400000000002,42.54466666666667,1853.2456800000002,0.04999999999999993,null,{"$f":"IF(PRICING[[#This Row],[SKU]]=J31,AF31+1,1)","v":1}]
["Envu","A","G","NST","F","X","NOW","84411426","D00000940","D00001379","Indemnify®","17.1 fl oz",{"v":1963.6,"d":"$1,963.60"},{"v":1865.42,"d":"$1,865.42"},{"v":98.17999999999984,"d":"$98.18"},"3-5",{"v":185,"d":"$185.00"},1680.42,2018.09,1917.19,1732.19,1977.34,1878.48,1693.48,17.1,0.39,16.988400000000002,38.32536842105263,1669.4530484210527,0.14421470767977174,null,{"$f":"IF(PRICING[[#This Row],[SKU]]=J32,AF32+1,1)","v":2}]
["Envu","A","G","NST","F","X","NOW","84411426","D00000940","D00001379","Indemnify®","17.1 fl oz",{"v":1963.6,"d":"$1,963.60"},{"v":1865.42,"d":"$1,865.42"},{"v":98.17999999999984,"d":"$98.18"},"6+",{"v":410,"d":"$410.00"},1455.42,2018.09,1917.19,1507.19,1977.34,1878.48,1468.48,17.1,0.39,16.988400000000002,33.19378947368421,1445.9214694736845,0.25880016296598074,null,{"$f":"IF(PRICING[[#This Row],[SKU]]=J33,AF33+1,1)","v":3}]
["Envu","A","G","NST","F","X","NOW",null,null,81701245,"Interface® Stressgard®","2.5 gal",{"v":573,"d":"$573.00"},{"v":544.35,"d":"$544.35"},{"v":28.649999999999977,"d":"$28.65"},null,null,544.35,588.9,559.46,559.46,577,548.16,548.16,320,4,174.24,6.804375,296.39857500000005,0.04999999999999993,null,{"$f":"IF(PRICING[[#This Row],[SKU]]=J34,AF34+1,1)","v":1}]
["Envu","A","G","NST","F","X","NOW",null,null,81701245,"Interface® Stressgard®","2.5 gal",{"v":573,"d":"$573.00"},{"v":544.35,"d":"$544.35"},{"v":28.649999999999977,"d":"$28.65"},"6+",{"v":90,"d":"$90.00"},454.35,588.9,559.46,469.46000000000004,577,548.16,458.15999999999997,320,4,174.24,5.679375,247.39357500000003,0.20706806282722512,null,{"$f":"IF(PRICING[[#This Row],[SKU]]=J35,AF35+1,1)","v":2}]
["FMC","A","G","NST","F","X","EOP",null,null,11013671,"Kalida® Fungicide ","64 oz",{"v":866.4,"d":"$866.40"},{"v":866.4,"d":"$866.40"},{"v":0,"d":"$0.00"},null,null,866.4,{"$nulls":6},64,0.4,17.424000000000003,5.415,235.87740000000002,0,null,{"$f":"IF(PRICING[[#This Row],[SKU]]=J36,AF36+1,1)","v":1}]
["FMC","A","G","NST","F","X","EOP",null,null,11013671,"Kalida® Fungicide ","64 oz",{"v":866.4,"d":"$866.40"},{"v":866.4,"d":"$866.40"},0,"4+",{"v":295,"d":"$295.00"},571.4,{"$nulls":6},64,0.4,17.424000000000003,3.57125,155.56365000000002,0.34048938134810713,null,{"$f":"IF(PRICING[[#This Row],[SKU]]=J37,AF37+1,1)","v":2}]
["Envu","A","G","NST","F","X","NOW","80973942",null,"D00000965","Mirage® Stressgard®","2.5 gal",493,{"v":493,"d":"$493.00"},0,null,null,493,506.68,506.68,506.68,496.45,496.45,496.45,320,1,43.56,1.540625,67.109625,0,null,{"$f":"IF(PRICING[[#This Row],[SKU]]=J38,AF38+1,1)","v":1}]
["Envu","A","G","NST","F","X","NOW","80973942",null,"D00000965","Mirage® Stressgard®","2.5 gal",493,{"v":493,"d":"$493.00"},0,"4+",{"v":90,"d":"$90.00"},403,506.68,506.68,416.68,496.45,496.45,406.45,320,1,43.56,1.259375,54.858375,0.1825557809330629,null,{"$f":"IF(PRICING[[#This Row],[SKU]]=J39,AF39+1,1)","v":2}]
["FMC","A","G","NST","F","X","NOW",null,null,11003880,"Rayora® Fungicide ","2.5 gal",631.4,631.4,0,null,null,631.4,648.92,648.92,648.92,635.82,635.82,635.82,320,1.22,53.1432,2.4072125,104.8581765,0,null,{"$f":"IF(PRICING[[#This Row],[SKU]]=J40,AF40+1,1)","v":1}]
["FMC","A","G","NST","F","X","NOW",null,null,11003880,"Rayora® Fungicide ","2.5 gal",631.4,{"v":631.4,"d":"$631.40"},0,"6+",{"v":160,"d":"$160.00"},471.4,648.92,648.92,488.91999999999996,635.82,635.82,475.82000000000005,320,1.22,53.1432,1.7972124999999999,78.2865765,0.25340513145391197,null,{"$f":"IF(PRICING[[#This Row],[SKU]]=J41,AF41+1,1)","v":2}]
["Envu","A","G","NST","F","X","NOW",null,null,"D00000125","Resilia™","2.72 gal",946.56,{"v":946.56,"d":"$946.56"},0,null,null,946.56,"NA","NA","NA",953.2,953.2,953.2,348.16,4,174.24,10.874999999999998,473.715,0,null,{"$f":"IF(PRICING[[#This Row],[SKU]]=J42,AF42+1,1)","v":1}]
["Envu","A","G","NST","F","X","NOW",null,null,"D00000125","Resilia™","2.72 gal",946.56,{"v":946.56,"d":"$946.56"},0,"4-14",{"v":65,"d":"$65.00"},881.56,"NA","NA","NA",953.2,953.2,888.2,348.16,4,174.24,10.128216911764705,441.1851286764706,0.06866970926301552,null,{"$f":"IF(PRICING[[#This Row],[SKU]]=J43,AF43+1,1)","v":2}]
["Envu","A","G","NST","F","X","NOW",null,null,"D00000125","Resilia™","2.72 gal",946.56,{"v":946.56,"d":"$946.56"},0,"15+",{"v":180,"d":"$180.00"},766.56,"NA","NA","NA",953.2,953.2,773.2,348.16,4,174.24,8.806985294117645,383.6322794117646,0.1901622718052739,null,{"$f":"IF(PRICING[[#This Row],[SKU]]=J44,AF44+1,1)","v":3}]
["FMC","A","G","NST","F","X","NOW",null,null,11014245,"Serata® Fungicide ","35 oz",499.8,474.81,24.99000000000001,null,null,474.81,513.67,487.99,487.99,503.3,478.13,478.13,35,0.6,26.136,8.1396,354.560976,0.050000000000000044,null,{"$f":"IF(PRICING[[#This Row],[SKU]]=J45,AF45+1,1)","v":1}]
["FMC","A","G","NST","F","X","NOW",null,null,11014245,"Serata® Fungicide ","35 oz",499.8,474.81,24.99000000000001,"8+",{"v":15,"d":"$15.00"},459.81,513.67,487.99,472.99,503.3,478.13,463.13,35,0.6,26.136,7.882457142857143,343.35983314285716,0.08001200480192083,null,{"$f":"IF(PRICING[[#This Row],[SKU]]=J46,AF46+1,1)","v":2}]
["Envu","A","G","NST","F","X","NOW","85355422",null,"D00000989","Signature™ XTRA Stressgard® ","5.5 lb",210.4,199.88,10.52000000000001,null,null,199.88,216.24,205.43,205.43,211.88,201.28,201.28,88,4,174.24,9.085454545454546,395.7624,0.050000000000000044,null,{"$f":"IF(PRICING[[#This Row],[SKU]]=J47,AF47+1,1)","v":1}]
["Envu","A","G","NST","F","X","NOW","85355422",null,"D00000989","Signature™ XTRA Stressgard® ","5.5 lb",210.4,199.88,10.52000000000001,"24+",{"v":15,"d":"$15.00"},184.88,216.24,205.43,190.43,211.88,201.28,186.28,88,4,174.24,8.403636363636364,366.0624,0.12129277566539931,null,{"$f":"IF(PRICING[[#This Row],[SKU]]=J48,AF48+1,1)","v":2}]
["Envu","A","G","NST","F","X","EOP","81760942",null,"D00000998","Tartan® Stressgard® ","2.5 gal",1033,{"v":981.35,"d":"$981.35"},{"v":51.64999999999998,"d":"$51.65"},null,0,981.35,{"$nulls":6},320,1.5,65.34,4.6000781250000005,200.379403125,0.04999999999999993]
["Envu","A","G","NST","F","X","EOP","81760942",null,"D00000998","Tartan® Stressgard® ","2.5 gal",940,{"v":893,"d":"$893.00"},{"v":47,"d":"$47.00"},"6+",{"v":5,"d":"$5.00"},888,{"$nulls":6},320,1.5,65.34,4.1625,181.3185,0.05531914893617018]
["FMC","A","G","NST","F","X","EOP",null,null,11015981,"Tarvecta","2.5 gal",3360,{"v":3360,"d":"$3,360.00"},0,null,null,3360,{"$nulls":6},320,0.7,30.492,7.35,320.166,0]
["FMC","A","G","NST","F","X","EOP",null,null,11015981,"Tarvecta","2.5 gal",3360,{"v":3360,"d":"$3,360.00"},0,"3+",{"v":400,"d":"$400.00"},2960,{"$nulls":6},320,0.7,30.492,6.475,282.051,0.11904761904761907]
["FMC","A","G","NST","F","X","EOP",null,null,11015990,"Tarvecta","64 oz",772.8,{"v":772.8,"d":"$772.80"},0,null,null,772.8,{"$nulls":6},64,0.7,30.492,8.452499999999999,368.1909,0]
["FMC","A","G","NST","F","X","EOP",null,null,11015990,"Tarvecta","64 oz",772.8,{"v":772.8,"d":"$772.80"},0,"4+",{"v":145,"d":"$145.00"},627.8,{"$nulls":6},64,0.7,30.492,6.866562499999999,299.1074625,0.18762939958592129]
["Envu","TT","GL","NST","H",null,"EOP",null,null,"D00000665","Acclaim Accelerate","0.5 gal",55.55,55.55,0,"150 gal*",{"v":7.5,"d":"$7.50"},48.05,{"$nulls":6},64,1.4692378328741964,64,1.1030762167125803,48.05,0.135013501350135,null,{"$f":"IF(PRICING[[#This Row],[SKU]]=J55,AF55+1,1)","v":1}]
["Envu","TT","GL","NST","H",null,"EOP",null,null,"D00000666","Acclaim Accelerate","2.5 gal ",267.65,267.65,0,"150 gal*",{"v":37.5,"d":"$37.50"},230.14999999999998,{"$nulls":6},320,1.4692378328741964,64,1.0567033976124882,46.029999999999994,0.14010835045768733,null,{"$f":"IF(PRICING[[#This Row],[SKU]]=J56,AF56+1,1)","v":1}]
["Envu","TT","GL","N","H",null,"EOP",null,null,87300722,"Acclaim Extra","1 gal",798.24,798.24,0,null,{"v":90,"d":"$90.00"},708.24,{"$nulls":6},128,0.4591368227731864,20,2.5404614325068873,110.6625,0.1127480457005412,null,{"$f":"IF(PRICING[[#This Row],[SKU]]=J57,AF57+1,1)","v":1}]
["Envu","TT","GL","ST","H",null,"EOP",null,null,11008351,"Blindside® Herbicide ","0.5 lb",166.86,166.86,0,null,{"v":22,"d":"$22.00"},144.86,{"$nulls":6},8,0.14921946740128558,6.5,2.701991505968779,117.69875000000002,0.13184705741340041,null,{"$f":"IF(PRICING[[#This Row],[SKU]]=J58,AF58+1,1)","v":1}]
["Envu","A","GL","ST","H","X","NOW",null,null,79714858,"Celsius® WG","10 oz",131.2,{"v":124.64,"d":"$124.64"},{"v":6.559999999999988,"d":"$6.56"},null,null,124.64,134.84,128.1,128.1,132.12,125.51,125.51,10,0.08494031221303948,3.6999999999999997,1.0586960514233241,46.1168,0.04999999999999993,null,{"$f":"IF(PRICING[[#This Row],[SKU]]=J59,AF59+1,1)","v":1}]
["Envu","A","GL","ST","H","X","NOW",null,null,79714858,"Celsius® WG","10 oz",131.2,{"v":124.64,"d":"$124.64"},{"v":6.559999999999988,"d":"$6.56"},"48+",{"v":12,"d":"$12.00"},112.64,134.84,128.1,116.1,132.12,125.51,113.51,10,0.08494031221303948,3.6999999999999997,0.9567676767676766,41.67679999999999,0.14146341463414625,null,{"$f":"IF(PRICING[[#This Row],[SKU]]=J60,AF60+1,1)","v":2}]
["Envu","A","L",null,"H",null,"LL/SLP/NOW",null,null,79714858,"Celsius® WG","10 oz",131.2,{"v":124.64,"d":"$124.64"},{"v":6.559999999999988,"d":"$6.56"},"96+",{"v":24,"d":"$24.00"},100.64,134.84,128.1,104.1,132.12,125.51,101.51,10,0.08494031221303948,3.6999999999999997,0.8548393021120293,37.236799999999995,0.23292682926829256,null,{"$f":"IF(PRICING[[#This Row],[SKU]]=J61,AF61+1,1)","v":3}]
["Envu","A","GL","ST","H","X","NOW","86773201",null,"D00000911","Celsius® XTRA","10 oz",166.4,{"v":158.08,"d":"$158.08"},{"v":8.319999999999993,"d":"$8.32"},null,null,158.08,"NA","NA","NA",167.56,159.19,159.19,10,0.1721763085399449,7.5,2.721763085399449,118.56000000000002,0.04999999999999993,null,{"$f":"IF(PRICING[[#This Row],[SKU]]=J62,AF62+1,1)","v":1}]
["Envu","A","GL","ST","H","X","NOW","86773201",null,"D00000911","Celsius® XTRA","10 oz",166.4,158.08,8.319999999999993,"16+",{"v":12,"d":"$12.00"},146.08,"NA","NA","NA",167.56,159.19,147.19,10,0.1721763085399449,7.5,2.515151515151515,109.56,0.12211538461538463,null,{"$f":"IF(PRICING[[#This Row],[SKU]]=J63,AF63+1,1)","v":2}]
["Envu","A","L",null,"H",null,"LL/SLP/NOW","86773201",null,"D00000911","Celsius® XTRA","10 oz",166.4,{"v":158.08,"d":"$158.08"},{"v":8.319999999999993,"d":"$8.32"},"32+",{"v":24,"d":"$24.00"},134.08,"NA","NA","NA",167.56,159.19,135.19,10,0.1721763085399449,7.5,2.3085399449035813,100.56,0.1942307692307692,null,{"$f":"IF(PRICING[[#This Row],[SKU]]=J64,AF64+1,1)","v":3}]
["FMC","TT","GL","ST","H",null,"EOP",null,null,11008357,"Dismiss® CA Herbicide","6 oz",81.78,{"v":81.78,"d":"$81.78"},0,null,{"v":14,"d":"$14.00"},67.78,{"$nulls":6},6,0,0,0,0,0.17119100024455858,null,{"$f":"IF(PRICING[[#This Row],[SKU]]=J65,AF65+1,1)","v":1}]
["FMC","A","GLO","NST","H",null,"EOP",null,null,11008409,"Dismiss® NXT Herbicide","10 oz",94.8,{"v":94.8,"d":"$94.80"},0,null,{"v":11,"d":"$11.00"},83.8,{"$nulls":6},10,0.23415977961432505,10.2,1.9622589531680437,85.47599999999998,0.11603375527426163,null,{"$f":"IF(PRICING[[#This Row],[SKU]]=J66,AF66+1,1)","v":1}]
["FMC","A","GLO","NST","H","X","EOP",null,null,11008589,"Dismiss® NXT Herbicide","60 oz",504.8,{"v":479.56,"d":"$479.56"},{"v":25.24000000000001,"d":"$25.24"},null,null,479.56,{"$nulls":6},60,0.23415977961432505,10.2,1.8715610651974286,81.5252,0.050000000000000044,null,{"$f":"IF(PRICING[[#This Row],[SKU]]=J67,AF67+1,1)","v":1}]
["FMC","A","GLO","NST","H","X","EOP",null,null,11008589,"Dismiss® NXT Herbicide","60 oz",504.8,{"v":479.56,"d":"$479.56"},{"v":25.24000000000001,"d":"$25.24"},"16+",{"v":60,"d":"$60.00"},419.56,{"$nulls":6},60,0.23415977961432505,10.2,1.6374012855831035,71.3252,0.16885895404120443,null,{"$f":"IF(PRICING[[#This Row],[SKU]]=J68,AF68+1,1)","v":2}]
["FMC","A","L",null,"H",null,"LL/SLP/EOP",null,null,11008589,"Dismiss® NXT Herbicide","60 oz",504.8,{"v":479.56,"d":"$479.56"},{"v":25.24000000000001,"d":"$25.24"},"32+",{"v":150,"d":"$150.00"},329.56,{"$nulls":6},60,0.23415977961432505,10.2,1.286161616161616,56.0252,0.34714738510301113,null,{"$f":"IF(PRICING[[#This Row],[SKU]]=J69,AF69+1,1)","v":3}]
["FMC","TT","GL","ST","H",null,"EOP",null,null,11008474,"Dismiss® South Herbicide","1 pint ",186.66,{"v":186.66,"d":"$186.66"},0,null,{"v":24,"d":"$24.00"},162.66,{"$nulls":6},16,0.21808999081726355,9.5,2.2171573691460056,96.579375,0.12857602057216333,null,{"$f":"IF(PRICING[[#This Row],[SKU]]=J70,AF70+1,1)","v":1}]
["FMC","TT","GL","NST","H",null,"EOP/ORN",null,null,11008475,"Dismiss® Turf Herbicide","6 oz",81.78,81.78,0,null,{"v":14,"d":"$14.00"},67.78,{"$nulls":6},6,0.18365472910927455,8,2.0746862565044384,90.37333333333333,0.17119100024455858,null,{"$f":"IF(PRICING[[#This Row],[SKU]]=J71,AF71+1,1)","v":1}]
["FMC","TT","GL","NST","H",null,"EOP/ORN",null,null,11008336,"Dismiss® Turf Herbicide","64 oz",363.59999999999997,{"v":363.59999999999997,"d":"$363.60"},0,null,{"v":40,"d":"$40.00"},323.59999999999997,{"$nulls":6},64,0.18365472910927455,8,0.9286042240587693,40.449999999999996,0.11001100110010997,null,{"$f":"IF(PRICING[[#This Row],[SKU]]=J72,AF72+1,1)","v":1}]
["FMC","A","GL","NST","H","X","EOP",null,null,11008464,"Echelon® 4SC Herbicide","1 gal",454,{"v":431.3,"d":"$431.30"},{"v":22.69999999999999,"d":"$22.70"},null,null,431.3,{"$nulls":6},128,0.5509641873278237,24.000000000000004,1.856491046831956,80.86875000000002,0.04999999999999993,null,{"$f":"IF(PRICING[[#This Row],[SKU]]=J73,AF73+1,1)","v":1}]
["FMC","A","GL","NST","H","X","EOP",null,null,11008464,"Echelon® 4SC Herbicide","1 gal",{"v":454,"d":"$454.00"},{"v":431.3,"d":"$431.30"},{"v":22.69999999999999,"d":"$22.70"},"16+",{"v":145,"d":"$145.00"},286.3,{"$nulls":6},128,0.5509641873278237,24.000000000000004,1.2323519283746558,53.68125000000001,0.36938325991189425,null,{"$f":"IF(PRICING[[#This Row],[SKU]]=J74,AF74+1,1)","v":2}]
["Envu","A","O",null,"H",null,"ORN","86729148",null,"D00000946","Marengo FLO","64 oz",{"v":1156.8,"d":"$1,156.80"},{"v":1156.8,"d":"$1,156.80"},{"v":0,"d":"$0.00"},"1-3",null,1156.8,{"$nulls":11},0,null,{"$f":"IF(PRICING[[#This Row],[SKU]]=J75,AF75+1,1)","v":1}]
["Envu","A","O",null,"H",null,"ORN","86729148",null,"D00000946","Marengo FLO","64 oz",{"v":1156.8,"d":"$1,156.80"},{"v":1098.96,"d":"$1,098.96"},{"v":57.83999999999992,"d":"$57.84"},"4-15",null,1098.96,{"$nulls":13},{"$f":"IF(PRICING[[#This Row],[SKU]]=J76,AF76+1,1)","v":2}]
["Envu","A","O",null,"H",null,"ORN","86729148",null,"D00000946","Marengo FLO","64 oz",1156.8,1041.12,115.68000000000006,"16+",null,1041.12,{"$nulls":13},{"$f":"IF(PRICING[[#This Row],[SKU]]=J77,AF77+1,1)","v":3}]
["Envu","A","O",null,"H",null,"ORN","84922757",null,"D00000945","Marengo G","50 lb",{"v":126.5,"d":"$126.50"},{"v":126.5,"d":"$126.50"},{"v":0,"d":"$0.00"},"1-39",null,126.5,{"$nulls":11},0,null,{"$f":"IF(PRICING[[#This Row],[SKU]]=J78,AF78+1,1)","v":1}]
["Envu","A","O",null,"H",null,"ORN","84922757",null,"D00000945","Marengo G","50 lb",{"v":126.5,"d":"$126.50"},{"v":120.18,"d":"$120.18"},{"v":6.319999999999993,"d":"$6.32"},"40-119",null,120.18,{"$nulls":13},{"$f":"IF(PRICING[[#This Row],[SKU]]=J79,AF79+1,1)","v":2}]
["Envu","A","O",null,"H",null,"ORN","84922757",null,"D00000945","Marengo G","50 lb",{"v":126.5,"d":"$126.50"},{"v":113.85,"d":"$113.85"},{"v":12.650000000000006,"d":"$12.65"},"120+",null,113.85,{"$nulls":13},{"$f":"IF(PRICING[[#This Row],[SKU]]=J80,AF80+1,1)","v":3}]
["Envu","TT","G","NST","H",null,"EOP",null,null,86215578,"Prograss EC","2.5 gal ",441.9,{"v":441.9,"d":"$441.90"},0,null,{"v":22,"d":"$22.00"},419.9,{"$nulls":6},320,1.9513314967860422,85,2.5605127984389346,111.53593749999999,0.04978501923512102,null,{"$f":"IF(PRICING[[#This Row],[SKU]]=J81,AF81+1,1)","v":1}]
["Envu","TT","G","NST","H",null,"EOP","04249932",null,"D00000913","Proxy","2.5 gal ",122.69999999999999,{"v":122.69999999999999,"d":"$122.70"},0,null,null,122.69999999999999,{"$nulls":6},320,5,217.8,1.9171874999999998,83.5126875,0,null,{"$f":"IF(PRICING[[#This Row],[SKU]]=J82,AF82+1,1)","v":1}]
["FMC","TT","GL","NST","H",null,"EOP",null,null,11008447,"QuickSilver® Herbicide ","8 oz",199.92,199.92,0,null,{"v":20,"d":"$20.00"},179.92,{"$nulls":6},8,0.027548209366391182,1.2,0.6195592286501377,26.987999999999996,0.10004001600640255,null,{"$f":"IF(PRICING[[#This Row],[SKU]]=J83,AF83+1,1)","v":1}]
["Envu","A","GL","ST","H","X","NOW",null,null,79545312,"Revolver®","87 fl oz",765.6,{"v":727.32,"d":"$727.32"},{"v":38.27999999999997,"d":"$38.28"},null,null,727.32,786.85,747.5,747.5,770.96,732.41,732.41,87,0.3994490358126721,17.4,3.3393939393939394,145.464,0.04999999999999993,null,{"$f":"IF(PRICING[[#This Row],[SKU]]=J84,AF84+1,1)","v":1}]
["Envu","A","GL","ST","H","X","NOW",null,null,79545312,"Revolver®","87 fl oz",765.6,727.32,38.27999999999997,"16+",{"v":50,"d":"$50.00"},677.32,786.85,747.5,697.5,770.96,732.41,682.41,87,0.3994490358126721,17.4,3.109825528007346,135.464,0.11530825496342734,null,{"$f":"IF(PRICING[[#This Row],[SKU]]=J85,AF85+1,1)","v":2}]
["Envu","A","L",null,"H",null,"LL/SLP/NOW",null,null,79545312,"Revolver®","87 fl oz",765.6,{"v":727.32,"d":"$727.32"},{"v":38.27999999999997,"d":"$38.28"},"32+",{"v":100,"d":"$100.00"},627.32,786.85,747.5,647.5,770.96,732.41,632.41,87,0.3994490358126721,17.4,2.8802571166207525,125.464,0.18061650992685474,null,{"$f":"IF(PRICING[[#This Row],[SKU]]=J86,AF86+1,1)","v":3}]
["Envu","TT","GL","ST","H",null,"EOP",null,null,79850980,"Revolver®","32 fl oz",349.73999999999995,{"v":349.73999999999995,"d":"$349.74"},0,null,{"v":21,"d":"$21.00"},328.73999999999995,{"$nulls":6},32,0.3994490358126721,17.4,4.103589876033056,178.75237499999997,0.06004460456339,null,{"$f":"IF(PRICING[[#This Row],[SKU]]=J87,AF87+1,1)","v":1}]
["Envu","A","G","ST","H",null,"EOP",80847505,null,"D00000986","Ronstar® FLO ","2.5 gal",552,552,0,"1-11",null,552,{"$nulls":6},320,1.9972451790633607,87,3.4452479338842976,150.07500000000002,0,null,{"$f":"IF(PRICING[[#This Row],[SKU]]=J88,AF88+1,1)","v":1}]
["Envu","A","G","ST","H",null,"EOP",80847505,null,"D00000986","Ronstar® FLO ","2.5 gal",453,393,60,"12+",null,393,{"$nulls":6},320,1.9972451790633607,87,2.4528667355371896,106.846875,0.13245033112582782,null,{"$f":"IF(PRICING[[#This Row],[SKU]]=J89,AF89+1,1)","v":2}]
["Envu","A","G","ST","H",null,"EOP",80847505,null,"D00000986","Ronstar® FLO ","2.5 gal",393,393,0,"40+",null,393,{"$nulls":6},320,1.9972451790633607,87,2.4528667355371896,106.846875,0,null,{"$f":"IF(PRICING[[#This Row],[SKU]]=J90,AF90+1,1)","v":3}]
["Envu","TT","G","ST","H",null,"EOP",null,null,427709,"Sencor 75","5 lb",710.1,710.1,0,null,null,710.1,{"$nulls":6},10.6,0.24334251606978877,10.6,16.301652892561982,710.1000000000001,0,null,{"$f":"IF(PRICING[[#This Row],[SKU]]=J91,AF91+1,1)","v":1}]
["FMC","A","GL","NST","H","X","EOP",null,null,11008522,"Solitare® Herbicide ","4 lb",596.4,566.58,29.819999999999936,null,null,566.58,{"$nulls":6},64,0.3673094582185491,16,3.2517217630853996,141.645,0.04999999999999993,null,{"$f":"IF(PRICING[[#This Row],[SKU]]=J92,AF92+1,1)","v":1}]
["FMC","A","GL","NST","H","X","EOP",null,null,11008522,"Solitare® Herbicide ","4 lb",596.4,{"v":566.58,"d":"$566.58"},{"v":29.819999999999936,"d":"$29.82"},"16+",{"v":40,"d":"$40.00"},526.58,{"$nulls":6},64,0.3673094582185491,16,3.0221533516988064,131.645,0.11706908115358805,null,{"$f":"IF(PRICING[[#This Row],[SKU]]=J93,AF93+1,1)","v":2}]
["FMC","A","L",null,"H",null,"LL/SLP/EOP",null,null,11008522,"Solitare® Herbicide ","4 lb",596.4,{"v":566.58,"d":"$566.58"},{"v":29.819999999999936,"d":"$29.82"},"32+",{"v":85,"d":"$85.00"},481.58000000000004,{"$nulls":6},64,0.3673094582185491,16,2.763888888888889,120.39500000000001,0.19252179745137477,null,{"$f":"IF(PRICING[[#This Row],[SKU]]=J94,AF94+1,1)","v":3}]
["FMC","TT","GL","NST","H",null,"EOP",null,null,11008482,"Solitare® Herbicide ","1 lb ",197.76000000000002,{"v":197.76000000000002,"d":"$197.76"},0,null,{"v":15,"d":"$15.00"},182.76000000000002,{"$nulls":6},16,0.3673094582185491,16,4.195592286501378,182.76000000000002,0.07584951456310673,null,{"$f":"IF(PRICING[[#This Row],[SKU]]=J95,AF95+1,1)","v":1}]
["FMC","A","GL","NST","H","X","NOW",null,null,11013862,"Solitare® WSL Herbicide","2.5 gal",262.4,{"v":249.28,"d":"$249.28"},{"v":13.119999999999976,"d":"$13.12"},null,null,249.28,269.68,256.2,256.2,264.24,251.02,251.02,320,3.9,169.88400000000001,3.0381,132.339636,0.04999999999999993,null,{"$f":"IF(PRICING[[#This Row],[SKU]]=J96,AF96+1,1)","v":1}]
["FMC","A","GL","NST","H","X","NOW",null,null,11013862,"Solitare® WSL Herbicide","2.5 gal",262.4,{"v":249.28,"d":"$249.28"},{"v":13.119999999999976,"d":"$13.12"},"24+",{"v":40,"d":"$40.00"},209.28,269.68,256.2,216.2,264.24,251.02,211.02,320,3.9,169.88400000000001,2.5506,111.10413600000001,0.20243902439024386,null,{"$f":"IF(PRICING[[#This Row],[SKU]]=J97,AF97+1,1)","v":2}]
["FMC","A","L",null,"H",null,"LL/SLP/NOW",null,null,11013862,"Solitare® WSL Herbicide","2.5 gal",262.4,{"v":249.28,"d":"$249.28"},{"v":13.119999999999976,"d":"$13.12"},"48+",{"v":85,"d":"$85.00"},164.28,269.68,256.2,171.2,264.24,251.02,166.02,320,3.9,169.88400000000001,2.0021625,87.21419850000001,0.37393292682926826,null,{"$f":"IF(PRICING[[#This Row],[SKU]]=J98,AF98+1,1)","v":3}]
["FMC","TT","GL","NST","H",null,"EOP",null,null,11008369,"Solitare® WSL Herbicide","0.75 gal ",117.6,{"v":117.6,"d":"$117.60"},0,null,{"v":12,"d":"$12.00"},105.6,{"$nulls":6},96,3.9,169.88400000000001,4.289999999999999,186.8724,0.10204081632653061,null,{"$f":"IF(PRICING[[#This Row],[SKU]]=J99,AF99+1,1)","v":1}]
["Envu","A","GL","ST","H","X","NOW","86775387",null,"D00000990","Specticle® FLO ","1 gal",2092.8,{"v":1946.3,"d":"$1,946.30"},{"v":146.50000000000023,"d":"$146.50"},"1-6",null,1946.3,2150.88,2000.31,2000.31,2107.44,1959.92,1959.92,128,0.13774104683195593,6.000000000000001,2.0944171831955924,91.23281250000001,0.07000191131498479,null,{"$f":"IF(PRICING[[#This Row],[SKU]]=J100,AF100+1,1)","v":1}]
["Envu","A","GL","ST","H","X","NOW","86775387",null,"D00000990","Specticle® FLO ","1 gal",2092.8,1862.59,230.21000000000026,"7-13",{"v":38,"d":"$38.00"},1824.59,2150.88,1914.28,1876.28,2107.44,1875.63,1837.63,128,0.13774104683195593,6.000000000000001,1.963444817493113,85.52765625,0.12815844801223253,null,{"$f":"IF(PRICING[[#This Row],[SKU]]=J101,AF101+1,1)","v":2}]
["Envu","A","GL","ST","H","X","NOW","86775387",null,"D00000990","Specticle® FLO ","1 gal",1796.4,1625.74,170.66000000000008,"14-25",{"v":32,"d":"$32.00"},1593.74,1846.25,1670.85,1638.85,1808.98,1637.12,1605.12,128,0.13774104683195593,6.000000000000001,1.7150266873278237,74.70656250000002,0.1128145179247384,null,{"$f":"IF(PRICING[[#This Row],[SKU]]=J102,AF102+1,1)","v":3}]
["Envu","A","L","ST","H","X","LL/SLP/NOW","86775387",null,"D00000990","Specticle® FLO ","1 gal",1796.4,{"v":1455.08,"d":"$1,455.08"},{"v":341.32000000000016,"d":"$341.32"},"26+",{"v":131,"d":"$131.00"},1324.08,1846.25,1495.46,1364.46,1808.98,1465.27,1334.27,128,0.13774104683195593,6.000000000000001,1.424845041322314,62.066250000000004,0.2629258517034069]
["Envu","A","L",null,"H",null,"LL/SLP/NOW","86775387",null,"D00000990","Specticle® FLO ","1 gal",1796.4,{"v":1455.08,"d":"$1,455.08"},{"v":341.32000000000016,"d":"$341.32"},"52-99",{"v":218,"d":"$218.00"},1237.08,1846.25,1495.46,1277.46,1808.98,1465.27,1247.27,128,0.13774104683195593,6.000000000000001,1.331224173553719,57.988125000000004,0.3113560454241818]
["Envu","A","L",null,"H",null,"LL/SLP/NOW","86775387",null,"D00000990","Specticle® FLO ","1 gal",1796.4,{"v":1455.08,"d":"$1,455.08"},{"v":341.32000000000016,"d":"$341.32"},"100+",{"v":320,"d":"$320.00"},1135.08,1846.25,1495.46,1175.46,1808.98,1465.27,1145.27,128,0.13774104683195593,6.000000000000001,1.2214617768595042,53.206875000000004,0.3681362725450903]
["Envu","A","GL","ST","H","X","NOW","84056146",null,"D00000992","Specticle® G","50 lb",130.5,{"v":123.98,"d":"$123.98"},{"v":6.519999999999996,"d":"$6.52"},null,null,123.98,134.12,127.42,127.42,131.5,124.85,124.85,800,3.443526170798898,150,0.5336604683195593,23.24625,0.04996168582375471]
["Envu","A","GL","ST","H","X","NOW","84056146",null,"D00000992","Specticle® G","50 lb",130.5,{"v":123.98,"d":"$123.98"},{"v":6.519999999999996,"d":"$6.52"},"20+",{"v":8,"d":"$8.00"},115.98,134.12,127.42,119.42,131.5,124.85,116.85,800,3.443526170798898,150,0.4992252066115702,21.74625,0.11126436781609195]
["Envu","A","L",null,"H",null,"LL/SLP/NOW","84056146",null,"D00000992","Specticle® G","50 lb",130.5,{"v":123.98,"d":"$123.98"},{"v":6.519999999999996,"d":"$6.52"},"200+",{"v":18,"d":"$18.00"},105.98,134.12,127.42,109.42,131.5,124.85,106.85,800,3.443526170798898,150,0.45618112947658407,19.87125,0.18789272030651338]
["Envu","TT","GL","NT","H",null,"EOP",null,null,"D00000675","Terradex C&B","1 gal ",115.1,{"v":115.1,"d":"$115.10"},0,"150 gal*",{"v":15,"d":"$15.00"},100.1,{"$nulls":6},128,2.571166207529844,112,2.010732323232323,87.58749999999999,0.13032145960034758]
["Envu","TT","GL","NT","H",null,"EOP",null,null,"D00000674","Terradex C&B","2.5 gal ",275.25,{"v":275.25,"d":"$275.25"},0,"150 gal*",{"v":37.5,"d":"$37.50"},237.75,{"$nulls":6},320,2.571166207529844,112,1.9102961432506886,83.21249999999999,0.1362397820163488]
["Envu","TT","GL","NT","H",null,"EOP",null,null,"D00000669","Terradex Power Premix","2.5 gal ",227.25,{"v":227.25,"d":"$227.25"},0,"150 gal*",{"v":37.5,"d":"$37.50"},189.75,{"$nulls":6},320,1.1019283746556474,48.00000000000001,0.6534090909090909,28.462500000000006,0.16501650165016502]
["Envu","TT","GL","NT","H",null,"EOP",null,null,"D00000670","Terradex Power Premix","30 gal",2484.6,{"v":2484.6,"d":"$2,484.60"},0,"150 gal*",{"v":450,"d":"$450.00"},2034.6,{"$nulls":6},3840,1.1019283746556474,48.00000000000001,0.5838498622589531,25.4325,0.1811156725428641]
["Envu","TT","GL","NST","H",null,"EOP",null,null,"D00000673","Terradex Quick Strike","1 gal ",80.8,{"v":80.8,"d":"$80.80"},0,"150 gal*",{"v":15,"d":"$15.00"},65.8,{"$nulls":6},128,1.1019283746556474,48.00000000000001,0.5664600550964187,24.675000000000004,0.1856435643564357]
["Envu","TT","GL","NST","H",null,"EOP",null,null,"D00000672","Terradex Quick Strike","2.5 gal ",191.95,{"v":191.95,"d":"$191.95"},0,"150 gal*",{"v":37.5,"d":"$37.50"},154.45,{"$nulls":6},320,1.1019283746556474,48.00000000000001,0.5318526170798897,23.1675,0.19536337587913521]
["Envu","TT","GL","NST","H",null,"EOP",null,null,"D00000671","Terradex Quick Strike","30 gal",2181.65,{"v":2181.65,"d":"$2,181.65"},0,"150 gal*",{"v":450,"d":"$450.00"},1731.65,{"$nulls":6},3840,1.1019283746556474,48.00000000000001,0.4969151744719927,21.645625000000006,0.20626589966309905]
["Envu","A","GL","ST","H","X","NOW",null,null,81746257,"Tribute® Total","6 oz",426.4,{"v":405.08,"d":"$405.08"},{"v":21.319999999999993,"d":"$21.32"},null,null,405.08,438.23,416.32,416.32,429.38,407.92,407.92,6,0.02295684113865932,1,1.5498928680746862,67.51333333333334,0.04999999999999993]
["Envu","A","GL","ST","H","X","NOW",null,null,81746257,"Tribute® Total","6 oz",426.4,{"v":405.08,"d":"$405.08"},{"v":21.319999999999993,"d":"$21.32"},"24+",{"v":30,"d":"$30.00"},375.08,438.23,416.32,386.32,429.38,407.92,377.92,6,0.02295684113865932,1,1.4351086623813893,62.51333333333333,0.12035647279549722]
["Envu","A","L",null,"H",null,"LL/SLP/NOW",null,null,81746257,"Tribute® Total","6 oz",426.4,{"v":405.08,"d":"$405.08"},{"v":21.319999999999993,"d":"$21.32"},"48+",{"v":50,"d":"$50.00"},355.08,438.23,416.32,366.32,429.38,407.92,357.92,6,0.02295684113865932,1,1.3585858585858586,59.18,0.16726078799249533]
["FMC","A","GL","NST","H","X","EOP",null,null,11008590,"Xonerate® 2SC Herbicide","12 oz",489.4,{"v":464.93,"d":"$464.93"},{"v":24.46999999999997,"d":"$24.47"},null,null,464.93,{"$nulls":6},12,0.3213957759412305,14,12.45221150902969,542.4183333333333,0.04999999999999993]
["FMC","A","GL","NST","H","X","EOP",null,null,11008590,"Xonerate® 2SC Herbicide","12 oz",489.4,{"v":464.93,"d":"$464.93"},{"v":24.46999999999997,"d":"$24.47"},"24+",{"v":50,"d":"$50.00"},414.93,{"$nulls":6},12,0.3213957759412305,14,11.113062442607896,484.08500000000004,0.15216591744993868]
["Envu","A","GLO","NST","I",null,"EOP/ORN","84989509",null,"D00000903","Altus®","64 oz",437.2,437.2,0,"1-15",null,437.2,{"$nulls":6},64,0.32,13.939200000000001,2.186,95.22216,0,null,{"$f":"IF(PRICING[[#This Row],[SKU]]=J121,AF121+1,1)","v":1}]
["Envu","A","GLO","NST","I",null,"EOP/ORN","84989509",null,"D00000903","Altus®","64 oz",437.2,415.34,21.860000000000014,"16-31",null,415.34,{"$nulls":6},64,0.32,13.939200000000001,2.0766999999999998,90.46105200000001,0.050000000000000044,null,{"$f":"IF(PRICING[[#This Row],[SKU]]=J122,AF122+1,1)","v":2}]
["Envu","A","GLO","NST","I",null,"EOP/ORN","84989509",null,"D00000903","Altus®","64 oz",437.2,393.48,43.71999999999997,"32+",null,393.48,{"$nulls":6},64,0.32,13.939200000000001,1.9674,85.69994400000002,0.09999999999999998,null,{"$f":"IF(PRICING[[#This Row],[SKU]]=J123,AF123+1,1)","v":3}]
["FMC","TT","O",null,"I",null,"ORN",null,null,11008513,"Aria® Insecticide  ","160 g",193.38,193.38,0,"8+",{"v":21,"d":"$21.00"},172.38,{"$nulls":6},5.64383,null,null,0,0,0.1085944771951598,null,{"$f":"IF(PRICING[[#This Row],[SKU]]=J124,AF124+1,1)","v":1}]
["Envu","TT","G","NST","I",null,"EOP",{"$nulls":3},"Chipco Choice","50 lb",null,null,0,{"$nulls":9},800,null,null,0,0,{"$error":"#DIV/0!"},null,{"$f":"IF(PRICING[[#This Row],[SKU]]=J125,AF125+1,1)","v":1}]
["FMC","TT","GL","NST","I",null,"EOP",null,null,"NA","Durentis 0.058% On-Fertilizer","50 lb",20,{"v":20,"d":"$20.00"},null,null,{"v":2,"d":"$2.00"},{"$nulls":14},{"$f":"IF(PRICING[[#This Row],[SKU]]=J126,AF126+1,1)","v":1}]
["FMC","TT","GL","NST","I",null,"EOP",null,null,"NA","Durentis 0.067% On-Fertilizer","50 lb",25,{"v":25,"d":"$25.00"},null,null,{"v":5,"d":"$5.00"},{"$nulls":14},{"$f":"IF(PRICING[[#This Row],[SKU]]=J127,AF127+1,1)","v":2}]
["FMC","A","GL","NST","I","X","EOP",null,null,11015390,"Durentis™ Insecticide  ","16 oz",630,{"v":567,"d":"$567.00"},{"v":63,"d":"$63.00"},"1-3",null,567,{"$nulls":6},16,0.06198347107438017,2.7,2.196539256198347,95.68125,0.09999999999999998,null,{"$f":"IF(PRICING[[#This Row],[SKU]]=J128,AF128+1,1)","v":1}]
["FMC","A","GL","NST","I","X","EOP",null,null,11015390,"Durentis™ Insecticide  ","16 oz",630,{"v":567,"d":"$567.00"},{"v":63,"d":"$63.00"},"4-8",{"v":90,"d":"$90.00"},477,{"$nulls":6},16,0.06,2.7,1.7887499999999998,80.49375,0.24285714285714288,null,{"$f":"IF(PRICING[[#This Row],[SKU]]=J129,AF129+1,1)","v":2}]
["FMC","A","GL","NST","I","X","EOP",null,null,11015390,"Durentis™ Insecticide  ","16 oz",630,{"v":567,"d":"$567.00"},{"v":63,"d":"$63.00"},"9-15",{"v":120,"d":"$120.00"},447,{"$nulls":6},16,0.06,2.7,1.67625,75.43125,0.29047619047619044,null,{"$f":"IF(PRICING[[#This Row],[SKU]]=J130,AF130+1,1)","v":3}]
["FMC","A","GL","NST","I","X","EOP",null,null,11015390,"Durentis™ Insecticide  ","16 oz",630,{"v":567,"d":"$567.00"},{"v":63,"d":"$63.00"},"16+",{"v":160,"d":"$160.00"},407,{"$nulls":6},16,0.06,2.7,1.5262499999999999,68.68125,0.35396825396825393,null,{"$f":"IF(PRICING[[#This Row],[SKU]]=J131,AF131+1,1)","v":4}]
["FMC","A","GL","NST","I","X","EOP",null,null,11015391,"Durentis™ Insecticide  ","64 oz",2362.6,{"v":2126.34,"d":"$2,126.34"},{"v":236.25999999999976,"d":"$236.26"},null,null,2126.34,{"$nulls":6},64,0.06,2.7,1.99344375,89.70496875,0.09999999999999987,null,{"$f":"IF(PRICING[[#This Row],[SKU]]=J132,AF132+1,1)","v":1}]
["FMC","A","GL","NST","I","X","EOP",null,null,11015391,"Durentis™ Insecticide  ","64 oz",2362.6,{"v":2126.34,"d":"$2,126.34"},{"v":236.25999999999976,"d":"$236.26"},"4+",{"v":557,"d":"$557.00"},1569.3400000000001,{"$nulls":6},64,0.06,2.7,1.4712562500000002,66.20653125000001,0.3357572166257512,null,{"$f":"IF(PRICING[[#This Row],[SKU]]=J133,AF133+1,1)","v":2}]
["FMC","A","L",null,"I",null,"LL/SLP/EOP",null,null,11015391,"Durentis™ Insecticide  ","64 oz",2362.6,{"v":2126.34,"d":"$2,126.34"},{"v":236.25999999999976,"d":"$236.26"},"8+",{"v":657,"d":"$657.00"},1469.3400000000001,{"$nulls":6},64,0.06,2.7,1.3775062500000002,61.98778125000001,0.3780834673664606,null,{"$f":"IF(PRICING[[#This Row],[SKU]]=J134,AF134+1,1)","v":3}]
["Envu","TT","GL","NST","I",null,"EOP","86248913",null,"D00001040","Dylox SL420","2.5 gal ",270.45599999999996,{"v":270.45599999999996,"d":"$270.46"},0,null,null,270.45599999999996,{"$nulls":6},320,6.9,300.564,5.831707499999999,254.0291787,0,null,{"$f":"IF(PRICING[[#This Row],[SKU]]=J135,AF135+1,1)","v":1}]
["Envu","TT","O",null,"I",null,"ORN",null,null,"D00001275","Floramite","1 qt",329.75,329.75,0,"4+",{"v":50,"d":"$50.00"},{"$nulls":12},1,null,{"$f":"IF(PRICING[[#This Row],[SKU]]=J136,AF136+1,1)","v":1}]
["Envu","TT","GL","NST","I",null,"EOP",null,null,3944704,"Forbid","8 oz ",304.73999999999995,304.73999999999995,0,null,{"v":22,"d":"$22.00"},282.73999999999995,{"$nulls":6},8,0,0,0,0,0.07219268884951102,null,{"$f":"IF(PRICING[[#This Row],[SKU]]=J137,AF137+1,1)","v":1}]
["Envu","A","O","ST","I",null,"ORN",84915440,null,"D00000944","Kontos","250 ml",null,null,0,null,null,0,{"$nulls":11},{"$error":"#DIV/0!"},null,{"$f":"IF(PRICING[[#This Row],[SKU]]=J138,AF138+1,1)","v":1}]
["Envu","A","O",null,"I",null,"ORN",null,null,"D00001272","Kontos","1 qt",{"v":744,"d":"$744.00"},{"v":744,"d":"$744.00"},{"v":0,"d":"$0.00"},"1-3",null,744,{"$nulls":11},0,null,{"$f":"IF(PRICING[[#This Row],[SKU]]=J139,AF139+1,1)","v":1}]
["Envu","A","O",null,"I",null,"ORN",null,null,"D00001272","Kontos","1 qt",{"v":744,"d":"$744.00"},{"v":706.8,"d":"$706.80"},{"v":37.200000000000045,"d":"$37.20"},"4-15",null,706.8,{"$nulls":11},0.050000000000000044,null,{"$f":"IF(PRICING[[#This Row],[SKU]]=J140,AF140+1,1)","v":2}]
["Envu","A","O",null,"I",null,"ORN",null,null,"D00001272","Kontos","1 qt",{"v":744,"d":"$744.00"},{"v":669.6,"d":"$669.60"},{"v":74.39999999999998,"d":"$74.40"},"16+",null,669.6,{"$nulls":11},0.09999999999999998,null,{"$f":"IF(PRICING[[#This Row],[SKU]]=J141,AF141+1,1)","v":3}]
["Envu","TT","GL","NST","I",null,"EOP","02406377",null,"D00000961","Merit 2F","1 gal",{"v":63,"d":"$63.00"},{"v":63,"d":"$63.00"},{"v":0,"d":"$0.00"},null,null,63,{"$nulls":6},128,0.6,26.136,0.2953125,12.8638125,0,null,{"$f":"IF(PRICING[[#This Row],[SKU]]=J142,AF142+1,1)","v":1}]
["Envu","A","O",null,"I",null,"ORN","84907898",null,"D00000987","Savate","8 oz",384.8,384.8,0,"1-11",null,384.8,{"$nulls":11},0,null,{"$f":"IF(PRICING[[#This Row],[SKU]]=J143,AF143+1,1)","v":1}]
["Envu","A","O",null,"I",null,"ORN","84907898",null,"D00000987","Savate","8 oz",384.8,365.56,19.24000000000001,"12-29",null,365.56,{"$nulls":11},0.050000000000000044,null,{"$f":"IF(PRICING[[#This Row],[SKU]]=J144,AF144+1,1)","v":2}]
["Envu","A","O",null,"I",null,"ORN","84907898",null,"D00000987","Savate","8 oz",384.8,346.32,38.48000000000002,"30+",null,346.32,{"$nulls":11},0.10000000000000009,null,{"$f":"IF(PRICING[[#This Row],[SKU]]=J145,AF145+1,1)","v":3}]
["Envu","A","L","NST","I",null,"EOP",null,null,11009495,"Scion","32 oz",156.6,156.6,0,null,{"v":38,"d":"$38.00"},118.6,{"$nulls":6},32,{"$error":"#N/A"},{"$error":"#N/A"},{"$error":"#N/A"},{"$error":"#N/A"},0.24265644955300125,null,{"$f":"IF(PRICING[[#This Row],[SKU]]=J146,AF146+1,1)","v":1}]
["Envu","TT","O",null,"I",null,"ORN",null,null,"D00001276","Shuttle","1 qt",417.59999999999997,417.59999999999997,0,"4+",{"v":25,"d":"$25.00"},{"$nulls":12},1,null,{"$f":"IF(PRICING[[#This Row],[SKU]]=J147,AF147+1,1)","v":1}]
["FMC","TT","G","NST","I",null,"EOP/ORN",null,null,11008457,"Talstar® Select Insecticide (RUP) ","1 gal",60.72,{"v":60.72,"d":"$60.72"},0,"4+",{"v":6,"d":"$6.00"},54.72,{"$nulls":6},128,0,0,0,0,0.09881422924901184]
["Envu","A","GL","NST","I",null,"EOP",null,null,86797658,"Tetrino®"," 1 gal",528,{"v":528,"d":"$528.00"},0,null,null,528,{"$nulls":6},128,0.73,31.7988,3.01125,131.17005,0]
["Envu","A","GL","NST","I",null,"EOP",null,null,86797658,"Tetrino®"," 1 gal",528,{"v":528,"d":"$528.00"},0,"4+",{"v":40,"d":"$40.00"},488,{"$nulls":6},128,0.73,31.7988,2.783125,121.232925,0.0757575757575758]
["Envu","TT","GL","ST","I",null,"EOP","79982844",null,"D00001012","TopChoice","50 lb",76.2,{"v":76.2,"d":"$76.20"},0,null,{"v":2,"d":"$2.00"},74.2,{"$nulls":6},800,31.96,1392.1776000000002,2.96429,129.12447240000003,0.026246719160105014]
["FMC","A","G","NST","I","X","EOP",null,null,11008521,"Triple Crown® Golf Insecticide (RUP)","1 gal",348.2,{"v":330.79,"d":"$330.79"},{"v":17.409999999999968,"d":"$17.41"},null,null,330.79,{"$nulls":6},128,0.46,20.0376,1.1887765625000002,51.78310706250001,0.04999999999999993]
["FMC","A","G","NST","I","X","EOP",null,null,11008521,"Triple Crown® Golf Insecticide (RUP)","1 gal",348.2,{"v":330.79,"d":"$330.79"},{"v":17.409999999999968,"d":"$17.41"},"20+",{"v":12,"d":"$12.00"},318.79,{"$nulls":6},128,0.46,20.0376,1.1456515625,49.904582062500005,0.08446295232624923]
["FMC","A","G","NST","I","X","EOP",null,null,11008521,"Triple Crown® Golf Insecticide (RUP)","1 gal",348.2,{"v":330.79,"d":"$330.79"},{"v":17.409999999999968,"d":"$17.41"},"40+",{"v":25,"d":"$25.00"},305.79,{"$nulls":6},128,0.46,20.0376,1.0989328125000002,47.869513312500004,0.12179781734635253]
["FMC","A","L","NST","I","X","EOP",null,null,11008520,"Triple Crown® T&O Insecticide ","1 gal ",348.2,{"v":330.79,"d":"$330.79"},{"v":17.409999999999968,"d":"$17.41"},null,null,330.79,{"$nulls":6},128,0.46,20.0376,1.1887765625000002,51.78310706250001,0.04999999999999993]
["FMC","A","L","NST","I","X","EOP",null,null,11008520,"Triple Crown® T&O Insecticide ","1 gal ",348.2,{"v":330.79,"d":"$330.79"},{"v":17.409999999999968,"d":"$17.41"},"20+",{"v":12,"d":"$12.00"},318.79,{"$nulls":6},128,0.46,20.0376,1.1456515625,49.904582062500005,0.08446295232624923]
["FMC","A","L","NST","I","X","EOP",null,null,11008520,"Triple Crown® T&O Insecticide ","1 gal ",348.2,{"v":330.79,"d":"$330.79"},{"v":17.409999999999968,"d":"$17.41"},"40+",{"v":25,"d":"$25.00"},305.79,{"$nulls":6},128,0.46,20.0376,1.0989328125000002,47.869513312500004,0.12179781734635253]
["Envu","TT","O",null,"PGR",null,"ORN",null,null,"D00001274","B-Nine","5 lb",260.09999999999997,260.09999999999997,0,"4+",{"v":12,"d":"$12.00"},{"v":248.09999999999997,"d":"$248.10"},{"$nulls":11},0.046136101499423265,null,{"$f":"IF(PRICING[[#This Row],[SKU]]=J158,AF158+1,1)","v":1}]